Workbook

Sheet Partidos
B1: COPA MUNDIAL FIFA BRASIL 2014
B4: Añada la diferencia horaria (hh: mm) entre Brasil y su ciudad | G4: Solo debes completar la diferencia horaria (celda C5) y los goles de los partidos (celdas en rojo)
B5: 02:00:00 | F5: FALSE
B7: Partido | C7: Fecha y Hora Local (Brasil) | D7: FECHA | E7: HORA | F7: Sede | G7: Groupo A
B8: 1 | C8: 2014-06-12T17:00:00 | D8: =C8+IF(rTimeDifIsItPositive,rTimeDifference,-rTimeDifference) -> 2014-06-12T15:00:00 | E8: =C8+IF(rTimeDifIsItPositive=(1=1),rTimeDifference,-rTimeDifference) -> 41802.625 | F8: Sao Paulo | G8: Brasil | I8: 3 | J8: 1 | L8: Croacia | O8: Pos | P8: EQUIPO | Q8: Pts. | R8: PJ | S8: G | T8: E | U8: P | V8: GF | W8: GC | X8: D | AA8: Pos | AB8: EQUIPO | AC8: Pts. | AD8: PJ | AE8: G | AF8: E | AG8: P | AH8: GF | AI8: GC | AJ8: D | AL8: =VLOOKUP(G8,equipo,2,FALSE) ->  | AM8: , | AN8: =VLOOKUP(L8,equipo,2,FALSE) ->  | AO8: , | AP8: =C8-rTimeDifference -> 2014-06-12T15:00:00
B9: 2 | C9: 2014-06-13T13:00:00 | D9: 2014-06-13T11:00:00 | E9: =C9+IF(rTimeDifIsItPositive,rTimeDifference,-rTimeDifference) -> 41803.45833 | F9: Natal | G9: México | I9: 1 | J9: 0 | L9: Camerún | N9: =LARGE($Z$9:$Z$12,O9) -> 70507.01528 | O9: 1 | P9: =VLOOKUP($N9,$Z$9:$AJ$12,3,0) -> Brasil | Q9: =VLOOKUP($N9,$Z$9:$AJ$12,4,0) -> 7 | R9: =VLOOKUP($N9,$Z$9:$AJ$12,5,0) -> 3 | S9: =VLOOKUP($N9,$Z$9:$AJ$12,6,0) -> 2 | T9: =VLOOKUP($N9,$Z$9:$AJ$12,7,0) -> 1 | U9: =VLOOKUP($N9,$Z$9:$AJ$12,8,0) -> 0 | V9: =VLOOKUP($N9,$Z$9:$AJ$12,9,0) -> 7 | W9: =VLOOKUP($N9,$Z$9:$AJ$12,10,0) -> 2 | X9: =VLOOKUP($N9,$Z$9:$AJ$12,11,0) -> 5 | Z9: =AC9*10000+AJ9*100+AH9+1/(CODE(LEFT(UPPER(AB9),1)))+1/(CODE(MID(UPPER(AB9),2,1))*100)+1/(CODE(MID(UPPER(AB9),3,1))*10000) -> 70507.01528 | AA9: =IF(SUM(AD$9:AD$12)<>12,"",(SUMPRODUCT(((1000*AC9+10*AJ9+AH9)< (1000*(AC$9:AC$12)+10*(AJ$9:AJ$12)+(AH$9:AH$12)))+0)+1)) -> 1 | AB9: Brasil | AC9: =(AE9*3+AF9*1) -> 7 | AD9: =SUM(AE9:AG9) -> 3 | AE9: =SUM((G$8:G$13=AB9)*(I$8:I$13<>"")*(J$8:J$13<>"")*(I$8:I$13>J$8:J$13),(L$8:L$13=AB9)*(I$8:I$13<>"")*(J$8:J$13<>"")*(I$8:I$13<J$8:J$13)) -> 2 | AF9: =SUM((G$8:G$13=AB9)*(I$8:I$13<>"")*(I$8:I$13=J$8:J$13),(L$8:L$13=AB9)*(J$8:J$13<>"")*(I$8:I$13=J$8:J$13)) -> 1 | AG9: =SUM((G$8:G$13=AB9)*(J$8:J$13<>"")*(I$8:I$13<>"")*(I$8:I$13<J$8:J$13),(I$8:I$13<>"")*(L$8:L$13=AB9)*(J$8:J$13<>"")*(I$8:I$13>J$8:J$13)) -> 0 | AH9: =SUM((G$8:G$13=AB9)*(I$8:I$13)*(J$8:J$13<>""),(L$8:L$13=AB9)*(J$8:J$13)*(I$8:I$13<>"")) -> 7 | AI9: =SUM((G$8:G$13=AB9)*(I$8:I$13<>"")*(J$8:J$13),(L$8:L$13=AB9)*(J$8:J$13<>"")*(I$8:I$13)) -> 2 | AJ9: =AH9-AI9 -> 5 | AM9: , | AO9: , | AP9: 2014-06-13T11:00:00
B10: 17 | C10: 2014-06-17T16:00:00 | D10: 2014-06-17T14:00:00 | E10: =C10+IF(rTimeDifIsItPositive,rTimeDifference,-rTimeDifference) -> 41807.58333 | F10: Fortaleza | G10: Brasil | I10: 0 | J10: 0 | L10: México | N10: =LARGE($Z$9:$Z$12,O10) -> 70304.01304 | O10: 2 | P10: =VLOOKUP($N10,$Z$9:$AJ$12,3,0) -> México | Q10: =VLOOKUP($N10,$Z$9:$AJ$12,4,0) -> 7 | R10: =VLOOKUP($N10,$Z$9:$AJ$12,5,0) -> 3 | S10: =VLOOKUP($N10,$Z$9:$AJ$12,6,0) -> 2 | T10: =VLOOKUP($N10,$Z$9:$AJ$12,7,0) -> 1 | U10: =VLOOKUP($N10,$Z$9:$AJ$12,8,0) -> 0 | V10: =VLOOKUP($N10,$Z$9:$AJ$12,9,0) -> 4 | W10: =VLOOKUP($N10,$Z$9:$AJ$12,10,0) -> 1 | X10: =VLOOKUP($N10,$Z$9:$AJ$12,11,0) -> 3 | Z10: =AC10*10000+AJ10*100+AH10+1/(CODE(LEFT(UPPER(AB10),1)))+1/(CODE(MID(UPPER(AB10),2,1))*100)+1/(CODE(MID(UPPER(AB10),3,1))*10000) -> 30006.01505 | AA10: =IF(SUM(AD$9:AD$12)<>12,"",(SUMPRODUCT(((1000*AC10+10*AJ10+AH10)< (1000*(AC$9:AC$12)+10*(AJ$9:AJ$12)+(AH$9:AH$12)))+0)+1)) -> 3 | AB10: Croacia | AC10: =(AE10*3+AF10*1) -> 3 | AD10: =SUM(AE10:AG10) -> 3 | AE10: =SUM((G$8:G$13=AB10)*(I$8:I$13<>"")*(J$8:J$13<>"")*(I$8:I$13>J$8:J$13),(L$8:L$13=AB10)*(I$8:I$13<>"")*(J$8:J$13<>"")*(I$8:I$13<J$8:J$13)) -> 1 | AF10: =SUM((G$8:G$13=AB10)*(I$8:I$13<>"")*(I$8:I$13=J$8:J$13),(L$8:L$13=AB10)*(J$8:J$13<>"")*(I$8:I$13=J$8:J$13)) -> 0 | AG10: =SUM((G$8:G$13=AB10)*(J$8:J$13<>"")*(I$8:I$13<>"")*(I$8:I$13<J$8:J$13),(I$8:I$13<>"")*(L$8:L$13=AB10)*(J$8:J$13<>"")*(I$8:I$13>J$8:J$13)) -> 2 | AH10: =SUM((G$8:G$13=AB10)*(I$8:I$13)*(J$8:J$13<>""),(L$8:L$13=AB10)*(J$8:J$13)*(I$8:I$13<>"")) -> 6 | AI10: =SUM((G$8:G$13=AB10)*(I$8:I$13<>"")*(J$8:J$13),(L$8:L$13=AB10)*(J$8:J$13<>"")*(I$8:I$13)) -> 6 | AJ10: =AH10-AI10 -> 0 | AM10: , | AO10: , | AP10: 2014-06-17T14:00:00
B11: 18 | C11: 2014-06-18T19:00:00 | D11: 2014-06-18T17:00:00 | E11: =C11+IF(rTimeDifIsItPositive,rTimeDifference,-rTimeDifference) -> 41808.70833 | F11: Manaus | G11: Camerún | I11: 0 | J11: 4 | L11: Croacia | N11: 30006.01505 | O11: 3 | P11: =VLOOKUP($N11,$Z$9:$AJ$12,3,0) -> Croacia | Q11: =VLOOKUP($N11,$Z$9:$AJ$12,4,0) -> 3 | R11: =VLOOKUP($N11,$Z$9:$AJ$12,5,0) -> 3 | S11: =VLOOKUP($N11,$Z$9:$AJ$12,6,0) -> 1 | T11: =VLOOKUP($N11,$Z$9:$AJ$12,7,0) -> 0 | U11: =VLOOKUP($N11,$Z$9:$AJ$12,8,0) -> 2 | V11: =VLOOKUP($N11,$Z$9:$AJ$12,9,0) -> 6 | W11: =VLOOKUP($N11,$Z$9:$AJ$12,10,0) -> 6 | X11: =VLOOKUP($N11,$Z$9:$AJ$12,11,0) -> 0 | Z11: 70304.01304 | AA11: =IF(SUM(AD$9:AD$12)<>12,"",(SUMPRODUCT(((1000*AC11+10*AJ11+AH11)< (1000*(AC$9:AC$12)+10*(AJ$9:AJ$12)+(AH$9:AH$12)))+0)+1)) -> 2 | AB11: México | AC11: =(AE11*3+AF11*1) -> 7 | AD11: =SUM(AE11:AG11) -> 3 | AE11: =SUM((G$8:G$13=AB11)*(I$8:I$13<>"")*(J$8:J$13<>"")*(I$8:I$13>J$8:J$13),(L$8:L$13=AB11)*(I$8:I$13<>"")*(J$8:J$13<>"")*(I$8:I$13<J$8:J$13)) -> 2 | AF11: =SUM((G$8:G$13=AB11)*(I$8:I$13<>"")*(I$8:I$13=J$8:J$13),(L$8:L$13=AB11)*(J$8:J$13<>"")*(I$8:I$13=J$8:J$13)) -> 1 | AG11: =SUM((G$8:G$13=AB11)*(J$8:J$13<>"")*(I$8:I$13<>"")*(I$8:I$13<J$8:J$13),(I$8:I$13<>"")*(L$8:L$13=AB11)*(J$8:J$13<>"")*(I$8:I$13>J$8:J$13)) -> 0 | AH11: =SUM((G$8:G$13=AB11)*(I$8:I$13)*(J$8:J$13<>""),(L$8:L$13=AB11)*(J$8:J$13)*(I$8:I$13<>"")) -> 4 | AI11: =SUM((G$8:G$13=AB11)*(I$8:I$13<>"")*(J$8:J$13),(L$8:L$13=AB11)*(J$8:J$13<>"")*(I$8:I$13)) -> 1 | AJ11: =AH11-AI11 -> 3 | AM11: , | AO11: , | AP11: 2014-06-18T17:00:00
B12: 33 | C12: 2014-06-23T17:00:00 | D12: 2014-06-23T15:00:00 | E12: =C12+IF(rTimeDifIsItPositive,rTimeDifference,-rTimeDifference) -> 41813.625 | F12: Brasilia | G12: Camerún | I12: 1 | J12: 4 | L12: Brasil | N12: -798.9849195 | O12: 4 | P12: =VLOOKUP($N12,$Z$9:$AJ$12,3,0) -> Camerún | Q12: =VLOOKUP($N12,$Z$9:$AJ$12,4,0) -> 0 | R12: =VLOOKUP($N12,$Z$9:$AJ$12,5,0) -> 3 | S12: =VLOOKUP($N12,$Z$9:$AJ$12,6,0) -> 0 | T12: =VLOOKUP($N12,$Z$9:$AJ$12,7,0) -> 0 | U12: =VLOOKUP($N12,$Z$9:$AJ$12,8,0) -> 3 | V12: =VLOOKUP($N12,$Z$9:$AJ$12,9,0) -> 1 | W12: =VLOOKUP($N12,$Z$9:$AJ$12,10,0) -> 9 | X12: =VLOOKUP($N12,$Z$9:$AJ$12,11,0) -> -8 | Z12: -798.9849195 | AA12: =IF(SUM(AD$9:AD$12)<>12,"",(SUMPRODUCT(((1000*AC12+10*AJ12+AH12)< (1000*(AC$9:AC$12)+10*(AJ$9:AJ$12)+(AH$9:AH$12)))+0)+1)) -> 4 | AB12: Camerún | AC12: =(AE12*3+AF12*1) -> 0 | AD12: =SUM(AE12:AG12) -> 3 | AE12: =SUM((G$8:G$13=AB12)*(I$8:I$13<>"")*(J$8:J$13<>"")*(I$8:I$13>J$8:J$13),(L$8:L$13=AB12)*(I$8:I$13<>"")*(J$8:J$13<>"")*(I$8:I$13<J$8:J$13)) -> 0 | AF12: =SUM((G$8:G$13=AB12)*(I$8:I$13<>"")*(I$8:I$13=J$8:J$13),(L$8:L$13=AB12)*(J$8:J$13<>"")*(I$8:I$13=J$8:J$13)) -> 0 | AG12: =SUM((G$8:G$13=AB12)*(J$8:J$13<>"")*(I$8:I$13<>"")*(I$8:I$13<J$8:J$13),(I$8:I$13<>"")*(L$8:L$13=AB12)*(J$8:J$13<>"")*(I$8:I$13>J$8:J$13)) -> 3 | AH12: =SUM((G$8:G$13=AB12)*(I$8:I$13)*(J$8:J$13<>""),(L$8:L$13=AB12)*(J$8:J$13)*(I$8:I$13<>"")) -> 1 | AI12: =SUM((G$8:G$13=AB12)*(I$8:I$13<>"")*(J$8:J$13),(L$8:L$13=AB12)*(J$8:J$13<>"")*(I$8:I$13)) -> 9 | AJ12: =AH12-AI12 -> -8 | AM12: , | AO12: , | AP12: 2014-06-23T15:00:00
B13: 34 | C13: 2014-06-23T17:00:00 | D13: 2014-06-23T15:00:00 | E13: =C13+IF(rTimeDifIsItPositive,rTimeDifference,-rTimeDifference) -> 41813.625 | F13: Recife | G13: Croacia | I13: 1 | J13: 3 | L13: México | AM13: , | AO13: , | AP13: 2014-06-23T15:00:00
B14: 3 | C14: 2014-06-13T16:00:00 | D14: =C14+IF(rTimeDifIsItPositive,rTimeDifference,-rTimeDifference) -> 2014-06-13T14:00:00 | E14: =C14+IF(rTimeDifIsItPositive,rTimeDifference,-rTimeDifference) -> 41803.58333 | F14: Salvador | G14: España | I14: 1 | J14: 5 | L14: Holanda | O14: Pos | P14: EQUIPO | Q14: Pts. | R14: PJ | S14: G | T14: E | U14: P | V14: GF | W14: GC | X14: D | AA14: Pos | AB14: EQUIPO | AC14: Pts. | AD14: PJ | AE14: G | AF14: E | AG14: P | AH14: GF | AI14: GC | AJ14: D | AM14: , | AO14: , | AP14: 2014-06-13T14:00:00
B15: 4 | C15: 2014-06-13T18:00:00 | D15: =C15+IF(rTimeDifIsItPositive,rTimeDifference,-rTimeDifference) -> 2014-06-13T16:00:00 | E15: 41803.66667 | F15: Cuiaba | G15: Chile | I15: 3 | J15: 1 | L15: Australia | N15: =LARGE($Z$15:$Z$18,O15) -> 90710.01402 | O15: 1 | P15: =VLOOKUP($N15,$Z$15:$AJ$18,3,0) -> Holanda | Q15: =VLOOKUP($N15,$Z$15:$AJ$18,4,0) -> 9 | R15: =VLOOKUP($N15,$Z$15:$AJ$18,5,0) -> 3 | S15: =VLOOKUP($N15,$Z$15:$AJ$18,6,0) -> 3 | T15: =VLOOKUP($N15,$Z$15:$AJ$18,7,0) -> 0 | U15: =VLOOKUP($N15,$Z$15:$AJ$18,8,0) -> 0 | V15: =VLOOKUP($N15,$Z$15:$AJ$18,9,0) -> 10 | W15: =VLOOKUP($N15,$Z$15:$AJ$18,10,0) -> 3 | X15: =VLOOKUP($N15,$Z$15:$AJ$18,11,0) -> 7 | Z15: =AC15*10000+AJ15*100+AH15+1/(CODE(LEFT(UPPER(AB15),1)))+1/(CODE(MID(UPPER(AB15),2,1))*100)+1/(CODE(MID(UPPER(AB15),3,1))*10000) -> 29704.01461 | AA15: =IF(SUM(AD$15:AD$18)<>12,"",(SUMPRODUCT(((1000*AC15+10*AJ15+AH15)< (1000*(AC$15:AC$18)+10*(AJ$15:AJ$18)+(AH$15:AH$18)))+0)+1)) -> 3 | AB15: España | AC15: =(AE15*3+AF15*1) -> 3 | AD15: =SUM(AE15:AG15) -> 3 | AE15: =SUM((G$14:G$19=AB15)*(I$14:I$19<>"")*(J$14:J$19<>"")*(I$14:I$19>J$14:J$19),(L$14:L$19=AB15)*(I$14:I$19<>"")*(J$14:J$19<>"")*(I$14:I$19<J$14:J$19)) -> 1 | AF15: =SUM((G$14:G$19=AB15)*(I$14:I$19<>"")*(I$14:I$19=J$14:J$19),(L$14:L$19=AB15)*(J$14:J$19<>"")*(I$14:I$19=J$14:J$19)) -> 0 | AG15: =SUM((G$14:G$19=AB15)*(J$14:J$19<>"")*(I$14:I$19<>"")*(I$14:I$19<J$14:J$19),(I$14:I$19<>"")*(L$14:L$19=AB15)*(J$14:J$19<>"")*(I$14:I$19>J$14:J$19)) -> 2 | AH15: =SUM((G$14:G$19=AB15)*(I$14:I$19)*(J$14:J$19<>""),(L$14:L$19=AB15)*(J$14:J$19)*(I$14:I$19<>"")) -> 4 | AI15: =SUM((G$14:G$19=AB15)*(I$14:I$19<>"")*(J$14:J$19),(L$14:L$19=AB15)*(J$14:J$19<>"")*(I$14:I$19)) -> 7 | AJ15: =AH15-AI15 -> -3 | AM15: , | AO15: , | AP15: 2014-06-13T16:00:00
B16: 19 | C16: 2014-06-18T16:00:00 | D16: 2014-06-18T14:00:00 | E16: 41808.58333 | F16: Rio de Janeiro | G16: España | I16: 0 | J16: 2 | L16: Chile | N16: =LARGE($Z$15:$Z$18,O16) -> 60205.01507 | O16: 2 | P16: =VLOOKUP($N16,$Z$15:$AJ$18,3,0) -> Chile | Q16: =VLOOKUP($N16,$Z$15:$AJ$18,4,0) -> 6 | R16: =VLOOKUP($N16,$Z$15:$AJ$18,5,0) -> 3 | S16: =VLOOKUP($N16,$Z$15:$AJ$18,6,0) -> 2 | T16: =VLOOKUP($N16,$Z$15:$AJ$18,7,0) -> 0 | U16: =VLOOKUP($N16,$Z$15:$AJ$18,8,0) -> 1 | V16: =VLOOKUP($N16,$Z$15:$AJ$18,9,0) -> 5 | W16: =VLOOKUP($N16,$Z$15:$AJ$18,10,0) -> 3 | X16: =VLOOKUP($N16,$Z$15:$AJ$18,11,0) -> 2 | Z16: =AC16*10000+AJ16*100+AH16+1/(CODE(LEFT(UPPER(AB16),1)))+1/(CODE(MID(UPPER(AB16),2,1))*100)+1/(CODE(MID(UPPER(AB16),3,1))*10000) -> 90710.01402 | AA16: =IF(SUM(AD$15:AD$18)<>12,"",(SUMPRODUCT(((1000*AC16+10*AJ16+AH16)< (1000*(AC$15:AC$18)+10*(AJ$15:AJ$18)+(AH$15:AH$18)))+0)+1)) -> 1 | AB16: Holanda | AC16: =(AE16*3+AF16*1) -> 9 | AD16: =SUM(AE16:AG16) -> 3 | AE16: =SUM((G$14:G$19=AB16)*(I$14:I$19<>"")*(J$14:J$19<>"")*(I$14:I$19>J$14:J$19),(L$14:L$19=AB16)*(I$14:I$19<>"")*(J$14:J$19<>"")*(I$14:I$19<J$14:J$19)) -> 3 | AF16: =SUM((G$14:G$19=AB16)*(I$14:I$19<>"")*(I$14:I$19=J$14:J$19),(L$14:L$19=AB16)*(J$14:J$19<>"")*(I$14:I$19=J$14:J$19)) -> 0 | AG16: =SUM((G$14:G$19=AB16)*(J$14:J$19<>"")*(I$14:I$19<>"")*(I$14:I$19<J$14:J$19),(I$14:I$19<>"")*(L$14:L$19=AB16)*(J$14:J$19<>"")*(I$14:I$19>J$14:J$19)) -> 0 | AH16: =SUM((G$14:G$19=AB16)*(I$14:I$19)*(J$14:J$19<>""),(L$14:L$19=AB16)*(J$14:J$19)*(I$14:I$19<>"")) -> 10 | AI16: =SUM((G$14:G$19=AB16)*(I$14:I$19<>"")*(J$14:J$19),(L$14:L$19=AB16)*(J$14:J$19<>"")*(I$14:I$19)) -> 3 | AJ16: =AH16-AI16 -> 7 | AM16: , | AO16: , | AP16: 2014-06-18T14:00:00
B17: 20 | C17: 2014-06-18T13:00:00 | D17: 2014-06-18T11:00:00 | E17: 41808.45833 | F17: Porto Alegre | G17: Australia | I17: 2 | J17: 3 | L17: Holanda | N17: 29704.01461 | O17: 3 | P17: =VLOOKUP($N17,$Z$15:$AJ$18,3,0) -> España | Q17: 3 | R17: 3 | S17: 1 | T17: 0 | U17: 2 | V17: 4 | W17: 7 | X17: -3 | Z17: 60205.01507 | AA17: =IF(SUM(AD$15:AD$18)<>12,"",(SUMPRODUCT(((1000*AC17+10*AJ17+AH17)< (1000*(AC$15:AC$18)+10*(AJ$15:AJ$18)+(AH$15:AH$18)))+0)+1)) -> 2 | AB17: Chile | AC17: =(AE17*3+AF17*1) -> 6 | AD17: =SUM(AE17:AG17) -> 3 | AE17: =SUM((G$14:G$19=AB17)*(I$14:I$19<>"")*(J$14:J$19<>"")*(I$14:I$19>J$14:J$19),(L$14:L$19=AB17)*(I$14:I$19<>"")*(J$14:J$19<>"")*(I$14:I$19<J$14:J$19)) -> 2 | AF17: =SUM((G$14:G$19=AB17)*(I$14:I$19<>"")*(I$14:I$19=J$14:J$19),(L$14:L$19=AB17)*(J$14:J$19<>"")*(I$14:I$19=J$14:J$19)) -> 0 | AG17: =SUM((G$14:G$19=AB17)*(J$14:J$19<>"")*(I$14:I$19<>"")*(I$14:I$19<J$14:J$19),(I$14:I$19<>"")*(L$14:L$19=AB17)*(J$14:J$19<>"")*(I$14:I$19>J$14:J$19)) -> 1 | AH17: =SUM((G$14:G$19=AB17)*(I$14:I$19)*(J$14:J$19<>""),(L$14:L$19=AB17)*(J$14:J$19)*(I$14:I$19<>"")) -> 5 | AI17: =SUM((G$14:G$19=AB17)*(I$14:I$19<>"")*(J$14:J$19),(L$14:L$19=AB17)*(J$14:J$19<>"")*(I$14:I$19)) -> 3 | AJ17: =AH17-AI17 -> 2 | AM17: , | AO17: , | AP17: 2014-06-18T11:00:00
B18: 35 | C18: 2014-06-23T13:00:00 | D18: 2014-06-23T11:00:00 | E18: 41813.45833 | F18: Curitiba | G18: Australia | I18: 0 | J18: 3 | L18: España | N18: -596.9844965 | O18: 4 | P18: =VLOOKUP($N18,$Z$15:$AJ$18,3,0) -> Australia | Q18: 0 | R18: 3 | S18: 0 | T18: 0 | U18: 3 | V18: 3 | W18: 9 | X18: -6 | Z18: -596.9844965 | AA18: =IF(SUM(AD$15:AD$18)<>12,"",(SUMPRODUCT(((1000*AC18+10*AJ18+AH18)< (1000*(AC$15:AC$18)+10*(AJ$15:AJ$18)+(AH$15:AH$18)))+0)+1)) -> 4 | AB18: Australia | AC18: =(AE18*3+AF18*1) -> 0 | AD18: =SUM(AE18:AG18) -> 3 | AE18: =SUM((G$14:G$19=AB18)*(I$14:I$19<>"")*(J$14:J$19<>"")*(I$14:I$19>J$14:J$19),(L$14:L$19=AB18)*(I$14:I$19<>"")*(J$14:J$19<>"")*(I$14:I$19<J$14:J$19)) -> 0 | AF18: =SUM((G$14:G$19=AB18)*(I$14:I$19<>"")*(I$14:I$19=J$14:J$19),(L$14:L$19=AB18)*(J$14:J$19<>"")*(I$14:I$19=J$14:J$19)) -> 0 | AG18: =SUM((G$14:G$19=AB18)*(J$14:J$19<>"")*(I$14:I$19<>"")*(I$14:I$19<J$14:J$19),(I$14:I$19<>"")*(L$14:L$19=AB18)*(J$14:J$19<>"")*(I$14:I$19>J$14:J$19)) -> 3 | AH18: =SUM((G$14:G$19=AB18)*(I$14:I$19)*(J$14:J$19<>""),(L$14:L$19=AB18)*(J$14:J$19)*(I$14:I$19<>"")) -> 3 | AI18: =SUM((G$14:G$19=AB18)*(I$14:I$19<>"")*(J$14:J$19),(L$14:L$19=AB18)*(J$14:J$19<>"")*(I$14:I$19)) -> 9 | AJ18: =AH18-AI18 -> -6 | AM18: , | AO18: , | AP18: 2014-06-23T11:00:00
B19: 36 | C19: 2014-06-23T13:00:00 | D19: 2014-06-23T11:00:00 | E19: 41813.45833 | F19: Sao Paulo | G19: Holanda | I19: 2 | J19: 0 | L19: Chile | AM19: , | AO19: , | AP19: 2014-06-23T11:00:00
B20: 5 | C20: 2014-06-14T13:00:00 | D20: =C20+IF(rTimeDifIsItPositive,rTimeDifference,-rTimeDifference) -> 2014-06-14T11:00:00 | E20: =C20+IF(rTimeDifIsItPositive,rTimeDifference,-rTimeDifference) -> 41804.45833 | F20: Belo Horizonte | G20: Colombia | I20: 3 | J20: 0 | L20: Grecia | O20: Pos | P20: EQUIPO | Q20: Pts. | R20: PJ | S20: G | T20: E | U20: P | V20: GF | W20: GC | X20: D | AA20: Pos | AB20: EQUIPO | AC20: Pts. | AD20: PJ | AE20: G | AF20: E | AG20: P | AH20: GF | AI20: GC | AJ20: D | AM20: , | AO20: , | AP20: 2014-06-14T11:00:00
B21: 6 | C21: 2014-06-14T22:00:00 | D21: 2014-06-14T20:00:00 | E21: 41804.83333 | F21: Recife | G21: Costa de Marfil | I21: 2 | J21: 1 | L21: Japón | N21: =LARGE($Z$21:$Z$24,O21) -> 90709.01505 | O21: 1 | P21: =VLOOKUP($N21,$Z$21:$AJ$24,3,0) -> Colombia | Q21: =VLOOKUP($N21,$Z$21:$AJ$24,4,0) -> 9 | R21: =VLOOKUP($N21,$Z$21:$AJ$24,5,0) -> 3 | S21: =VLOOKUP($N21,$Z$21:$AJ$24,6,0) -> 3 | T21: =VLOOKUP($N21,$Z$21:$AJ$24,7,0) -> 0 | U21: =VLOOKUP($N21,$Z$21:$AJ$24,8,0) -> 0 | V21: =VLOOKUP($N21,$Z$21:$AJ$24,9,0) -> 9 | W21: =VLOOKUP($N21,$Z$21:$AJ$24,10,0) -> 2 | X21: =VLOOKUP($N21,$Z$21:$AJ$24,11,0) -> 7 | Z21: =AC21*10000+AJ21*100+AH21+1/(CODE(LEFT(UPPER(AB21),1)))+1/(CODE(MID(UPPER(AB21),2,1))*100)+1/(CODE(MID(UPPER(AB21),3,1))*10000) -> 90709.01505 | AA21: =IF(SUM(AD$21:AD$24)<>12,"",(SUMPRODUCT(((1000*AC21+10*AJ21+AH21)< (1000*(AC$21:AC$24)+10*(AJ$21:AJ$24)+(AH$21:AH$24)))+0)+1)) -> 1 | AB21: Colombia | AC21: =(AE21*3+AF21*1) -> 9 | AD21: =SUM(AE21:AG21) -> 3 | AE21: =SUM((G$20:G$25=AB21)*(I$20:I$25<>"")*(J$20:J$25<>"")*(I$20:I$25>J$20:J$25),(L$20:L$25=AB21)*(I$20:I$25<>"")*(J$20:J$25<>"")*(I$20:I$25<J$20:J$25)) -> 3 | AF21: =SUM((G$20:G$25=AB21)*(I$20:I$25<>"")*(I$20:I$25=J$20:J$25),(L$20:L$25=AB21)*(J$20:J$25<>"")*(I$20:I$25=J$20:J$25)) -> 0 | AG21: =SUM((G$20:G$25=AB21)*(J$20:J$25<>"")*(I$20:I$25<>"")*(I$20:I$25<J$20:J$25),(I$20:I$25<>"")*(L$20:L$25=AB21)*(J$20:J$25<>"")*(I$20:I$25>J$20:J$25)) -> 0 | AH21: =SUM((G$20:G$25=AB21)*(I$20:I$25)*(J$20:J$25<>""),(L$20:L$25=AB21)*(J$20:J$25)*(I$20:I$25<>"")) -> 9 | AI21: =SUM((G$20:G$25=AB21)*(I$20:I$25<>"")*(J$20:J$25),(L$20:L$25=AB21)*(J$20:J$25<>"")*(I$20:I$25)) -> 2 | AJ21: =AH21-AI21 -> 7 | AM21: , | AO21: , | AP21: 2014-06-14T20:00:00
B22: 21 | C22: 2014-06-19T13:00:00 | D22: 2014-06-19T11:00:00 | E22: 41809.45833 | F22: Brasilia | G22: Colombia | I22: 2 | J22: 1 | L22: Costa de Marfil | N22: =LARGE($Z$21:$Z$24,O22) -> 39802.01421 | O22: 2 | P22: =VLOOKUP($N22,$Z$21:$AJ$24,3,0) -> Grecia | Q22: =VLOOKUP($N22,$Z$21:$AJ$24,4,0) -> 4 | R22: =VLOOKUP($N22,$Z$21:$AJ$24,5,0) -> 3 | S22: =VLOOKUP($N22,$Z$21:$AJ$24,6,0) -> 1 | T22: =VLOOKUP($N22,$Z$21:$AJ$24,7,0) -> 1 | U22: =VLOOKUP($N22,$Z$21:$AJ$24,8,0) -> 1 | V22: =VLOOKUP($N22,$Z$21:$AJ$24,9,0) -> 2 | W22: =VLOOKUP($N22,$Z$21:$AJ$24,10,0) -> 4 | X22: =VLOOKUP($N22,$Z$21:$AJ$24,11,0) -> -2 | Z22: =AC22*10000+AJ22*100+AH22+1/(CODE(LEFT(UPPER(AB22),1)))+1/(CODE(MID(UPPER(AB22),2,1))*100)+1/(CODE(MID(UPPER(AB22),3,1))*10000) -> 39802.01421 | AA22: =IF(SUM(AD$21:AD$24)<>12,"",(SUMPRODUCT(((1000*AC22+10*AJ22+AH22)< (1000*(AC$21:AC$24)+10*(AJ$21:AJ$24)+(AH$21:AH$24)))+0)+1)) -> 2 | AB22: Grecia | AC22: =(AE22*3+AF22*1) -> 4 | AD22: =SUM(AE22:AG22) -> 3 | AE22: =SUM((G$20:G$25=AB22)*(I$20:I$25<>"")*(J$20:J$25<>"")*(I$20:I$25>J$20:J$25),(L$20:L$25=AB22)*(I$20:I$25<>"")*(J$20:J$25<>"")*(I$20:I$25<J$20:J$25)) -> 1 | AF22: =SUM((G$20:G$25=AB22)*(I$20:I$25<>"")*(I$20:I$25=J$20:J$25),(L$20:L$25=AB22)*(J$20:J$25<>"")*(I$20:I$25=J$20:J$25)) -> 1 | AG22: =SUM((G$20:G$25=AB22)*(J$20:J$25<>"")*(I$20:I$25<>"")*(I$20:I$25<J$20:J$25),(I$20:I$25<>"")*(L$20:L$25=AB22)*(J$20:J$25<>"")*(I$20:I$25>J$20:J$25)) -> 1 | AH22: =SUM((G$20:G$25=AB22)*(I$20:I$25)*(J$20:J$25<>""),(L$20:L$25=AB22)*(J$20:J$25)*(I$20:I$25<>"")) -> 2 | AI22: =SUM((G$20:G$25=AB22)*(I$20:I$25<>"")*(J$20:J$25),(L$20:L$25=AB22)*(J$20:J$25<>"")*(I$20:I$25)) -> 4 | AJ22: =AH22-AI22 -> -2 | AM22: , | AO22: , | AP22: 2014-06-19T11:00:00
B23: 22 | C23: 2014-06-19T19:00:00 | D23: 2014-06-19T17:00:00 | E23: 41809.70833 | F23: Natal | G23: Japón | I23: 0 | J23: 0 | L23: Grecia | N23: 29904.01505 | O23: 3 | P23: =VLOOKUP($N23,$Z$21:$AJ$24,3,0) -> Costa de Marfil | Q23: =VLOOKUP($N23,$Z$21:$AJ$24,4,0) -> 3 | R23: =VLOOKUP($N23,$Z$21:$AJ$24,5,0) -> 3 | S23: =VLOOKUP($N23,$Z$21:$AJ$24,6,0) -> 1 | T23: =VLOOKUP($N23,$Z$21:$AJ$24,7,0) -> 0 | U23: =VLOOKUP($N23,$Z$21:$AJ$24,8,0) -> 2 | V23: =VLOOKUP($N23,$Z$21:$AJ$24,9,0) -> 4 | W23: =VLOOKUP($N23,$Z$21:$AJ$24,10,0) -> 5 | X23: =VLOOKUP($N23,$Z$21:$AJ$24,11,0) -> -1 | Z23: 29904.01505 | AA23: =IF(SUM(AD$21:AD$24)<>12,"",(SUMPRODUCT(((1000*AC23+10*AJ23+AH23)< (1000*(AC$21:AC$24)+10*(AJ$21:AJ$24)+(AH$21:AH$24)))+0)+1)) -> 3 | AB23: Costa de Marfil | AC23: =(AE23*3+AF23*1) -> 3 | AD23: =SUM(AE23:AG23) -> 3 | AE23: =SUM((G$20:G$25=AB23)*(I$20:I$25<>"")*(J$20:J$25<>"")*(I$20:I$25>J$20:J$25),(L$20:L$25=AB23)*(I$20:I$25<>"")*(J$20:J$25<>"")*(I$20:I$25<J$20:J$25)) -> 1 | AF23: =SUM((G$20:G$25=AB23)*(I$20:I$25<>"")*(I$20:I$25=J$20:J$25),(L$20:L$25=AB23)*(J$20:J$25<>"")*(I$20:I$25=J$20:J$25)) -> 0 | AG23: =SUM((G$20:G$25=AB23)*(J$20:J$25<>"")*(I$20:I$25<>"")*(I$20:I$25<J$20:J$25),(I$20:I$25<>"")*(L$20:L$25=AB23)*(J$20:J$25<>"")*(I$20:I$25>J$20:J$25)) -> 2 | AH23: =SUM((G$20:G$25=AB23)*(I$20:I$25)*(J$20:J$25<>""),(L$20:L$25=AB23)*(J$20:J$25)*(I$20:I$25<>"")) -> 4 | AI23: =SUM((G$20:G$25=AB23)*(I$20:I$25<>"")*(J$20:J$25),(L$20:L$25=AB23)*(J$20:J$25<>"")*(I$20:I$25)) -> 5 | AJ23: =AH23-AI23 -> -1 | AM23: , | AO23: , | AP23: 2014-06-19T17:00:00
B24: 37 | C24: 2014-06-24T16:00:00 | D24: 2014-06-24T14:00:00 | E24: 41814.58333 | F24: Cuiaba | G24: Japón | I24: 1 | J24: 4 | L24: Colombia | N24: 9602.013669 | O24: 4 | P24: =VLOOKUP($N24,$Z$21:$AJ$24,3,0) -> Japón | Q24: =VLOOKUP($N24,$Z$21:$AJ$24,4,0) -> 1 | R24: =VLOOKUP($N24,$Z$21:$AJ$24,5,0) -> 3 | S24: =VLOOKUP($N24,$Z$21:$AJ$24,6,0) -> 0 | T24: =VLOOKUP($N24,$Z$21:$AJ$24,7,0) -> 1 | U24: =VLOOKUP($N24,$Z$21:$AJ$24,8,0) -> 2 | V24: =VLOOKUP($N24,$Z$21:$AJ$24,9,0) -> 2 | W24: =VLOOKUP($N24,$Z$21:$AJ$24,10,0) -> 6 | X24: =VLOOKUP($N24,$Z$21:$AJ$24,11,0) -> -4 | Z24: 9602.013669 | AA24: =IF(SUM(AD$21:AD$24)<>12,"",(SUMPRODUCT(((1000*AC24+10*AJ24+AH24)< (1000*(AC$21:AC$24)+10*(AJ$21:AJ$24)+(AH$21:AH$24)))+0)+1)) -> 4 | AB24: Japón | AC24: =(AE24*3+AF24*1) -> 1 | AD24: =SUM(AE24:AG24) -> 3 | AE24: =SUM((G$20:G$25=AB24)*(I$20:I$25<>"")*(J$20:J$25<>"")*(I$20:I$25>J$20:J$25),(L$20:L$25=AB24)*(I$20:I$25<>"")*(J$20:J$25<>"")*(I$20:I$25<J$20:J$25)) -> 0 | AF24: =SUM((G$20:G$25=AB24)*(I$20:I$25<>"")*(I$20:I$25=J$20:J$25),(L$20:L$25=AB24)*(J$20:J$25<>"")*(I$20:I$25=J$20:J$25)) -> 1 | AG24: =SUM((G$20:G$25=AB24)*(J$20:J$25<>"")*(I$20:I$25<>"")*(I$20:I$25<J$20:J$25),(I$20:I$25<>"")*(L$20:L$25=AB24)*(J$20:J$25<>"")*(I$20:I$25>J$20:J$25)) -> 2 | AH24: =SUM((G$20:G$25=AB24)*(I$20:I$25)*(J$20:J$25<>""),(L$20:L$25=AB24)*(J$20:J$25)*(I$20:I$25<>"")) -> 2 | AI24: =SUM((G$20:G$25=AB24)*(I$20:I$25<>"")*(J$20:J$25),(L$20:L$25=AB24)*(J$20:J$25<>"")*(I$20:I$25)) -> 6 | AJ24: =AH24-AI24 -> -4 | AM24: , | AO24: , | AP24: 2014-06-24T14:00:00
B25: 38 | C25: 2014-06-24T17:00:00 | D25: 2014-06-24T15:00:00 | E25: 41814.625 | F25: Fortaleza | G25: Grecia | I25: 2 | J25: 1 | L25: Costa de Marfil | AM25: , | AO25: , | AP25: 2014-06-24T15:00:00
B26: 7 | C26: 2014-06-14T16:00:00 | D26: =C26+IF(rTimeDifIsItPositive,rTimeDifference,-rTimeDifference) -> 2014-06-14T14:00:00 | E26: =C26+IF(rTimeDifIsItPositive,rTimeDifference,-rTimeDifference) -> 41804.58333 | F26: Fortaleza | G26: Uruguay | I26: 1 | J26: 3 | L26: Costa Rica | O26: Pos | P26: EQUIPO | Q26: Pts. | R26: PJ | S26: G | T26: E | U26: P | V26: GF | W26: GC | X26: D | AA26: Pos | AB26: EQUIPO | AC26: Pts. | AD26: PJ | AE26: G | AF26: E | AG26: P | AH26: GF | AI26: GC | AJ26: D | AM26: , | AO26: , | AP26: 2014-06-14T14:00:00
B27: 8 | C27: 2014-06-14T18:00:00 | D27: 2014-06-14T16:00:00 | E27: 41804.66667 | F27: Manaus | G27: Inglaterra | I27: 1 | J27: 2 | L27: Italia | N27: =LARGE($Z$27:$Z$30,O27) -> 70304.01505 | O27: 1 | P27: =VLOOKUP($N27,$Z$27:$AJ$30,3,0) -> Costa Rica | Q27: =VLOOKUP($N27,$Z$27:$AJ$30,4,0) -> 7 | R27: =VLOOKUP($N27,$Z$27:$AJ$30,5,0) -> 3 | S27: =VLOOKUP($N27,$Z$27:$AJ$30,6,0) -> 2 | T27: =VLOOKUP($N27,$Z$27:$AJ$30,7,0) -> 1 | U27: =VLOOKUP($N27,$Z$27:$AJ$30,8,0) -> 0 | V27: =VLOOKUP($N27,$Z$27:$AJ$30,9,0) -> 4 | W27: =VLOOKUP($N27,$Z$27:$AJ$30,10,0) -> 1 | X27: =VLOOKUP($N27,$Z$27:$AJ$30,11,0) -> 3 | Z27: =AC27*10000+AJ27*100+AH27+1/(CODE(LEFT(UPPER(AB27),1)))+1/(CODE(MID(UPPER(AB27),2,1))*100)+1/(CODE(MID(UPPER(AB27),3,1))*10000) -> 60004.01189 | AA27: =IF(SUM(AD$27:AD$30)<>12,"",(SUMPRODUCT(((1000*AC27+10*AJ27+AH27)< (1000*(AC$27:AC$30)+10*(AJ$27:AJ$30)+(AH$27:AH$30)))+0)+1)) -> 2 | AB27: Uruguay | AC27: =(AE27*3+AF27*1) -> 6 | AD27: =SUM(AE27:AG27) -> 3 | AE27: =SUM((G$26:G$31=AB27)*(I$26:I$31<>"")*(J$26:J$31<>"")*(I$26:I$31>J$26:J$31),(L$26:L$31=AB27)*(I$26:I$31<>"")*(J$26:J$31<>"")*(I$26:I$31<J$26:J$31)) -> 2 | AF27: =SUM((G$26:G$31=AB27)*(I$26:I$31<>"")*(I$26:I$31=J$26:J$31),(L$26:L$31=AB27)*(J$26:J$31<>"")*(I$26:I$31=J$26:J$31)) -> 0 | AG27: =SUM((G$26:G$31=AB27)*(J$26:J$31<>"")*(I$26:I$31<>"")*(I$26:I$31<J$26:J$31),(I$26:I$31<>"")*(L$26:L$31=AB27)*(J$26:J$31<>"")*(I$26:I$31>J$26:J$31)) -> 1 | AH27: =SUM((G$26:G$31=AB27)*(I$26:I$31)*(J$26:J$31<>""),(L$26:L$31=AB27)*(J$26:J$31)*(I$26:I$31<>"")) -> 4 | AI27: =SUM((G$26:G$31=AB27)*(I$26:I$31<>"")*(J$26:J$31),(L$26:L$31=AB27)*(J$26:J$31<>"")*(I$26:I$31)) -> 4 | AJ27: =AH27-AI27 -> 0 | AM27: , | AO27: , | AP27: 2014-06-14T16:00:00
B28: 23 | C28: 2014-06-19T16:00:00 | D28: 2014-06-19T14:00:00 | E28: 41809.58333 | F28: Sao Paulo | G28: Uruguay | I28: 2 | J28: 1 | L28: Inglaterra | N28: =LARGE($Z$27:$Z$30,O28) -> 60004.01189 | O28: 2 | P28: =VLOOKUP($N28,$Z$27:$AJ$30,3,0) -> Uruguay | Q28: =VLOOKUP($N28,$Z$27:$AJ$30,4,0) -> 6 | R28: =VLOOKUP($N28,$Z$27:$AJ$30,5,0) -> 3 | S28: =VLOOKUP($N28,$Z$27:$AJ$30,6,0) -> 2 | T28: =VLOOKUP($N28,$Z$27:$AJ$30,7,0) -> 0 | U28: =VLOOKUP($N28,$Z$27:$AJ$30,8,0) -> 1 | V28: =VLOOKUP($N28,$Z$27:$AJ$30,9,0) -> 4 | W28: =VLOOKUP($N28,$Z$27:$AJ$30,10,0) -> 4 | X28: =VLOOKUP($N28,$Z$27:$AJ$30,11,0) -> 0 | Z28: =AC28*10000+AJ28*100+AH28+1/(CODE(LEFT(UPPER(AB28),1)))+1/(CODE(MID(UPPER(AB28),2,1))*100)+1/(CODE(MID(UPPER(AB28),3,1))*10000) -> 70304.01505 | AA28: =IF(SUM(AD$27:AD$30)<>12,"",(SUMPRODUCT(((1000*AC28+10*AJ28+AH28)< (1000*(AC$27:AC$30)+10*(AJ$27:AJ$30)+(AH$27:AH$30)))+0)+1)) -> 1 | AB28: Costa Rica | AC28: =(AE28*3+AF28*1) -> 7 | AD28: =SUM(AE28:AG28) -> 3 | AE28: =SUM((G$26:G$31=AB28)*(I$26:I$31<>"")*(J$26:J$31<>"")*(I$26:I$31>J$26:J$31),(L$26:L$31=AB28)*(I$26:I$31<>"")*(J$26:J$31<>"")*(I$26:I$31<J$26:J$31)) -> 2 | AF28: =SUM((G$26:G$31=AB28)*(I$26:I$31<>"")*(I$26:I$31=J$26:J$31),(L$26:L$31=AB28)*(J$26:J$31<>"")*(I$26:I$31=J$26:J$31)) -> 1 | AG28: =SUM((G$26:G$31=AB28)*(J$26:J$31<>"")*(I$26:I$31<>"")*(I$26:I$31<J$26:J$31),(I$26:I$31<>"")*(L$26:L$31=AB28)*(J$26:J$31<>"")*(I$26:I$31>J$26:J$31)) -> 0 | AH28: =SUM((G$26:G$31=AB28)*(I$26:I$31)*(J$26:J$31<>""),(L$26:L$31=AB28)*(J$26:J$31)*(I$26:I$31<>"")) -> 4 | AI28: =SUM((G$26:G$31=AB28)*(I$26:I$31<>"")*(J$26:J$31),(L$26:L$31=AB28)*(J$26:J$31<>"")*(I$26:I$31)) -> 1 | AJ28: =AH28-AI28 -> 3 | AM28: , | AO28: , | AP28: 2014-06-19T14:00:00
B29: 24 | C29: 2014-06-20T13:00:00 | D29: 2014-06-20T11:00:00 | E29: 41810.45833 | F29: Recife | G29: Italia | I29: 0 | J29: 1 | L29: Costa Rica | N29: =LARGE($Z$27:$Z$30,O29) -> 29902.01382 | O29: 3 | P29: Italia | Q29: 3 | R29: 3 | S29: 1 | T29: 0 | U29: 2 | V29: 2 | W29: 3 | X29: -1 | Z29: 9802.013828 | AA29: =IF(SUM(AD$27:AD$30)<>12,"",(SUMPRODUCT(((1000*AC29+10*AJ29+AH29)< (1000*(AC$27:AC$30)+10*(AJ$27:AJ$30)+(AH$27:AH$30)))+0)+1)) -> 4 | AB29: Inglaterra | AC29: =(AE29*3+AF29*1) -> 1 | AD29: =SUM(AE29:AG29) -> 3 | AE29: =SUM((G$26:G$31=AB29)*(I$26:I$31<>"")*(J$26:J$31<>"")*(I$26:I$31>J$26:J$31),(L$26:L$31=AB29)*(I$26:I$31<>"")*(J$26:J$31<>"")*(I$26:I$31<J$26:J$31)) -> 0 | AF29: =SUM((G$26:G$31=AB29)*(I$26:I$31<>"")*(I$26:I$31=J$26:J$31),(L$26:L$31=AB29)*(J$26:J$31<>"")*(I$26:I$31=J$26:J$31)) -> 1 | AG29: =SUM((G$26:G$31=AB29)*(J$26:J$31<>"")*(I$26:I$31<>"")*(I$26:I$31<J$26:J$31),(I$26:I$31<>"")*(L$26:L$31=AB29)*(J$26:J$31<>"")*(I$26:I$31>J$26:J$31)) -> 2 | AH29: =SUM((G$26:G$31=AB29)*(I$26:I$31)*(J$26:J$31<>""),(L$26:L$31=AB29)*(J$26:J$31)*(I$26:I$31<>"")) -> 2 | AI29: =SUM((G$26:G$31=AB29)*(I$26:I$31<>"")*(J$26:J$31),(L$26:L$31=AB29)*(J$26:J$31<>"")*(I$26:I$31)) -> 4 | AJ29: =AH29-AI29 -> -2 | AM29: , | AO29: , | AP29: 2014-06-20T11:00:00
B30: 39 | C30: 2014-06-24T13:00:00 | D30: 2014-06-24T11:00:00 | E30: 41814.45833 | F30: Natal | G30: Italia | I30: 0 | J30: 1 | L30: Uruguay | N30: =LARGE($Z$27:$Z$30,O30) -> 9802.013828 | O30: 4 | P30: Inglaterra | Q30: 1 | R30: 3 | S30: 0 | T30: 1 | U30: 2 | V30: 2 | W30: 4 | X30: -2 | Z30: 29902.01382 | AA30: =IF(SUM(AD$27:AD$30)<>12,"",(SUMPRODUCT(((1000*AC30+10*AJ30+AH30)< (1000*(AC$27:AC$30)+10*(AJ$27:AJ$30)+(AH$27:AH$30)))+0)+1)) -> 3 | AB30: Italia | AC30: =(AE30*3+AF30*1) -> 3 | AD30: =SUM(AE30:AG30) -> 3 | AE30: =SUM((G$26:G$31=AB30)*(I$26:I$31<>"")*(J$26:J$31<>"")*(I$26:I$31>J$26:J$31),(L$26:L$31=AB30)*(I$26:I$31<>"")*(J$26:J$31<>"")*(I$26:I$31<J$26:J$31)) -> 1 | AF30: =SUM((G$26:G$31=AB30)*(I$26:I$31<>"")*(I$26:I$31=J$26:J$31),(L$26:L$31=AB30)*(J$26:J$31<>"")*(I$26:I$31=J$26:J$31)) -> 0 | AG30: =SUM((G$26:G$31=AB30)*(J$26:J$31<>"")*(I$26:I$31<>"")*(I$26:I$31<J$26:J$31),(I$26:I$31<>"")*(L$26:L$31=AB30)*(J$26:J$31<>"")*(I$26:I$31>J$26:J$31)) -> 2 | AH30: =SUM((G$26:G$31=AB30)*(I$26:I$31)*(J$26:J$31<>""),(L$26:L$31=AB30)*(J$26:J$31)*(I$26:I$31<>"")) -> 2 | AI30: =SUM((G$26:G$31=AB30)*(I$26:I$31<>"")*(J$26:J$31),(L$26:L$31=AB30)*(J$26:J$31<>"")*(I$26:I$31)) -> 3 | AJ30: =AH30-AI30 -> -1 | AM30: , | AO30: , | AP30: 2014-06-24T11:00:00
B31: 40 | C31: 2014-06-24T13:00:00 | D31: 2014-06-24T11:00:00 | E31: 41814.45833 | F31: Belo Horizonte | G31: Costa Rica | I31: 0 | J31: 0 | L31: Inglaterra | AM31: , | AO31: , | AP31: 2014-06-24T11:00:00
B32: 9 | C32: 2014-06-15T13:00:00 | D32: =C32+IF(rTimeDifIsItPositive,rTimeDifference,-rTimeDifference) -> 2014-06-15T11:00:00 | E32: =C32+IF(rTimeDifIsItPositive,rTimeDifference,-rTimeDifference) -> 41805.45833 | F32: Brasilia | G32: Suiza | I32: 2 | J32: 1 | L32: Ecuador | O32: Pos | P32: EQUIPO | Q32: Pts. | R32: PJ | S32: G | T32: E | U32: P | V32: GF | W32: GC | X32: D | AA32: Pos | AB32: EQUIPO | AC32: Pts. | AD32: PJ | AE32: G | AF32: E | AG32: P | AH32: GF | AI32: GC | AJ32: D | AM32: , | AO32: , | AP32: 2014-06-15T11:00:00
B33: 10 | C33: 2014-06-15T16:00:00 | D33: 2014-06-15T14:00:00 | E33: 41805.58333 | F33: Porto Alegre | G33: Francia | I33: 3 | J33: 0 | L33: Honduras | N33: =LARGE($Z$33:$Z$36,O33) -> 70608.01441 | O33: 1 | P33: =VLOOKUP($N33,$Z$33:$AJ$36,3,0) -> Francia | Q33: =VLOOKUP($N33,$Z$33:$AJ$36,4,0) -> 7 | R33: =VLOOKUP($N33,$Z$33:$AJ$36,5,0) -> 3 | S33: =VLOOKUP($N33,$Z$33:$AJ$36,6,0) -> 2 | T33: =VLOOKUP($N33,$Z$33:$AJ$36,7,0) -> 1 | U33: =VLOOKUP($N33,$Z$33:$AJ$36,8,0) -> 0 | V33: =VLOOKUP($N33,$Z$33:$AJ$36,9,0) -> 8 | W33: =VLOOKUP($N33,$Z$33:$AJ$36,10,0) -> 2 | X33: =VLOOKUP($N33,$Z$33:$AJ$36,11,0) -> 6 | Z33: =AC33*10000+AJ33*100+AH33+1/(CODE(LEFT(UPPER(AB33),1)))+1/(CODE(MID(UPPER(AB33),2,1))*100)+1/(CODE(MID(UPPER(AB33),3,1))*10000) -> 60107.01217 | AA33: =IF(SUM(AD$33:AD$36)<>12,"",(SUMPRODUCT(((1000*AC33+10*AJ33+AH33)< (1000*(AC$33:AC$36)+10*(AJ$33:AJ$36)+(AH$33:AH$36)))+0)+1)) -> 2 | AB33: Suiza | AC33: =(AE33*3+AF33*1) -> 6 | AD33: =SUM(AE33:AG33) -> 3 | AE33: =SUM((G$32:G$37=AB33)*(I$32:I$37<>"")*(J$32:J$37<>"")*(I$32:I$37>J$32:J$37),(L$32:L$37=AB33)*(I$32:I$37<>"")*(J$32:J$37<>"")*(I$32:I$37<J$32:J$37)) -> 2 | AF33: =SUM((G$32:G$37=AB33)*(I$32:I$37<>"")*(I$32:I$37=J$32:J$37),(L$32:L$37=AB33)*(J$32:J$37<>"")*(I$32:I$37=J$32:J$37)) -> 0 | AG33: =SUM((G$32:G$37=AB33)*(J$32:J$37<>"")*(I$32:I$37<>"")*(I$32:I$37<J$32:J$37),(I$32:I$37<>"")*(L$32:L$37=AB33)*(J$32:J$37<>"")*(I$32:I$37>J$32:J$37)) -> 1 | AH33: =SUM((G$32:G$37=AB33)*(I$32:I$37)*(J$32:J$37<>""),(L$32:L$37=AB33)*(J$32:J$37)*(I$32:I$37<>"")) -> 7 | AI33: =SUM((G$32:G$37=AB33)*(I$32:I$37<>"")*(J$32:J$37),(L$32:L$37=AB33)*(J$32:J$37<>"")*(I$32:I$37)) -> 6 | AJ33: =AH33-AI33 -> 1 | AM33: , | AO33: , | AP33: 2014-06-15T14:00:00
B34: 25 | C34: 2014-06-20T16:00:00 | D34: 2014-06-20T14:00:00 | E34: 41810.58333 | F34: Salvador | G34: Suiza | I34: 2 | J34: 5 | L34: Francia | N34: =LARGE($Z$33:$Z$36,O34) -> 60107.01217 | O34: 2 | P34: =VLOOKUP($N34,$Z$33:$AJ$36,3,0) -> Suiza | Q34: =VLOOKUP($N34,$Z$33:$AJ$36,4,0) -> 6 | R34: =VLOOKUP($N34,$Z$33:$AJ$36,5,0) -> 3 | S34: =VLOOKUP($N34,$Z$33:$AJ$36,6,0) -> 2 | T34: =VLOOKUP($N34,$Z$33:$AJ$36,7,0) -> 0 | U34: =VLOOKUP($N34,$Z$33:$AJ$36,8,0) -> 1 | V34: =VLOOKUP($N34,$Z$33:$AJ$36,9,0) -> 7 | W34: =VLOOKUP($N34,$Z$33:$AJ$36,10,0) -> 6 | X34: =VLOOKUP($N34,$Z$33:$AJ$36,11,0) -> 1 | Z34: =AC34*10000+AJ34*100+AH34+1/(CODE(LEFT(UPPER(AB34),1)))+1/(CODE(MID(UPPER(AB34),2,1))*100)+1/(CODE(MID(UPPER(AB34),3,1))*10000) -> 40003.01464 | AA34: =IF(SUM(AD$33:AD$36)<>12,"",(SUMPRODUCT(((1000*AC34+10*AJ34+AH34)< (1000*(AC$33:AC$36)+10*(AJ$33:AJ$36)+(AH$33:AH$36)))+0)+1)) -> 3 | AB34: Ecuador | AC34: =(AE34*3+AF34*1) -> 4 | AD34: =SUM(AE34:AG34) -> 3 | AE34: =SUM((G$32:G$37=AB34)*(I$32:I$37<>"")*(J$32:J$37<>"")*(I$32:I$37>J$32:J$37),(L$32:L$37=AB34)*(I$32:I$37<>"")*(J$32:J$37<>"")*(I$32:I$37<J$32:J$37)) -> 1 | AF34: =SUM((G$32:G$37=AB34)*(I$32:I$37<>"")*(I$32:I$37=J$32:J$37),(L$32:L$37=AB34)*(J$32:J$37<>"")*(I$32:I$37=J$32:J$37)) -> 1 | AG34: =SUM((G$32:G$37=AB34)*(J$32:J$37<>"")*(I$32:I$37<>"")*(I$32:I$37<J$32:J$37),(I$32:I$37<>"")*(L$32:L$37=AB34)*(J$32:J$37<>"")*(I$32:I$37>J$32:J$37)) -> 1 | AH34: =SUM((G$32:G$37=AB34)*(I$32:I$37)*(J$32:J$37<>""),(L$32:L$37=AB34)*(J$32:J$37)*(I$32:I$37<>"")) -> 3 | AI34: =SUM((G$32:G$37=AB34)*(I$32:I$37<>"")*(J$32:J$37),(L$32:L$37=AB34)*(J$32:J$37<>"")*(I$32:I$37)) -> 3 | AJ34: =AH34-AI34 -> 0 | AM34: , | AO34: , | AP34: 2014-06-20T14:00:00
B35: 26 | C35: 2014-06-20T19:00:00 | D35: 2014-06-20T17:00:00 | E35: 41810.70833 | F35: Curitiba | G35: Honduras | I35: 1 | J35: 2 | L35: Ecuador | N35: =LARGE($Z$33:$Z$36,O35) -> 40003.01464 | O35: 3 | P35: Ecuador | Q35: 4 | R35: 3 | S35: 1 | T35: 1 | U35: 1 | V35: 3 | W35: 3 | X35: 0 | Z35: 70608.01441 | AA35: =IF(SUM(AD$33:AD$36)<>12,"",(SUMPRODUCT(((1000*AC35+10*AJ35+AH35)< (1000*(AC$33:AC$36)+10*(AJ$33:AJ$36)+(AH$33:AH$36)))+0)+1)) -> 1 | AB35: Francia | AC35: =(AE35*3+AF35*1) -> 7 | AD35: =SUM(AE35:AG35) -> 3 | AE35: =SUM((G$32:G$37=AB35)*(I$32:I$37<>"")*(J$32:J$37<>"")*(I$32:I$37>J$32:J$37),(L$32:L$37=AB35)*(I$32:I$37<>"")*(J$32:J$37<>"")*(I$32:I$37<J$32:J$37)) -> 2 | AF35: =SUM((G$32:G$37=AB35)*(I$32:I$37<>"")*(I$32:I$37=J$32:J$37),(L$32:L$37=AB35)*(J$32:J$37<>"")*(I$32:I$37=J$32:J$37)) -> 1 | AG35: =SUM((G$32:G$37=AB35)*(J$32:J$37<>"")*(I$32:I$37<>"")*(I$32:I$37<J$32:J$37),(I$32:I$37<>"")*(L$32:L$37=AB35)*(J$32:J$37<>"")*(I$32:I$37>J$32:J$37)) -> 0 | AH35: =SUM((G$32:G$37=AB35)*(I$32:I$37)*(J$32:J$37<>""),(L$32:L$37=AB35)*(J$32:J$37)*(I$32:I$37<>"")) -> 8 | AI35: =SUM((G$32:G$37=AB35)*(I$32:I$37<>"")*(J$32:J$37),(L$32:L$37=AB35)*(J$32:J$37<>"")*(I$32:I$37)) -> 2 | AJ35: =AH35-AI35 -> 6 | AM35: , | AO35: , | AP35: 2014-06-20T17:00:00
B36: 41 | C36: 2014-06-25T16:00:00 | D36: 2014-06-25T14:00:00 | E36: 41815.58333 | F36: Manaus | G36: Honduras | I36: 0 | J36: 3 | L36: Suiza | N36: =LARGE($Z$33:$Z$36,O36) -> -698.9859832 | O36: 4 | P36: Honduras | Q36: 0 | R36: 3 | S36: 0 | T36: 0 | U36: 3 | V36: 1 | W36: 8 | X36: -7 | Z36: -698.9859832 | AA36: =IF(SUM(AD$33:AD$36)<>12,"",(SUMPRODUCT(((1000*AC36+10*AJ36+AH36)< (1000*(AC$33:AC$36)+10*(AJ$33:AJ$36)+(AH$33:AH$36)))+0)+1)) -> 4 | AB36: Honduras | AC36: =(AE36*3+AF36*1) -> 0 | AD36: =SUM(AE36:AG36) -> 3 | AE36: =SUM((G$32:G$37=AB36)*(I$32:I$37<>"")*(J$32:J$37<>"")*(I$32:I$37>J$32:J$37),(L$32:L$37=AB36)*(I$32:I$37<>"")*(J$32:J$37<>"")*(I$32:I$37<J$32:J$37)) -> 0 | AF36: =SUM((G$32:G$37=AB36)*(I$32:I$37<>"")*(I$32:I$37=J$32:J$37),(L$32:L$37=AB36)*(J$32:J$37<>"")*(I$32:I$37=J$32:J$37)) -> 0 | AG36: =SUM((G$32:G$37=AB36)*(J$32:J$37<>"")*(I$32:I$37<>"")*(I$32:I$37<J$32:J$37),(I$32:I$37<>"")*(L$32:L$37=AB36)*(J$32:J$37<>"")*(I$32:I$37>J$32:J$37)) -> 3 | AH36: =SUM((G$32:G$37=AB36)*(I$32:I$37)*(J$32:J$37<>""),(L$32:L$37=AB36)*(J$32:J$37)*(I$32:I$37<>"")) -> 1 | AI36: =SUM((G$32:G$37=AB36)*(I$32:I$37<>"")*(J$32:J$37),(L$32:L$37=AB36)*(J$32:J$37<>"")*(I$32:I$37)) -> 8 | AJ36: =AH36-AI36 -> -7 | AM36: , | AO36: , | AP36: 2014-06-25T14:00:00
B37: 42 | C37: 2014-06-25T17:00:00 | D37: 2014-06-25T15:00:00 | E37: 41815.625 | F37: Rio de Janeiro | G37: Ecuador | I37: 0 | J37: 0 | L37: Francia | AM37: , | AO37: , | AP37: 2014-06-25T15:00:00
B38: 11 | C38: 2014-06-15T19:00:00 | D38: =C38+IF(rTimeDifIsItPositive,rTimeDifference,-rTimeDifference) -> 2014-06-15T17:00:00 | E38: =C38+IF(rTimeDifIsItPositive,rTimeDifference,-rTimeDifference) -> 41805.70833 | F38: Rio de Janeiro | G38: Argentina | I38: 2 | J38: 1 | L38: Bosnia y Herzegovina | O38: Pos | P38: EQUIPO | Q38: Pts. | R38: PJ | S38: G | T38: E | U38: P | V38: GF | W38: GC | X38: D | AA38: Pos | AB38: EQUIPO | AC38: Pts. | AD38: PJ | AE38: G | AF38: E | AG38: P | AH38: GF | AI38: GC | AJ38: D | AM38: , | AO38: , | AP38: 2014-06-15T17:00:00
B39: 12 | C39: 2014-06-16T16:00:00 | D39: 2014-06-16T14:00:00 | E39: 41806.58333 | F39: Curitiba | G39: Irán | I39: 0 | J39: 0 | L39: Nigeria | N39: =LARGE($Z$39:$Z$42,O39) -> 90306.01551 | O39: 1 | P39: =VLOOKUP($N39,$Z$39:$AJ$42,3,0) -> Argentina | Q39: =VLOOKUP($N39,$Z$39:$AJ$42,4,0) -> 9 | R39: =VLOOKUP($N39,$Z$39:$AJ$42,5,0) -> 3 | S39: =VLOOKUP($N39,$Z$39:$AJ$42,6,0) -> 3 | T39: =VLOOKUP($N39,$Z$39:$AJ$42,7,0) -> 0 | U39: =VLOOKUP($N39,$Z$39:$AJ$42,8,0) -> 0 | V39: =VLOOKUP($N39,$Z$39:$AJ$42,9,0) -> 6 | W39: =VLOOKUP($N39,$Z$39:$AJ$42,10,0) -> 3 | X39: =VLOOKUP($N39,$Z$39:$AJ$42,11,0) -> 3 | Z39: =AC39*10000+AJ39*100+AH39+1/(CODE(LEFT(UPPER(AB39),1)))+1/(CODE(MID(UPPER(AB39),2,1))*100)+1/(CODE(MID(UPPER(AB39),3,1))*10000) -> 90306.01551 | AA39: =IF(SUM(AD$39:AD$42)<>12,"",(SUMPRODUCT(((1000*AC39+10*AJ39+AH39)< (1000*(AC$39:AC$42)+10*(AJ$39:AJ$42)+(AH$39:AH$42)))+0)+1)) -> 1 | AB39: Argentina | AC39: =(AE39*3+AF39*1) -> 9 | AD39: =SUM(AE39:AG39) -> 3 | AE39: =SUM((G$38:G$43=AB39)*(I$38:I$43<>"")*(J$38:J$43<>"")*(I$38:I$43>J$38:J$43),(L$38:L$43=AB39)*(I$38:I$43<>"")*(J$38:J$43<>"")*(I$38:I$43<J$38:J$43)) -> 3 | AF39: =SUM((G$38:G$43=AB39)*(I$38:I$43<>"")*(I$38:I$43=J$38:J$43),(L$38:L$43=AB39)*(J$38:J$43<>"")*(I$38:I$43=J$38:J$43)) -> 0 | AG39: =SUM((G$38:G$43=AB39)*(J$38:J$43<>"")*(I$38:I$43<>"")*(I$38:I$43<J$38:J$43),(I$38:I$43<>"")*(L$38:L$43=AB39)*(J$38:J$43<>"")*(I$38:I$43>J$38:J$43)) -> 0 | AH39: =SUM((G$38:G$43=AB39)*(I$38:I$43)*(J$38:J$43<>""),(L$38:L$43=AB39)*(J$38:J$43)*(I$38:I$43<>"")) -> 6 | AI39: =SUM((G$38:G$43=AB39)*(I$38:I$43<>"")*(J$38:J$43),(L$38:L$43=AB39)*(J$38:J$43<>"")*(I$38:I$43)) -> 3 | AJ39: =AH39-AI39 -> 3 | AM39: , | AO39: , | AP39: 2014-06-16T14:00:00
B40: 27 | C40: 2014-06-21T13:00:00 | D40: 2014-06-21T11:00:00 | E40: 41811.45833 | F40: Belo Horizonte | G40: Argentina | I40: 1 | J40: 0 | L40: Irán | N40: =LARGE($Z$39:$Z$42,O40) -> 40003.01296 | O40: 2 | P40: =VLOOKUP($N40,$Z$39:$AJ$42,3,0) -> Nigeria | Q40: =VLOOKUP($N40,$Z$39:$AJ$42,4,0) -> 4 | R40: =VLOOKUP($N40,$Z$39:$AJ$42,5,0) -> 3 | S40: =VLOOKUP($N40,$Z$39:$AJ$42,6,0) -> 1 | T40: =VLOOKUP($N40,$Z$39:$AJ$42,7,0) -> 1 | U40: =VLOOKUP($N40,$Z$39:$AJ$42,8,0) -> 1 | V40: =VLOOKUP($N40,$Z$39:$AJ$42,9,0) -> 3 | W40: =VLOOKUP($N40,$Z$39:$AJ$42,10,0) -> 3 | X40: =VLOOKUP($N40,$Z$39:$AJ$42,11,0) -> 0 | Z40: =AC40*10000+AJ40*100+AH40+1/(CODE(LEFT(UPPER(AB40),1)))+1/(CODE(MID(UPPER(AB40),2,1))*100)+1/(CODE(MID(UPPER(AB40),3,1))*10000) -> 30004.01528 | AA40: =IF(SUM(AD$39:AD$42)<>12,"",(SUMPRODUCT(((1000*AC40+10*AJ40+AH40)< (1000*(AC$39:AC$42)+10*(AJ$39:AJ$42)+(AH$39:AH$42)))+0)+1)) -> 3 | AB40: Bosnia y Herzegovina | AC40: =(AE40*3+AF40*1) -> 3 | AD40: =SUM(AE40:AG40) -> 3 | AE40: =SUM((G$38:G$43=AB40)*(I$38:I$43<>"")*(J$38:J$43<>"")*(I$38:I$43>J$38:J$43),(L$38:L$43=AB40)*(I$38:I$43<>"")*(J$38:J$43<>"")*(I$38:I$43<J$38:J$43)) -> 1 | AF40: =SUM((G$38:G$43=AB40)*(I$38:I$43<>"")*(I$38:I$43=J$38:J$43),(L$38:L$43=AB40)*(J$38:J$43<>"")*(I$38:I$43=J$38:J$43)) -> 0 | AG40: =SUM((G$38:G$43=AB40)*(J$38:J$43<>"")*(I$38:I$43<>"")*(I$38:I$43<J$38:J$43),(I$38:I$43<>"")*(L$38:L$43=AB40)*(J$38:J$43<>"")*(I$38:I$43>J$38:J$43)) -> 2 | AH40: =SUM((G$38:G$43=AB40)*(I$38:I$43)*(J$38:J$43<>""),(L$38:L$43=AB40)*(J$38:J$43)*(I$38:I$43<>"")) -> 4 | AI40: =SUM((G$38:G$43=AB40)*(I$38:I$43<>"")*(J$38:J$43),(L$38:L$43=AB40)*(J$38:J$43<>"")*(I$38:I$43)) -> 4 | AJ40: =AH40-AI40 -> 0 | AM40: , | AO40: , | AP40: 2014-06-21T11:00:00
B41: 28 | C41: 2014-06-21T18:00:00 | D41: 2014-06-21T16:00:00 | E41: 41811.66667 | F41: Cuiaba | G41: Nigeria | I41: 1 | J41: 0 | L41: Bosnia y Herzegovina | N41: =LARGE($Z$39:$Z$42,O41) -> 30004.01528 | O41: 3 | P41: =VLOOKUP($N41,$Z$39:$AJ$42,3,0) -> Bosnia y Herzegovina | Q41: 3 | R41: 3 | S41: 1 | T41: 0 | U41: 2 | V41: 4 | W41: 4 | X41: 0 | Z41: 9701.013821 | AA41: =IF(SUM(AD$39:AD$42)<>12,"",(SUMPRODUCT(((1000*AC41+10*AJ41+AH41)< (1000*(AC$39:AC$42)+10*(AJ$39:AJ$42)+(AH$39:AH$42)))+0)+1)) -> 4 | AB41: Irán | AC41: =(AE41*3+AF41*1) -> 1 | AD41: =SUM(AE41:AG41) -> 3 | AE41: =SUM((G$38:G$43=AB41)*(I$38:I$43<>"")*(J$38:J$43<>"")*(I$38:I$43>J$38:J$43),(L$38:L$43=AB41)*(I$38:I$43<>"")*(J$38:J$43<>"")*(I$38:I$43<J$38:J$43)) -> 0 | AF41: =SUM((G$38:G$43=AB41)*(I$38:I$43<>"")*(I$38:I$43=J$38:J$43),(L$38:L$43=AB41)*(J$38:J$43<>"")*(I$38:I$43=J$38:J$43)) -> 1 | AG41: =SUM((G$38:G$43=AB41)*(J$38:J$43<>"")*(I$38:I$43<>"")*(I$38:I$43<J$38:J$43),(I$38:I$43<>"")*(L$38:L$43=AB41)*(J$38:J$43<>"")*(I$38:I$43>J$38:J$43)) -> 2 | AH41: =SUM((G$38:G$43=AB41)*(I$38:I$43)*(J$38:J$43<>""),(L$38:L$43=AB41)*(J$38:J$43)*(I$38:I$43<>"")) -> 1 | AI41: =SUM((G$38:G$43=AB41)*(I$38:I$43<>"")*(J$38:J$43),(L$38:L$43=AB41)*(J$38:J$43<>"")*(I$38:I$43)) -> 4 | AJ41: =AH41-AI41 -> -3 | AM41: , | AO41: , | AP41: 2014-06-21T16:00:00
B42: 43 | C42: 2014-06-25T13:00:00 | D42: 2014-06-25T11:00:00 | E42: 41815.45833 | F42: Porto Alegre | G42: Nigeria | I42: 2 | J42: 3 | L42: Argentina | N42: =LARGE($Z$39:$Z$42,O42) -> 9701.013821 | O42: 4 | P42: =VLOOKUP($N42,$Z$39:$AJ$42,3,0) -> Irán | Q42: 1 | R42: 3 | S42: 0 | T42: 1 | U42: 2 | V42: 1 | W42: 4 | X42: -3 | Z42: 40003.01296 | AA42: =IF(SUM(AD$39:AD$42)<>12,"",(SUMPRODUCT(((1000*AC42+10*AJ42+AH42)< (1000*(AC$39:AC$42)+10*(AJ$39:AJ$42)+(AH$39:AH$42)))+0)+1)) -> 2 | AB42: Nigeria | AC42: =(AE42*3+AF42*1) -> 4 | AD42: =SUM(AE42:AG42) -> 3 | AE42: =SUM((G$38:G$43=AB42)*(I$38:I$43<>"")*(J$38:J$43<>"")*(I$38:I$43>J$38:J$43),(L$38:L$43=AB42)*(I$38:I$43<>"")*(J$38:J$43<>"")*(I$38:I$43<J$38:J$43)) -> 1 | AF42: =SUM((G$38:G$43=AB42)*(I$38:I$43<>"")*(I$38:I$43=J$38:J$43),(L$38:L$43=AB42)*(J$38:J$43<>"")*(I$38:I$43=J$38:J$43)) -> 1 | AG42: =SUM((G$38:G$43=AB42)*(J$38:J$43<>"")*(I$38:I$43<>"")*(I$38:I$43<J$38:J$43),(I$38:I$43<>"")*(L$38:L$43=AB42)*(J$38:J$43<>"")*(I$38:I$43>J$38:J$43)) -> 1 | AH42: =SUM((G$38:G$43=AB42)*(I$38:I$43)*(J$38:J$43<>""),(L$38:L$43=AB42)*(J$38:J$43)*(I$38:I$43<>"")) -> 3 | AI42: =SUM((G$38:G$43=AB42)*(I$38:I$43<>"")*(J$38:J$43),(L$38:L$43=AB42)*(J$38:J$43<>"")*(I$38:I$43)) -> 3 | AJ42: =AH42-AI42 -> 0 | AM42: , | AO42: , | AP42: 2014-06-25T11:00:00
B43: 44 | C43: 2014-06-25T13:00:00 | D43: 2014-06-25T11:00:00 | E43: 41815.45833 | F43: Salvador | G43: Bosnia y Herzegovina | I43: 3 | J43: 1 | L43: Irán | AM43: , | AO43: , | AP43: 2014-06-25T11:00:00
B44: 13 | C44: 2014-06-16T13:00:00 | D44: =C44+IF(rTimeDifIsItPositive,rTimeDifference,-rTimeDifference) -> 2014-06-16T11:00:00 | E44: =C44+IF(rTimeDifIsItPositive,rTimeDifference,-rTimeDifference) -> 41806.45833 | F44: Salvador | G44: Alemania | I44: 4 | J44: 0 | L44: Portugal | O44: Pos | P44: EQUIPO | Q44: Pts. | R44: PJ | S44: G | T44: E | U44: P | V44: GF | W44: GC | X44: D | AA44: Pos | AB44: EQUIPO | AC44: Pts. | AD44: PJ | AE44: G | AF44: E | AG44: P | AH44: GF | AI44: GC | AJ44: D | AM44: , | AO44: , | AP44: 2014-06-16T11:00:00
B45: 14 | C45: 2014-06-16T19:00:00 | D45: 2014-06-16T17:00:00 | E45: 41806.70833 | F45: Natal | G45: Ghana | I45: 1 | J45: 2 | L45: EEUU | N45: =LARGE($Z$45:$Z$48,O45) -> 70507.01552 | O45: 1 | P45: =VLOOKUP($N45,$Z$45:$AJ$48,3,0) -> Alemania | Q45: =VLOOKUP($N45,$Z$45:$AJ$48,4,0) -> 7 | R45: =VLOOKUP($N45,$Z$45:$AJ$48,5,0) -> 3 | S45: =VLOOKUP($N45,$Z$45:$AJ$48,6,0) -> 2 | T45: =VLOOKUP($N45,$Z$45:$AJ$48,7,0) -> 1 | U45: =VLOOKUP($N45,$Z$45:$AJ$48,8,0) -> 0 | V45: =VLOOKUP($N45,$Z$45:$AJ$48,9,0) -> 7 | W45: =VLOOKUP($N45,$Z$45:$AJ$48,10,0) -> 2 | X45: =VLOOKUP($N45,$Z$45:$AJ$48,11,0) -> 5 | Z45: =AC45*10000+AJ45*100+AH45+1/(CODE(LEFT(UPPER(AB45),1)))+1/(CODE(MID(UPPER(AB45),2,1))*100)+1/(CODE(MID(UPPER(AB45),3,1))*10000) -> 70507.01552 | AA45: =IF(SUM(AD$45:AD$48)<>12,"",(SUMPRODUCT(((1000*AC45+10*AJ45+AH45)< (1000*(AC$45:AC$48)+10*(AJ$45:AJ$48)+(AH$45:AH$48)))+0)+1)) -> 1 | AB45: Alemania | AC45: =(AE45*3+AF45*1) -> 7 | AD45: =SUM(AE45:AG45) -> 3 | AE45: =SUM((G$44:G$49=AB45)*(I$44:I$49<>"")*(J$44:J$49<>"")*(I$44:I$49>J$44:J$49),(L$44:L$49=AB45)*(I$44:I$49<>"")*(J$44:J$49<>"")*(I$44:I$49<J$44:J$49)) -> 2 | AF45: =SUM((G$44:G$49=AB45)*(I$44:I$49<>"")*(I$44:I$49=J$44:J$49),(L$44:L$49=AB45)*(J$44:J$49<>"")*(I$44:I$49=J$44:J$49)) -> 1 | AG45: =SUM((G$44:G$49=AB45)*(J$44:J$49<>"")*(I$44:I$49<>"")*(I$44:I$49<J$44:J$49),(I$44:I$49<>"")*(L$44:L$49=AB45)*(J$44:J$49<>"")*(I$44:I$49>J$44:J$49)) -> 0 | AH45: =SUM((G$44:G$49=AB45)*(I$44:I$49)*(J$44:J$49<>""),(L$44:L$49=AB45)*(J$44:J$49)*(I$44:I$49<>"")) -> 7 | AI45: =SUM((G$44:G$49=AB45)*(I$44:I$49<>"")*(J$44:J$49),(L$44:L$49=AB45)*(J$44:J$49<>"")*(I$44:I$49)) -> 2 | AJ45: =AH45-AI45 -> 5 | AM45: , | AO45: , | AP45: 2014-06-16T17:00:00
B46: 29 | C46: 2014-06-21T16:00:00 | D46: 2014-06-21T14:00:00 | E46: 41811.58333 | F46: Fortaleza | G46: Alemania | I46: 2 | J46: 2 | L46: Ghana | N46: =LARGE($Z$45:$Z$48,O46) -> 40004.01464 | O46: 2 | P46: =VLOOKUP($N46,$Z$45:$AJ$48,3,0) -> EEUU | Q46: =VLOOKUP($N46,$Z$45:$AJ$48,4,0) -> 4 | R46: =VLOOKUP($N46,$Z$45:$AJ$48,5,0) -> 3 | S46: =VLOOKUP($N46,$Z$45:$AJ$48,6,0) -> 1 | T46: =VLOOKUP($N46,$Z$45:$AJ$48,7,0) -> 1 | U46: =VLOOKUP($N46,$Z$45:$AJ$48,8,0) -> 1 | V46: =VLOOKUP($N46,$Z$45:$AJ$48,9,0) -> 4 | W46: =VLOOKUP($N46,$Z$45:$AJ$48,10,0) -> 4 | X46: =VLOOKUP($N46,$Z$45:$AJ$48,11,0) -> 0 | Z46: =AC46*10000+AJ46*100+AH46+1/(CODE(LEFT(UPPER(AB46),1)))+1/(CODE(MID(UPPER(AB46),2,1))*100)+1/(CODE(MID(UPPER(AB46),3,1))*10000) -> 39704.01263 | AA46: =IF(SUM(AD$45:AD$48)<>12,"",(SUMPRODUCT(((1000*AC46+10*AJ46+AH46)< (1000*(AC$45:AC$48)+10*(AJ$45:AJ$48)+(AH$45:AH$48)))+0)+1)) -> 3 | AB46: Portugal | AC46: =(AE46*3+AF46*1) -> 4 | AD46: =SUM(AE46:AG46) -> 3 | AE46: =SUM((G$44:G$49=AB46)*(I$44:I$49<>"")*(J$44:J$49<>"")*(I$44:I$49>J$44:J$49),(L$44:L$49=AB46)*(I$44:I$49<>"")*(J$44:J$49<>"")*(I$44:I$49<J$44:J$49)) -> 1 | AF46: =SUM((G$44:G$49=AB46)*(I$44:I$49<>"")*(I$44:I$49=J$44:J$49),(L$44:L$49=AB46)*(J$44:J$49<>"")*(I$44:I$49=J$44:J$49)) -> 1 | AG46: =SUM((G$44:G$49=AB46)*(J$44:J$49<>"")*(I$44:I$49<>"")*(I$44:I$49<J$44:J$49),(I$44:I$49<>"")*(L$44:L$49=AB46)*(J$44:J$49<>"")*(I$44:I$49>J$44:J$49)) -> 1 | AH46: =SUM((G$44:G$49=AB46)*(I$44:I$49)*(J$44:J$49<>""),(L$44:L$49=AB46)*(J$44:J$49)*(I$44:I$49<>"")) -> 4 | AI46: =SUM((G$44:G$49=AB46)*(I$44:I$49<>"")*(J$44:J$49),(L$44:L$49=AB46)*(J$44:J$49<>"")*(I$44:I$49)) -> 7 | AJ46: =AH46-AI46 -> -3 | AM46: , | AO46: , | AP46: 2014-06-21T14:00:00
B47: 30 | C47: 2014-06-22T18:00:00 | D47: 2014-06-22T16:00:00 | E47: 41812.66667 | F47: Manaus | G47: EEUU | I47: 2 | J47: 2 | L47: Portugal | N47: =LARGE($Z$45:$Z$48,O47) -> 39704.01263 | O47: 3 | P47: Portugal | Q47: 4 | R47: 3 | S47: 1 | T47: 1 | U47: 1 | V47: 4 | W47: 7 | X47: -3 | Z47: 9804.014225 | AA47: =IF(SUM(AD$45:AD$48)<>12,"",(SUMPRODUCT(((1000*AC47+10*AJ47+AH47)< (1000*(AC$45:AC$48)+10*(AJ$45:AJ$48)+(AH$45:AH$48)))+0)+1)) -> 4 | AB47: Ghana | AC47: =(AE47*3+AF47*1) -> 1 | AD47: =SUM(AE47:AG47) -> 3 | AE47: =SUM((G$44:G$49=AB47)*(I$44:I$49<>"")*(J$44:J$49<>"")*(I$44:I$49>J$44:J$49),(L$44:L$49=AB47)*(I$44:I$49<>"")*(J$44:J$49<>"")*(I$44:I$49<J$44:J$49)) -> 0 | AF47: =SUM((G$44:G$49=AB47)*(I$44:I$49<>"")*(I$44:I$49=J$44:J$49),(L$44:L$49=AB47)*(J$44:J$49<>"")*(I$44:I$49=J$44:J$49)) -> 1 | AG47: =SUM((G$44:G$49=AB47)*(J$44:J$49<>"")*(I$44:I$49<>"")*(I$44:I$49<J$44:J$49),(I$44:I$49<>"")*(L$44:L$49=AB47)*(J$44:J$49<>"")*(I$44:I$49>J$44:J$49)) -> 2 | AH47: =SUM((G$44:G$49=AB47)*(I$44:I$49)*(J$44:J$49<>""),(L$44:L$49=AB47)*(J$44:J$49)*(I$44:I$49<>"")) -> 4 | AI47: =SUM((G$44:G$49=AB47)*(I$44:I$49<>"")*(J$44:J$49),(L$44:L$49=AB47)*(J$44:J$49<>"")*(I$44:I$49)) -> 6 | AJ47: =AH47-AI47 -> -2 | AM47: , | AO47: , | AP47: 2014-06-22T16:00:00
B48: 45 | C48: 2014-06-26T13:00:00 | D48: 2014-06-26T11:00:00 | E48: 41816.45833 | F48: Recife | G48: EEUU | I48: 0 | J48: 1 | L48: Alemania | N48: =LARGE($Z$45:$Z$48,O48) -> 9804.014225 | O48: 4 | P48: Ghana | Q48: 1 | R48: 3 | S48: 0 | T48: 1 | U48: 2 | V48: 4 | W48: 6 | X48: -2 | Z48: 40004.01464 | AA48: =IF(SUM(AD$45:AD$48)<>12,"",(SUMPRODUCT(((1000*AC48+10*AJ48+AH48)< (1000*(AC$45:AC$48)+10*(AJ$45:AJ$48)+(AH$45:AH$48)))+0)+1)) -> 2 | AB48: EEUU | AC48: =(AE48*3+AF48*1) -> 4 | AD48: =SUM(AE48:AG48) -> 3 | AE48: =SUM((G$44:G$49=AB48)*(I$44:I$49<>"")*(J$44:J$49<>"")*(I$44:I$49>J$44:J$49),(L$44:L$49=AB48)*(I$44:I$49<>"")*(J$44:J$49<>"")*(I$44:I$49<J$44:J$49)) -> 1 | AF48: =SUM((G$44:G$49=AB48)*(I$44:I$49<>"")*(I$44:I$49=J$44:J$49),(L$44:L$49=AB48)*(J$44:J$49<>"")*(I$44:I$49=J$44:J$49)) -> 1 | AG48: =SUM((G$44:G$49=AB48)*(J$44:J$49<>"")*(I$44:I$49<>"")*(I$44:I$49<J$44:J$49),(I$44:I$49<>"")*(L$44:L$49=AB48)*(J$44:J$49<>"")*(I$44:I$49>J$44:J$49)) -> 1 | AH48: =SUM((G$44:G$49=AB48)*(I$44:I$49)*(J$44:J$49<>""),(L$44:L$49=AB48)*(J$44:J$49)*(I$44:I$49<>"")) -> 4 | AI48: =SUM((G$44:G$49=AB48)*(I$44:I$49<>"")*(J$44:J$49),(L$44:L$49=AB48)*(J$44:J$49<>"")*(I$44:I$49)) -> 4 | AJ48: =AH48-AI48 -> 0 | AM48: , | AO48: , | AP48: 2014-06-26T11:00:00
B49: 46 | C49: 2014-06-26T13:00:00 | D49: 2014-06-26T11:00:00 | E49: 41816.45833 | F49: Brasilia | G49: Portugal | I49: 2 | J49: 1 | L49: Ghana | AM49: , | AO49: , | AP49: 2014-06-26T11:00:00
B50: 15 | C50: 2014-06-17T13:00:00 | D50: =C50+IF(rTimeDifIsItPositive,rTimeDifference,-rTimeDifference) -> 2014-06-17T11:00:00 | E50: =C50+IF(rTimeDifIsItPositive,rTimeDifference,-rTimeDifference) -> 41807.45833 | F50: Belo Horizonte | G50: Bélgica | I50: 2 | J50: 1 | L50: Argelia | O50: Pos | P50: EQUIPO | Q50: Pts. | R50: PJ | S50: G | T50: E | U50: P | V50: GF | W50: GC | X50: D | AA50: Pos | AB50: EQUIPO | AC50: Pts. | AD50: PJ | AE50: G | AF50: E | AG50: P | AH50: GF | AI50: GC | AJ50: D | AM50: , | AO50: , | AP50: 2014-06-17T11:00:00
B51: 16 | C51: 2014-06-17T18:00:00 | D51: 2014-06-17T16:00:00 | E51: 41807.66667 | F51: Cuiaba | G51: Rusia | I51: 1 | J51: 1 | L51: Corea Sur | N51: =LARGE($Z$51:$Z$54,O51) -> 90304.0152 | O51: 1 | P51: =VLOOKUP($N51,$Z$51:$AJ$54,3,0) -> Bélgica | Q51: =VLOOKUP($N51,$Z$51:$AJ$54,4,0) -> 9 | R51: =VLOOKUP($N51,$Z$51:$AJ$54,5,0) -> 3 | S51: =VLOOKUP($N51,$Z$51:$AJ$54,6,0) -> 3 | T51: =VLOOKUP($N51,$Z$51:$AJ$54,7,0) -> 0 | U51: =VLOOKUP($N51,$Z$51:$AJ$54,8,0) -> 0 | V51: =VLOOKUP($N51,$Z$51:$AJ$54,9,0) -> 4 | W51: =VLOOKUP($N51,$Z$51:$AJ$54,10,0) -> 1 | X51: =VLOOKUP($N51,$Z$51:$AJ$54,11,0) -> 3 | Z51: =AC51*10000+AJ51*100+AH51+1/(CODE(LEFT(UPPER(AB51),1)))+1/(CODE(MID(UPPER(AB51),2,1))*100)+1/(CODE(MID(UPPER(AB51),3,1))*10000) -> 90304.0152 | AA51: =IF(SUM(AD$51:AD$54)<>12,"",(SUMPRODUCT(((1000*AC51+10*AJ51+AH51)< (1000*(AC$51:AC$54)+10*(AJ$51:AJ$54)+(AH$51:AH$54)))+0)+1)) -> 1 | AB51: Bélgica | AC51: =(AE51*3+AF51*1) -> 9 | AD51: =SUM(AE51:AG51) -> 3 | AE51: =SUM((G$50:G$55=AB51)*(I$50:I$55<>"")*(J$50:J$55<>"")*(I$50:I$55>J$50:J$55),(L$50:L$55=AB51)*(I$50:I$55<>"")*(J$50:J$55<>"")*(I$50:I$55<J$50:J$55)) -> 3 | AF51: =SUM((G$50:G$55=AB51)*(I$50:I$55<>"")*(I$50:I$55=J$50:J$55),(L$50:L$55=AB51)*(J$50:J$55<>"")*(I$50:I$55=J$50:J$55)) -> 0 | AG51: =SUM((G$50:G$55=AB51)*(J$50:J$55<>"")*(I$50:I$55<>"")*(I$50:I$55<J$50:J$55),(I$50:I$55<>"")*(L$50:L$55=AB51)*(J$50:J$55<>"")*(I$50:I$55>J$50:J$55)) -> 0 | AH51: =SUM((G$50:G$55=AB51)*(I$50:I$55)*(J$50:J$55<>""),(L$50:L$55=AB51)*(J$50:J$55)*(I$50:I$55<>"")) -> 4 | AI51: =SUM((G$50:G$55=AB51)*(I$50:I$55<>"")*(J$50:J$55),(L$50:L$55=AB51)*(J$50:J$55<>"")*(I$50:I$55)) -> 1 | AJ51: =AH51-AI51 -> 3 | AM51: , | AO51: , | AP51: 2014-06-17T16:00:00
B52: 31 | C52: 2014-06-22T13:00:00 | D52: 2014-06-22T11:00:00 | E52: 41812.45833 | F52: Rio de Janeiro | G52: Bélgica | I52: 1 | J52: 0 | L52: Rusia | N52: =LARGE($Z$51:$Z$54,O52) -> 40106.01551 | O52: 2 | P52: =VLOOKUP($N52,$Z$51:$AJ$54,3,0) -> Argelia | Q52: =VLOOKUP($N52,$Z$51:$AJ$54,4,0) -> 4 | R52: =VLOOKUP($N52,$Z$51:$AJ$54,5,0) -> 3 | S52: =VLOOKUP($N52,$Z$51:$AJ$54,6,0) -> 1 | T52: =VLOOKUP($N52,$Z$51:$AJ$54,7,0) -> 1 | U52: =VLOOKUP($N52,$Z$51:$AJ$54,8,0) -> 1 | V52: =VLOOKUP($N52,$Z$51:$AJ$54,9,0) -> 6 | W52: =VLOOKUP($N52,$Z$51:$AJ$54,10,0) -> 5 | X52: =VLOOKUP($N52,$Z$51:$AJ$54,11,0) -> 1 | Z52: =AC52*10000+AJ52*100+AH52+1/(CODE(LEFT(UPPER(AB52),1)))+1/(CODE(MID(UPPER(AB52),2,1))*100)+1/(CODE(MID(UPPER(AB52),3,1))*10000) -> 40106.01551 | AA52: =IF(SUM(AD$51:AD$54)<>12,"",(SUMPRODUCT(((1000*AC52+10*AJ52+AH52)< (1000*(AC$51:AC$54)+10*(AJ$51:AJ$54)+(AH$51:AH$54)))+0)+1)) -> 2 | AB52: Argelia | AC52: =(AE52*3+AF52*1) -> 4 | AD52: =SUM(AE52:AG52) -> 3 | AE52: =SUM((G$50:G$55=AB52)*(I$50:I$55<>"")*(J$50:J$55<>"")*(I$50:I$55>J$50:J$55),(L$50:L$55=AB52)*(I$50:I$55<>"")*(J$50:J$55<>"")*(I$50:I$55<J$50:J$55)) -> 1 | AF52: =SUM((G$50:G$55=AB52)*(I$50:I$55<>"")*(I$50:I$55=J$50:J$55),(L$50:L$55=AB52)*(J$50:J$55<>"")*(I$50:I$55=J$50:J$55)) -> 1 | AG52: =SUM((G$50:G$55=AB52)*(J$50:J$55<>"")*(I$50:I$55<>"")*(I$50:I$55<J$50:J$55),(I$50:I$55<>"")*(L$50:L$55=AB52)*(J$50:J$55<>"")*(I$50:I$55>J$50:J$55)) -> 1 | AH52: =SUM((G$50:G$55=AB52)*(I$50:I$55)*(J$50:J$55<>""),(L$50:L$55=AB52)*(J$50:J$55)*(I$50:I$55<>"")) -> 6 | AI52: =SUM((G$50:G$55=AB52)*(I$50:I$55<>"")*(J$50:J$55),(L$50:L$55=AB52)*(J$50:J$55<>"")*(I$50:I$55)) -> 5 | AJ52: =AH52-AI52 -> 1 | AM52: , | AO52: , | AP52: 2014-06-22T11:00:00
B53: 32 | C53: 2014-06-22T16:00:00 | D53: 2014-06-22T14:00:00 | E53: 41812.58333 | F53: Porto Alegre | G53: Corea Sur | I53: 2 | J53: 4 | L53: Argelia | N53: =LARGE($Z$51:$Z$54,O53) -> 19902.01231 | O53: 3 | P53: Rusia | Q53: 2 | R53: 3 | S53: 0 | T53: 2 | U53: 1 | V53: 2 | W53: 3 | X53: -1 | Z53: 19902.01231 | AA53: =IF(SUM(AD$51:AD$54)<>12,"",(SUMPRODUCT(((1000*AC53+10*AJ53+AH53)< (1000*(AC$51:AC$54)+10*(AJ$51:AJ$54)+(AH$51:AH$54)))+0)+1)) -> 3 | AB53: Rusia | AC53: =(AE53*3+AF53*1) -> 2 | AD53: =SUM(AE53:AG53) -> 3 | AE53: =SUM((G$50:G$55=AB53)*(I$50:I$55<>"")*(J$50:J$55<>"")*(I$50:I$55>J$50:J$55),(L$50:L$55=AB53)*(I$50:I$55<>"")*(J$50:J$55<>"")*(I$50:I$55<J$50:J$55)) -> 0 | AF53: =SUM((G$50:G$55=AB53)*(I$50:I$55<>"")*(I$50:I$55=J$50:J$55),(L$50:L$55=AB53)*(J$50:J$55<>"")*(I$50:I$55=J$50:J$55)) -> 2 | AG53: =SUM((G$50:G$55=AB53)*(J$50:J$55<>"")*(I$50:I$55<>"")*(I$50:I$55<J$50:J$55),(I$50:I$55<>"")*(L$50:L$55=AB53)*(J$50:J$55<>"")*(I$50:I$55>J$50:J$55)) -> 1 | AH53: =SUM((G$50:G$55=AB53)*(I$50:I$55)*(J$50:J$55<>""),(L$50:L$55=AB53)*(J$50:J$55)*(I$50:I$55<>"")) -> 2 | AI53: =SUM((G$50:G$55=AB53)*(I$50:I$55<>"")*(J$50:J$55),(L$50:L$55=AB53)*(J$50:J$55<>"")*(I$50:I$55)) -> 3 | AJ53: =AH53-AI53 -> -1 | AM53: , | AO53: , | AP53: 2014-06-22T14:00:00
B54: 47 | C54: 2014-06-26T17:00:00 | D54: 2014-06-26T15:00:00 | E54: 41816.625 | F54: Sao Paulo | G54: Corea Sur | I54: 0 | J54: 1 | L54: Bélgica | N54: =LARGE($Z$51:$Z$54,O54) -> 9703.015053 | O54: 4 | P54: Corea Sur | Q54: 1 | R54: 3 | S54: 0 | T54: 1 | U54: 2 | V54: 3 | W54: 6 | X54: -3 | Z54: 9703.015053 | AA54: =IF(SUM(AD$51:AD$54)<>12,"",(SUMPRODUCT(((1000*AC54+10*AJ54+AH54)< (1000*(AC$51:AC$54)+10*(AJ$51:AJ$54)+(AH$51:AH$54)))+0)+1)) -> 4 | AB54: Corea Sur | AC54: =(AE54*3+AF54*1) -> 1 | AD54: =SUM(AE54:AG54) -> 3 | AE54: =SUM((G$50:G$55=AB54)*(I$50:I$55<>"")*(J$50:J$55<>"")*(I$50:I$55>J$50:J$55),(L$50:L$55=AB54)*(I$50:I$55<>"")*(J$50:J$55<>"")*(I$50:I$55<J$50:J$55)) -> 0 | AF54: =SUM((G$50:G$55=AB54)*(I$50:I$55<>"")*(I$50:I$55=J$50:J$55),(L$50:L$55=AB54)*(J$50:J$55<>"")*(I$50:I$55=J$50:J$55)) -> 1 | AG54: =SUM((G$50:G$55=AB54)*(J$50:J$55<>"")*(I$50:I$55<>"")*(I$50:I$55<J$50:J$55),(I$50:I$55<>"")*(L$50:L$55=AB54)*(J$50:J$55<>"")*(I$50:I$55>J$50:J$55)) -> 2 | AH54: =SUM((G$50:G$55=AB54)*(I$50:I$55)*(J$50:J$55<>""),(L$50:L$55=AB54)*(J$50:J$55)*(I$50:I$55<>"")) -> 3 | AI54: =SUM((G$50:G$55=AB54)*(I$50:I$55<>"")*(J$50:J$55),(L$50:L$55=AB54)*(J$50:J$55<>"")*(I$50:I$55)) -> 6 | AJ54: =AH54-AI54 -> -3 | AM54: , | AO54: , | AP54: 2014-06-26T15:00:00
B55: 48 | C55: 2014-06-26T17:00:00 | D55: 2014-06-26T15:00:00 | E55: 41816.625 | F55: Curitiba | G55: Argelia | I55: 1 | J55: 1 | L55: Rusia | AM55: , | AO55: , | AP55: 2014-06-26T15:00:00
AA57: Pos | AB57: EQUIPO | AC57: Pts. | AD57: PJ | AE57: G | AF57: E | AG57: P | AH57: GF | AI57: GC | AJ57: D
AA58: =IF($AD58=0,"",IF(COUNTIF(AB$76:AB$83,$AB58),INDEX(AA$76:AA$83,MATCH($AB58,AB$76:AB$83,0)),(SUMPRODUCT(((1000*AD58*AE58+30*AH58-20*AI58+AJ58)<(1000*(AD$58:AD$73)*(AE$58:AE$73)+30*(AH$58:AH$73)-20*(AI$58:AI$73)+(AJ$58:AJ$73)))+0)+1))) -> 11 | AB58: =IF(LEFT($L$64,1)="2","-",$L$64) -> México | AD58: =IF(AB58="-",0,IF(COUNTIF($G$78:$L$81,AB58),1,IF(COUNTIF($G$62:$G$69,AB58)=1,IF(COUNTIF($G$78:$L$81,VLOOKUP(AB58,$G$62:$L$69,6,FALSE))=1,1,0),IF(COUNTIF($G$78:$L$81,INDEX($G$62:$G$69,MATCH(AB58,$L$62:$L$69,0),1))=1,1,0)))) -> 1 | AE58: =IF($AD58=1,IF(COUNTIF($G$62:$G$69,$AB58)=1,IF(((VLOOKUP($AB58,$G$62:$K$69,2,FALSE)+VLOOKUP($AB58,$G$62:$K$69,3,FALSE)))>(VLOOKUP($AB58,$G$62:$K$69,4,FALSE)+VLOOKUP($AB58,$G$62:$K$69,5,FALSE)),1,0),IF((INDEX($H$62:$H$69,MATCH($AB58,$L$62:$L$69,0))+INDEX($I$62:$I$69,MATCH($AB58,$L$62:$L$69,0)))>(INDEX($J$62:$J$69,MATCH($AB58,$L$62:$L$69,0))+INDEX($K$62:$K$69,MATCH($AB58,$L$62:$L$69,0))),0,1)),0) -> 0 | AG58: =ABS(AD58-AE58) -> 1 | AH58: =IF($AD58=1,IF(COUNTIF($G$62:$G$69,$AB58)=1,VLOOKUP($AB58,$G$62:$J$69,3,FALSE),INDEX($J$62:$J$69,MATCH($AB58,$L$62:$L$69,0),1)),0) -> 1 | AI58: =IF($AD58=1,IF(COUNTIF($G$62:$G$69,$AB58)=1,VLOOKUP($AB58,$G$62:$J$69,4,FALSE),INDEX($I$62:$I$69,MATCH($AB58,$L$62:$L$69,0),1)),0) -> 2 | AJ58: =IF($AD58=1,IF(COUNTIF($G$62:$G$69,$AB58)=1,VLOOKUP($AB58,$G$62:$K$69,2,FALSE),INDEX($K$62:$K$69,MATCH($AB58,$L$62:$L$69,0),1)),0)+AH58-AI58-IF($AD58=1,IF(COUNTIF($G$62:$G$69,$AB58)=1,VLOOKUP($AB58,$G$62:$K$69,5,FALSE),INDEX($H$62:$H$69,MATCH($AB58,$L$62:$L$69,0),1)),0) -> -1
AA59: =IF($AD59=0,"",IF(COUNTIF(AB$76:AB$83,$AB59),INDEX(AA$76:AA$83,MATCH($AB59,AB$76:AB$83,0)),(SUMPRODUCT(((1000*AD59*AE59+30*AH59-20*AI59+AJ59)<(1000*(AD$58:AD$73)*(AE$58:AE$73)+30*(AH$58:AH$73)-20*(AI$58:AI$73)+(AJ$58:AJ$73)))+0)+1))) -> 4 | AB59: =IF(LEFT($G$62,1)="1","-",$G$62) -> Brasil | AD59: 1 | AE59: 1 | AG59: 0 | AH59: 1 | AI59: 1 | AJ59: 1
AA60: 6 | AB60: =IF(LEFT($G$63,1)="1","-",$G$63) -> Colombia | AD60: 1 | AE60: 1 | AG60: 0 | AH60: 2 | AI60: 0 | AJ60: 2
B61: Partido | C61: Fecha y Hora Local (Brasil) | D61: FECHA | E61: HORA | F61: Sede | G61: Octavos de final | AA61: 1 | AB61: =IF(LEFT($G$67,1)="1","-",$G$67) -> Alemania | AD61: 1 | AE61: 1 | AG61: 0 | AH61: 2 | AI61: 1 | AJ61: 1
B62: 49 | C62: 2014-06-28T13:00:00 | D62: =C62+IF(rTimeDifIsItPositive,rTimeDifference,-rTimeDifference) -> 2014-06-28T11:00:00 | E62: =C62+IF(rTimeDifIsItPositive,rTimeDifference,-rTimeDifference) -> 41818.45833 | F62: Belo Horizonte | G62: =IF(SUM(AD$9:AD$12)=12,VLOOKUP(1,$AA$9:$AB$12,2,FALSE),"1A") -> Brasil | H62: 3 | I62: 1 | J62: 1 | K62: 2 | L62: =IF(SUM(AD$15:AD$18)=12,IF(COUNTIF($AA$15:$AA$18,1)>=2,(VLOOKUP(1,INDIRECT(ADDRESS(ROW(AA$15:AA$18)+MATCH(1,(AA$15:AA$18),0),COLUMN($AA$8))&":" & ADDRESS(ROW($AB$18),COLUMN($AB$18))),2,FALSE)),VLOOKUP(2,$AA$15:$AB$18,2,FALSE)),"2B") -> Chile | AA62: 10 | AB62: =IF(LEFT($L$65,1)="2","-",$L$65) -> Grecia | AD62: 1 | AE62: 0 | AG62: 1 | AH62: 1 | AI62: 1 | AJ62: -2
B63: 50 | C63: 2014-06-28T17:00:00 | D63: 2014-06-28T15:00:00 | E63: 41818.625 | F63: Rio de Janeiro | G63: =IF(SUM(AD$21:$AD24)=12,VLOOKUP(1,$AA$21:$AB$24,2,FALSE),"1C") -> Colombia | I63: 2 | J63: 0 | L63: =IF(SUM(AD$27:AD$30)=12,IF(COUNTIF($AA$27:$AA$30,1)>=2,(VLOOKUP(1,INDIRECT(ADDRESS(ROW(AA$27:AA$30)+MATCH(1,(AA$27:AA$30),0),COLUMN($AA$8))&":" & ADDRESS(ROW($AB$30),COLUMN($AB$30))),2,FALSE)),VLOOKUP(2,$AA$27:$AB$30,2,FALSE)),"2D") -> Uruguay | AA63: 15 | AB63: =IF(LEFT($L$66,1)="2","-",$L$66) -> Nigeria | AD63: 1 | AE63: 0 | AG63: 1 | AH63: 0 | AI63: 2 | AJ63: -2
B64: 51 | C64: 2014-06-29T13:00:00 | D64: 2014-06-29T11:00:00 | E64: 41819.45833 | F64: Fortaleza | G64: =IF(SUM(AD$15:AD$18)=12,VLOOKUP(1,$AA$15:$AB$18,2,FALSE),"1B") -> Holanda | I64: 2 | J64: 1 | L64: =IF(SUM(AD$9:AD$12)=12,IF(COUNTIF($AA$9:$AA$12,1)>=2,(VLOOKUP(1,INDIRECT(ADDRESS(ROW(AA$9:AA$12)+MATCH(1,(AA$9:AA$12),0),COLUMN($AA$8))&":" & ADDRESS(ROW($AB$12),COLUMN($AB$12))),2,FALSE)),VLOOKUP(2,$AA$9:$AB$12,2,FALSE)),"2A") -> México | AA64: 11 | AB64: =IF(LEFT($L$69,1)="2","-",$L$69) -> EEUU | AD64: 1 | AE64: 0 | AG64: 1 | AH64: 1 | AI64: 2 | AJ64: -1
B65: 52 | C65: 2014-06-29T17:00:00 | D65: 2014-06-29T15:00:00 | E65: 41819.625 | F65: Recife | G65: =IF(SUM(AD$27:AD$30)=12,VLOOKUP(1,$AA$27:$AB$30,2,FALSE),"1D") -> Costa Rica | H65: 5 | I65: 1 | J65: 1 | K65: 3 | L65: =IF(SUM(AD$21:AD$24)=12,IF(COUNTIF($AA$21:$AA$24,1)>=2,(VLOOKUP(1,INDIRECT(ADDRESS(ROW(AA$21:AA$24)+MATCH(1,(AA$21:AA$24),0),COLUMN($AA$8))&":" & ADDRESS(ROW($AB$24),COLUMN($AB$24))),2,FALSE)),VLOOKUP(2,$AA$21:$AB$24,2,FALSE)),"2C") -> Grecia | AA65: 2 | AB65: =IF(LEFT($G$68,1)="1","-",$G$68) -> Argentina | AD65: 1 | AE65: 1 | AG65: 0 | AH65: 1 | AI65: 0 | AJ65: 1
B66: 53 | C66: 2014-06-30T13:00:00 | D66: 2014-06-30T11:00:00 | E66: 41820.45833 | F66: Brasilia | G66: =IF(SUM(AD$33:AD$36)=12,VLOOKUP(1,$AA$33:$AB$36,2,FALSE),"1E") -> Francia | I66: 2 | J66: 0 | L66: =IF(SUM(AD$39:AD$42)=12,IF(COUNTIF($AA$39:$AA$42,1)>=2,(VLOOKUP(1,INDIRECT(ADDRESS(ROW(AA$39:AA$42)+MATCH(1,(AA$39:AA$42),0),COLUMN($AA$8))&":" & ADDRESS(ROW($AB$42),COLUMN($AB$42))),2,FALSE)),VLOOKUP(2,$AA$39:$AB$42,2,FALSE)),"2F") -> Nigeria | AA66: 5 | AB66: =IF(LEFT($G$65,1)="1","-",$G$65) -> Costa Rica | AD66: 1 | AE66: 1 | AG66: 0 | AH66: 1 | AI66: 1 | AJ66: 2
B67: 54 | C67: 2014-06-30T17:00:00 | D67: 2014-06-30T15:00:00 | E67: 41820.625 | F67: Porto Alegre | G67: =IF(SUM(AD$45:AD$48)=12,VLOOKUP(1,$AA$45:$AB$48,2,FALSE),"1G") -> Alemania | I67: 2 | J67: 1 | L67: =IF(SUM(AD$51:AD$54)=12,IF(COUNTIF($AA$51:$AA$54,1)>=2,(VLOOKUP(1,INDIRECT(ADDRESS(ROW(AA$51:AA$54)+MATCH(1,(AA$51:AA$54),0),COLUMN($AA$8))&":" & ADDRESS(ROW($AB$54),COLUMN($AB$54))),2,FALSE)),VLOOKUP(2,$AA$51:$AB$54,2,FALSE)),"2H") -> Argelia | AA67: 3 | AB67: =IF(LEFT($G$64,1)="1","-",$G$64) -> Holanda | AD67: 1 | AE67: 1 | AG67: 0 | AH67: 2 | AI67: 1 | AJ67: 1
B68: 55 | C68: 2014-07-01T13:00:00 | D68: 2014-07-01T11:00:00 | E68: 41821.45833 | F68: Sao Paulo | G68: =IF(SUM(AD$39:AD$42)=12,VLOOKUP(1,$AA$39:$AB$42,2,FALSE),"1F") -> Argentina | I68: 1 | J68: 0 | L68: =IF(SUM(AD$33:AD$36)=12,IF(COUNTIF($AA$33:$AA$36,1)>=2,(VLOOKUP(1,INDIRECT(ADDRESS(ROW(AA$33:AA$36)+MATCH(1,(AA$33:AA$36),0),COLUMN($AA$8))&":" & ADDRESS(ROW($AB$36),COLUMN($AB$36))),2,FALSE)),VLOOKUP(2,$AA$33:$AB$36,2,FALSE)),"2E") -> Suiza | AA68: 7 | AB68: =IF(LEFT($G$66,1)="1","-",$G$66) -> Francia | AD68: 1 | AE68: 1 | AG68: 0 | AH68: 2 | AI68: 0 | AJ68: 2
B69: 56 | C69: 2014-07-01T17:00:00 | D69: 2014-07-01T15:00:00 | E69: 41821.625 | F69: Salvador | G69: =IF(SUM(AD$51:AD$54)=12,VLOOKUP(1,$AA$51:$AB$54,2,FALSE),"1H") -> Bélgica | I69: 2 | J69: 1 | L69: =IF(SUM(AD$45:AD$48)=12,IF(COUNTIF($AA$45:$AA$48,1)>=2,(VLOOKUP(1,INDIRECT(ADDRESS(ROW(AA$45:AA$48)+MATCH(1,(AA$45:AA$48),0),COLUMN($AA$8))&":" & ADDRESS(ROW($AB$48),COLUMN($AB$48))),2,FALSE)),VLOOKUP(2,$AA$45:$AB$48,2,FALSE)),"2G") -> EEUU | AA69: 7 | AB69: =IF(LEFT($G$69,1)="1","-",$G$69) -> Bélgica | AD69: 1 | AE69: 1 | AG69: 0 | AH69: 2 | AI69: 1 | AJ69: 1
AA70: 9 | AB70: =IF(LEFT($L$62,1)="2","-",$L$62) -> Chile | AD70: 1 | AE70: 0 | AG70: 1 | AH70: 1 | AI70: 1 | AJ70: -1
AA71: 15 | AB71: =IF(LEFT($L$63,1)="2","-",$L$63) -> Uruguay | AD71: 1 | AE71: 0 | AG71: 1 | AH71: 0 | AI71: 2 | AJ71: -2
AA72: 11 | AB72: =IF(LEFT($L$67,1)="2","-",$L$67) -> Argelia | AD72: 1 | AE72: 0 | AG72: 1 | AH72: 1 | AI72: 2 | AJ72: -1
AA73: 14 | AB73: =IF(LEFT($L$68,1)="2","-",$L$68) -> Suiza | AD73: 1 | AE73: 0 | AG73: 1 | AH73: 0 | AI73: 1 | AJ73: -1
AA75: Pos | AB75: EQUIPO | AC75: Pts. | AD75: PJ | AE75: G | AF75: E | AG75: P | AH75: GF | AI75: GC | AJ75: D
AA76: =IF(COUNTIF(AB$86:AB$89,$AB76),INDEX(AA$86:AA$89,MATCH($AB76,AB$86:AB$89,0)),IF($AD76=0,"",(SUMPRODUCT(((1000*AD76*AE76+30*AH76-20*AI76+AJ76)<(1000*(AD$76:AD$83)*(AE$76:AE$83)+30*(AH$76:AH$83)-20*(AI$76:AI$83)+(AJ$76:AJ$83)))+0)+1))) -> 4 | AB76: =IF(LEFT($G$78,3)="G49","-",$G$78) -> Brasil | AD76: =IF(AB76="-",0,IF(COUNTIF($G$87:$L$88,AB76),1,IF(COUNTIF($G$78:$G$81,AB76)=1,IF(COUNTIF($G$87:$L$88,VLOOKUP(AB76,$G$78:$L$81,6,FALSE))=1,1,0),IF(COUNTIF($G$87:$L$88,INDEX($G$78:$G$81,MATCH(AB76,$L$78:$L$81,0),1))=1,1,0)))) -> 1 | AE76: =IF($AD76=1,IF(COUNTIF($G$78:$G$81,$AB76)=1,IF(((VLOOKUP($AB76,$G$78:$K$81,2,FALSE)+VLOOKUP($AB76,$G$78:$K$81,3,FALSE)))>(VLOOKUP($AB76,$G$78:$K$81,4,FALSE)+VLOOKUP($AB76,$G$78:$K$81,5,FALSE)),1,0),IF((INDEX($H$78:$H$81,MATCH($AB76,$L$78:$L$81,0))+INDEX($I$78:$I$81,MATCH($AB76,$L$78:$L$81,0)))>(INDEX($J$78:$J$81,MATCH($AB76,$L$78:$L$81,0))+INDEX($K$78:$K$81,MATCH($AB76,$L$78:$L$81,0))),0,1)),0) -> 1 | AG76: =ABS(AD76-AE76) -> 0 | AH76: =IF($AD76=1,IF(COUNTIF($G$78:$G$81,$AB76)=1,VLOOKUP($AB76,$G$78:$J$81,3,FALSE),INDEX($J$78:$J$81,MATCH($AB76,$L$78:$L$81,0),1)),0) -> 2 | AI76: =IF($AD76=1,IF(COUNTIF($G$78:$G$81,$AB76)=1,VLOOKUP($AB76,$G$78:$J$81,4,FALSE),INDEX($I$78:$I$81,MATCH($AB76,$L$78:$L$81,0),1)),0) -> 1 | AJ76: =IF($AD76=1,IF(COUNTIF($G$78:$G$81,$AB76)=1,VLOOKUP($AB76,$G$78:$K$81,2,FALSE),INDEX($K$78:$K$81,MATCH($AB76,$L$78:$L$81,0),1)),0)+AH76-AI76-IF($AD76=1,IF(COUNTIF($G$78:$G$81,$AB76)=1,VLOOKUP($AB76,$G$78:$K$81,5,FALSE),INDEX($H$78:$H$81,MATCH($AB76,$L$78:$L$81,0),1)),0) -> 1
B77: Partido | C77: Fecha y Hora Local (Brasil) | D77: FECHA | E77: HORA | F77: Sede | G77: Cuartos de final | AA77: 7 | AB77: =IF(LEFT($G$79,3)="G53","-",$G$79) -> Francia | AD77: 1 | AE77: =IF($AD77=1,IF(COUNTIF($G$78:$G$81,$AB77)=1,IF(((VLOOKUP($AB77,$G$78:$K$81,2,FALSE)+VLOOKUP($AB77,$G$78:$K$81,3,FALSE)))>(VLOOKUP($AB77,$G$78:$K$81,4,FALSE)+VLOOKUP($AB77,$G$78:$K$81,5,FALSE)),1,0),IF((INDEX($H$78:$H$81,MATCH($AB77,$L$78:$L$81,0))+INDEX($I$78:$I$81,MATCH($AB77,$L$78:$L$81,0)))>(INDEX($J$78:$J$81,MATCH($AB77,$L$78:$L$81,0))+INDEX($K$78:$K$81,MATCH($AB77,$L$78:$L$81,0))),0,1)),0) -> 0 | AG77: 1 | AH77: 0 | AI77: 1 | AJ77: -1
B78: 57 | C78: 2014-07-04T17:00:00 | D78: =C78+IF(rTimeDifIsItPositive,rTimeDifference,-rTimeDifference) -> 2014-07-04T15:00:00 | E78: =C78+IF(rTimeDifIsItPositive,rTimeDifference,-rTimeDifference) -> 41824.625 | F78: Fortaleza | G78: =IF((OR(LEFT(G62,1)="1",LEFT(L62,)="2")),"G49",IF(AND(COUNT(H62:K62)=4,I62=J62,H62<>K62),IF(H62+I62>J62+K62,G62,L62),IF(AND(COUNT(H62:K62)=2,H62&K62="",I62<>J62),IF(I62>J62,G62,L62),"G49"))) -> Brasil | I78: 2 | J78: 1 | L78: =IF((OR(LEFT(G63,1)="1",LEFT(L63,)="2")),"G50",IF(AND(COUNT(H63:K63)=4,I63=J63,H63<>K63),IF(H63+I63>J63+K63,G63,L63),IF(AND(COUNT(H63:K63)=2,H63&K63="",I63<>J63),IF(I63>J63,G63,L63),"G50"))) -> Colombia | AA78: 3 | AB78: =IF(LEFT($G$80,3)="G51","-",$G$80) -> Holanda | AD78: 1 | AE78: 1 | AG78: 0 | AH78: 0 | AI78: 0 | AJ78: 1
B79: 58 | C79: 2014-07-04T13:00:00 | D79: =C79+IF(rTimeDifIsItPositive,rTimeDifference,-rTimeDifference) -> 2014-07-04T11:00:00 | E79: =C79+IF(rTimeDifIsItPositive,rTimeDifference,-rTimeDifference) -> 41824.45833 | F79: Rio de Janeiro | G79: =IF((OR(LEFT(G66,1)="1",LEFT(L66,)="2")),"G53",IF(AND(COUNT(H66:K66)=4,I66=J66,H66<>K66),IF(H66+I66>J66+K66,G66,L66),IF(AND(COUNT(H66:K66)=2,H66&K66="",I66<>J66),IF(I66>J66,G66,L66),"G53"))) -> Francia | I79: 0 | J79: 1 | L79: =IF((OR(LEFT(G67,1)="1",LEFT(L67,)="2")),"G54",IF(AND(COUNT(H67:K67)=4,I67=J67,H67<>K67),IF(H67+I67>J67+K67,G67,L67),IF(AND(COUNT(H67:K67)=2,H67&K67="",I67<>J67),IF(I67>J67,G67,L67),"G54"))) -> Alemania | AA79: 2 | AB79: =IF(LEFT($G$81,3)="G55","-",$G$81) -> Argentina | AD79: 1 | AE79: 1 | AG79: 0 | AH79: 1 | AI79: 0 | AJ79: 1
B80: 59 | C80: 2014-07-05T17:00:00 | D80: =C80+IF(rTimeDifIsItPositive,rTimeDifference,-rTimeDifference) -> 2014-07-05T15:00:00 | E80: =C80+IF(rTimeDifIsItPositive,rTimeDifference,-rTimeDifference) -> 41825.625 | F80: Salvador | G80: =IF((OR(LEFT(G64,1)="1",LEFT(L64,)="2")),"G51",IF(AND(COUNT(H64:K64)=4,I64=J64,H64<>K64),IF(H64+I64>J64+K64,G64,L64),IF(AND(COUNT(H64:K64)=2,H64&K64="",I64<>J64),IF(I64>J64,G64,L64),"G51"))) -> Holanda | H80: 4 | I80: 0 | J80: 0 | K80: 3 | L80: =IF((OR(LEFT(G65,1)="1",LEFT(L65,)="2")),"G52",IF(AND(COUNT(H65:K65)=4,I65=J65,H65<>K65),IF(H65+I65>J65+K65,G65,L65),IF(AND(COUNT(H65:K65)=2,H65&K65="",I65<>J65),IF(I65>J65,G65,L65),"G52"))) -> Costa Rica | AA80: 6 | AB80: =IF(LEFT($L$78,3)="G50","-",$L$78) -> Colombia | AD80: 1 | AE80: 0 | AG80: 1 | AH80: 1 | AI80: 2 | AJ80: -1
B81: 60 | C81: 2014-07-05T13:00:00 | D81: =C81+IF(rTimeDifIsItPositive,rTimeDifference,-rTimeDifference) -> 2014-07-05T11:00:00 | E81: =C81+IF(rTimeDifIsItPositive,rTimeDifference,-rTimeDifference) -> 41825.45833 | F81: Brasilia | G81: =IF((OR(LEFT(G68,1)="1",LEFT(L68,)="2")),"G55",IF(AND(COUNT(H68:K68)=4,I68=J68,H68<>K68),IF(H68+I68>J68+K68,G68,L68),IF(AND(COUNT(H68:K68)=2,H68&K68="",I68<>J68),IF(I68>J68,G68,L68),"G55"))) -> Argentina | I81: 1 | J81: 0 | L81: =IF((OR(LEFT(G69,1)="1",LEFT(L69,)="2")),"G56",IF(AND(COUNT(H69:K69)=4,I69=J69,H69<>K69),IF(H69+I69>J69+K69,G69,L69),IF(AND(COUNT(H69:K69)=2,H69&K69="",I69<>J69),IF(I69>J69,G69,L69),"G56"))) -> Bélgica | AA81: 1 | AB81: =IF(LEFT($L$79,3)="G54","-",$L$79) -> Alemania | AD81: 1 | AE81: 1 | AG81: 0 | AH81: 1 | AI81: 0 | AJ81: 1
AA82: 5 | AB82: =IF(LEFT($L$80,3)="G52","-",$L$80) -> Costa Rica | AD82: 1 | AE82: 0 | AG82: 1 | AH82: 0 | AI82: 0 | AJ82: -1
AA83: 7 | AB83: =IF(LEFT($L$81,3)="G56","-",$L$81) -> Bélgica | AD83: 1 | AE83: 0 | AG83: 1 | AH83: 0 | AI83: 1 | AJ83: -1
AA85: Pos | AB85: EQUIPO | AC85: Pts. | AD85: PJ | AE85: G | AF85: E | AG85: P | AH85: GF | AI85: GC | AJ85: D
B86: Partido | C86: Fecha y Hora Local (Brasil) | D86: FECHA | E86: HORA | F86: Sede | G86: Semifinales | AA86: =IF($AD86=0,"",INDEX(AA$92:AA$98,MATCH($AB86,AB$92:AB$98,0))) -> 4 | AB86: =IF(LEFT($G$87,3)="G57","-",$G$87) -> Brasil | AD86: =IF(AB86="-",0,IF(COUNTIF($G$98:$L$98,AB86),1,IF(COUNTIF($G$87:$G$88,AB86)=1,IF(COUNTIF($G$98:$L$98,VLOOKUP(AB86,$G$87:$L$88,6,FALSE))=1,1,0),IF(COUNTIF($G$98:$L$98,INDEX($G$87:$G$88,MATCH(AB86,$L$87:$L$88,0),1))=1,1,0)))) -> 1 | AE86: =IF($AD86=1,IF(COUNTIF($G$87:$G$88,$AB86)=1,IF(((VLOOKUP($AB86,$G$87:$K$88,2,FALSE)+VLOOKUP($AB86,$G$87:$K$88,3,FALSE)))>(VLOOKUP($AB86,$G$87:$K$88,4,FALSE)+VLOOKUP($AB86,$G$87:$K$88,5,FALSE)),1,0),IF((INDEX($H$87:$H$88,MATCH($AB86,$L$87:$L$88,0))+INDEX($I$87:$I$88,MATCH($AB86,$L$87:$L$88,0)))>(INDEX($J$87:$J$88,MATCH($AB86,$L$87:$L$88,0))+INDEX($K$87:$K$88,MATCH($AB86,$L$87:$L$88,0))),0,1)),0) -> 0 | AG86: =ABS(AD86-AE86) -> 1 | AH86: =IF($AD86=1,IF(COUNTIF($G$87:$G$88,$AB86)=1,VLOOKUP($AB86,$G$87:$J$88,3,FALSE),INDEX($J$87:$J$88,MATCH($AB86,$L$87:$L$88,0),1)),0) -> 1 | AI86: =IF($AD86=1,IF(COUNTIF($G$87:$G$88,$AB86)=1,VLOOKUP($AB86,$G$87:$J$88,4,FALSE),INDEX($I$87:$I$88,MATCH($AB86,$L$87:$L$88,0),1)),0) -> 7 | AJ86: =IF($AD86=1,IF(COUNTIF($G$87:$G$88,$AB86)=1,VLOOKUP($AB86,$G87:$K$88,2,FALSE),INDEX($K$87:$K$88,MATCH($AB86,$L$87:$L$88,0),1)),0)+AH86-AI86-IF($AD86=1,IF(COUNTIF($G$87:$G$88,$AB86)=1,VLOOKUP($AB86,$G$87:$K$88,5,FALSE),INDEX($H$87:$H$88,MATCH($AB86,$L$87:$L$88,0),1)),0) -> -6
B87: 61 | C87: 2014-07-08T17:00:00 | D87: =C87+IF(rTimeDifIsItPositive,rTimeDifference,-rTimeDifference) -> 2014-07-08T15:00:00 | E87: =C87+IF(rTimeDifIsItPositive,rTimeDifference,-rTimeDifference) -> 41828.625 | F87: Belo Horizonte | G87: =IF(OR(LEFT(G78,3)="G49",LEFT(L78,3)="G50"),"G57",IF(AND(COUNT(H78:K78)=4,I78=J78,H78<>K78),IF(H78+I78>J78+K78,G78,L78),IF(AND(COUNT(H78:K78)=2,H78&K78="",I78<>J78),IF(I78>J78,G78,L78),"G57"))) -> Brasil | I87: 1 | J87: 7 | L87: =IF(OR(LEFT(G79,3)="G53",LEFT(L79,3)="G54"),"G58",IF(AND(COUNT(H79:K79)=4,I79=J79,H79<>K79),IF(H79+I79>J79+K79,G79,L79),IF(AND(COUNT(H79:K79)=2,H79&K79="",I79<>J79),IF(I79>J79,G79,L79),"G58"))) -> Alemania | AA87: =IF($AD87=0,"",INDEX(AA$92:AA$98,MATCH($AB87,AB$92:AB$98,0))) -> 3 | AB87: =IF(LEFT($G$88,3)="G59","-",$G$88) -> Holanda | AD87: =IF(AB87="-",0,IF(COUNTIF($G$98:$L$98,AB87),1,IF(COUNTIF($G$87:$G$88,AB87)=1,IF(COUNTIF($G$98:$L$98,VLOOKUP(AB87,$G$87:$L$88,6,FALSE))=1,1,0),IF(COUNTIF($G$98:$L$98,INDEX($G$87:$G$88,MATCH(AB87,$L$87:$L$88,0),1))=1,1,0)))) -> 1 | AE87: =IF($AD87=1,IF(COUNTIF($G$87:$G$88,$AB87)=1,IF(((VLOOKUP($AB87,$G$87:$K$88,2,FALSE)+VLOOKUP($AB87,$G$87:$K$88,3,FALSE)))>(VLOOKUP($AB87,$G$87:$K$88,4,FALSE)+VLOOKUP($AB87,$G$87:$K$88,5,FALSE)),1,0),IF((INDEX($H$87:$H$88,MATCH($AB87,$L$87:$L$88,0))+INDEX($I$87:$I$88,MATCH($AB87,$L$87:$L$88,0)))>(INDEX($J$87:$J$88,MATCH($AB87,$L$87:$L$88,0))+INDEX($K$87:$K$88,MATCH($AB87,$L$87:$L$88,0))),0,1)),0) -> 0 | AG87: =ABS(AD87-AE87) -> 1 | AH87: =IF($AD87=1,IF(COUNTIF($G$87:$G$88,$AB87)=1,VLOOKUP($AB87,$G$87:$J$88,3,FALSE),INDEX($J$87:$J$88,MATCH($AB87,$L$87:$L$88,0),1)),0) -> 0 | AI87: =IF($AD87=1,IF(COUNTIF($G$87:$G$88,$AB87)=1,VLOOKUP($AB87,$G$87:$J$88,4,FALSE),INDEX($I$87:$I$88,MATCH($AB87,$L$87:$L$88,0),1)),0) -> 0 | AJ87: =IF($AD87=1,IF(COUNTIF($G$87:$G$88,$AB87)=1,VLOOKUP($AB87,$G88:$K$88,2,FALSE),INDEX($K$87:$K$88,MATCH($AB87,$L$87:$L$88,0),1)),0)+AH87-AI87-IF($AD87=1,IF(COUNTIF($G$87:$G$88,$AB87)=1,VLOOKUP($AB87,$G$87:$K$88,5,FALSE),INDEX($H$87:$H$88,MATCH($AB87,$L$87:$L$88,0),1)),0) -> -2
B88: 62 | C88: 2014-07-09T17:00:00 | D88: =C88+IF(rTimeDifIsItPositive,rTimeDifference,-rTimeDifference) -> 2014-07-09T15:00:00 | E88: =C88+IF(rTimeDifIsItPositive,rTimeDifference,-rTimeDifference) -> 41829.625 | F88: Sao Paulo | G88: =IF(OR(LEFT(G80,3)="G51",LEFT(L80,3)="G52"),"G59",IF(AND(COUNT(H80:K80)=4,I80=J80,H80<>K80),IF(H80+I80>J80+K80,G80,L80),IF(AND(COUNT(H80:K80)=2,H80&K80="",I80<>J80),IF(I80>J80,G80,L80),"G59"))) -> Holanda | H88: 2 | I88: 0 | J88: 0 | K88: 4 | L88: =IF(OR(LEFT(G81,3)="G55",LEFT(L81,3)="G56"),"G60",IF(AND(COUNT(H81:K81)=4,I81=J81,H81<>K81),IF(H81+I81>J81+K81,G81,L81),IF(AND(COUNT(H81:K81)=2,H81&K81="",I81<>J81),IF(I81>J81,G81,L81),"G60"))) -> Argentina | AA88: =IF($AD88=0,"",INDEX(AA$92:AA$98,MATCH($AB88,AB$92:AB$98,0))) -> 1 | AB88: =IF(LEFT($L$87,3)="G58","-",$L$87) -> Alemania | AD88: =IF(AB88="-",0,IF(COUNTIF($G$98:$L$98,AB88),1,IF(COUNTIF($G$87:$G$88,AB88)=1,IF(COUNTIF($G$98:$L$98,VLOOKUP(AB88,$G$87:$L$88,6,FALSE))=1,1,0),IF(COUNTIF($G$98:$L$98,INDEX($G$87:$G$88,MATCH(AB88,$L$87:$L$88,0),1))=1,1,0)))) -> 1 | AE88: =IF($AD88=1,IF(COUNTIF($G$87:$G$88,$AB88)=1,IF(((VLOOKUP($AB88,$G$87:$K$88,2,FALSE)+VLOOKUP($AB88,$G$87:$K$88,3,FALSE)))>(VLOOKUP($AB88,$G$87:$K$88,4,FALSE)+VLOOKUP($AB88,$G$87:$K$88,5,FALSE)),1,0),IF((INDEX($H$87:$H$88,MATCH($AB88,$L$87:$L$88,0))+INDEX($I$87:$I$88,MATCH($AB88,$L$87:$L$88,0)))>(INDEX($J$87:$J$88,MATCH($AB88,$L$87:$L$88,0))+INDEX($K$87:$K$88,MATCH($AB88,$L$87:$L$88,0))),0,1)),0) -> 1 | AG88: =ABS(AD88-AE88) -> 0 | AH88: =IF($AD88=1,IF(COUNTIF($G$87:$G$88,$AB88)=1,VLOOKUP($AB88,$G$87:$J$88,3,FALSE),INDEX($J$87:$J$88,MATCH($AB88,$L$87:$L$88,0),1)),0) -> 7 | AI88: =IF($AD88=1,IF(COUNTIF($G$87:$G$88,$AB88)=1,VLOOKUP($AB88,$G$87:$J$88,4,FALSE),INDEX($I$87:$I$88,MATCH($AB88,$L$87:$L$88,0),1)),0) -> 1 | AJ88: =IF($AD88=1,IF(COUNTIF($G$87:$G$88,$AB88)=1,VLOOKUP($AB88,$G$88:$K89,2,FALSE),INDEX($K$87:$K$88,MATCH($AB88,$L$87:$L$88,0),1)),0)+AH88-AI88-IF($AD88=1,IF(COUNTIF($G$87:$G$88,$AB88)=1,VLOOKUP($AB88,$G$87:$K$88,5,FALSE),INDEX($H$87:$H$88,MATCH($AB88,$L$87:$L$88,0),1)),0) -> 6
AA89: =IF($AD89=0,"",INDEX(AA$92:AA$98,MATCH($AB89,AB$92:AB$98,0))) -> 2 | AB89: =IF(LEFT($L$88,3)="G60","-",$L$88) -> Argentina | AD89: =IF(AB89="-",0,IF(COUNTIF($G$98:$L$98,AB89),1,IF(COUNTIF($G$87:$G$88,AB89)=1,IF(COUNTIF($G$98:$L$98,VLOOKUP(AB89,$G$87:$L$88,6,FALSE))=1,1,0),IF(COUNTIF($G$98:$L$98,INDEX($G$87:$G$88,MATCH(AB89,$L$87:$L$88,0),1))=1,1,0)))) -> 1 | AE89: =IF($AD89=1,IF(COUNTIF($G$87:$G$88,$AB89)=1,IF(((VLOOKUP($AB89,$G$87:$K$88,2,FALSE)+VLOOKUP($AB89,$G$87:$K$88,3,FALSE)))>(VLOOKUP($AB89,$G$87:$K$88,4,FALSE)+VLOOKUP($AB89,$G$87:$K$88,5,FALSE)),1,0),IF((INDEX($H$87:$H$88,MATCH($AB89,$L$87:$L$88,0))+INDEX($I$87:$I$88,MATCH($AB89,$L$87:$L$88,0)))>(INDEX($J$87:$J$88,MATCH($AB89,$L$87:$L$88,0))+INDEX($K$87:$K$88,MATCH($AB89,$L$87:$L$88,0))),0,1)),0) -> 1 | AG89: =ABS(AD89-AE89) -> 0 | AH89: =IF($AD89=1,IF(COUNTIF($G$87:$G$88,$AB89)=1,VLOOKUP($AB89,$G$87:$J$88,3,FALSE),INDEX($J$87:$J$88,MATCH($AB89,$L$87:$L$88,0),1)),0) -> 0 | AI89: =IF($AD89=1,IF(COUNTIF($G$87:$G$88,$AB89)=1,VLOOKUP($AB89,$G$87:$J$88,4,FALSE),INDEX($I$87:$I$88,MATCH($AB89,$L$87:$L$88,0),1)),0) -> 0 | AJ89: =IF($AD89=1,IF(COUNTIF($G$87:$G$88,$AB89)=1,VLOOKUP($AB89,$G$88:$K89,2,FALSE),INDEX($K$87:$K$88,MATCH($AB89,$L$87:$L$88,0),1)),0)+AH89-AI89-IF($AD89=1,IF(COUNTIF($G$87:$G$88,$AB89)=1,VLOOKUP($AB89,$G$87:$K$88,5,FALSE),INDEX($H$87:$H$88,MATCH($AB89,$L$87:$L$88,0),1)),0) -> 2
AA91: Pos | AB91: EQUIPO | AC91: Pts. | AD91: PJ | AE91: G | AF91: E | AG91: P | AH91: GF | AI91: GC | AJ91: D
B92: Partido | C92: Fecha y Hora Local (Brasil) | D92: FECHA | E92: HORA | F92: Sede | G92: PARTIDO POR EL TERCER PUESTO | AA92: =IF(SUM(AE$92:AE$93)=1,IF(AE92=1,3,4),"") -> 4 | AB92: =IF(LEFT($G$93,3)="P61","-",$G$93) -> Brasil | AD92: =IF(OR((IF(OR(LEFT(G93,3)="P61",LEFT(L93,3)="P62"),0,IF(AND(COUNT(H93:K93)=4,I93=J93,H93<>K93),IF(H93+I93>J93+K93,1,0),IF(AND(COUNT(H93:K93)=2,H93&K93="",I93<>J93),IF(I93>J93,1,0),0)))),(IF(OR(LEFT(G93,5)="Perde",LEFT(L93,5)="Perde"),0,IF(AND(COUNT(H93:K93)=4,I93=J93,H93<>K93),IF(H93+I93<J93+K93,1,0),IF(AND(COUNT(H93:K93)=2,H93&K93="",I93<>J93),IF(I93<J93,1,0),0))))),1,0) -> 1 | AE92: =(IF(OR(LEFT(G93,3)="P61",LEFT(L93,3)="P62"),0,IF(AND(COUNT(H93:K93)=4,I93=J93,H93<>K93),IF(H93+I93>J93+K93,1,0),IF(AND(COUNT(H93:K93)=2,H93&K93="",I93<>J93),IF(I93>J93,1,0),0)))) -> 0 | AG92: =ABS(AD92-AE92) -> 1 | AH92: =IF($AD92=1,IF($AB92=$G$93,$I$93,$J$93),0) -> 0 | AI92: =IF($AD92=1,IF($AB92=$G$93,$J$93,$I$93),0) -> 3 | AJ92: =IF($AD92=1,IF($AB92=$G$93,$H$93+$I$93-$J$93-$K$93,$J$93+$K$93-$H$93-$I$93),0) -> -3
B93: 63 | C93: 2014-07-12T17:00:00 | D93: =C93+IF(rTimeDifIsItPositive,rTimeDifference,-rTimeDifference) -> 2014-07-12T15:00:00 | E93: =C93+IF(rTimeDifIsItPositive,rTimeDifference,-rTimeDifference) -> 41832.625 | F93: Brasilia | G93: =IF(OR(LEFT(G87,1)="G",LEFT(L87,1)="G"),"P61",IF(AND(COUNT(H87:K87)=4,I87=J87,H87<>K87),IF(H87+I87>J87+K87,L87,G87),IF(AND(COUNT(H87:K87)=2,H87&K87="",I87<>J87),IF(I87>J87,L87,G87),"P61"))) -> Brasil | I93: 0 | J93: 3 | L93: =IF(OR(LEFT(G88,1)="G",LEFT(L88,1)="G"),"P62",IF(AND(COUNT(H88:K88)=4,I88=J88,H88<>K88),IF(H88+I88>J88+K88,L88,G88),IF(AND(COUNT(H88:K88)=2,H88&K88="",I88<>J88),IF(I88>J88,L88,G88),"P62"))) -> Holanda | AA93: =IF(SUM(AE$92:AE$93)=1,IF(AE93=1,3,4),"") -> 3 | AB93: =IF(LEFT($L$93,3)="P62","-",$L$93) -> Holanda | AD93: =AD92 -> 1 | AE93: =IF(AD93=1,IF(AE92=1,0,1),0) -> 1 | AG93: =ABS(AD93-AE93) -> 0 | AH93: =IF($AD93=1,IF($AB93=$G$93,$I$93,$J$93),0) -> 3 | AI93: =IF($AD93=1,IF($AB93=$G$93,$J$93,$I$93),0) -> 0 | AJ93: =IF($AD93=1,IF($AB93=$G$93,$H$93+$I$93-$J$93-$K$93,$J$93+$K$93-$H$93-$I$93),0) -> 3
AA96: Pos | AB96: EQUIPO | AC96: Pts. | AD96: PJ | AE96: G | AF96: E | AG96: P | AH96: GF | AI96: GC | AJ96: D
B97: Partido | C97: Fecha y Hora Local (Brasil) | D97: FECHA | E97: HORA | F97: Sede | G97: FINAL | AA97: =IF(SUM(AE$97:AE$98)=1,IF(AE97=1,1,2),"") -> 1 | AB97: =IF(LEFT($G$98,3)="G61","-",$G$98) -> Alemania | AD97: =IF(OR((IF(OR(LEFT(G98,3)="G61",LEFT(L98,3)="G62"),0,IF(AND(COUNT(H98:K98)=4,I98=J98,H98<>K98),IF(H98+I98>J98+K98,1,0),IF(AND(COUNT(H98:K98)=2,H98&K98="",I98<>J98),IF(I98>J98,1,0),0)))),(IF(OR(LEFT(G98,3)="G61",LEFT(L98,3)="G62"),0,IF(AND(COUNT(H98:K98)=4,I98=J98,H98<>K98),IF(H98+I98<J98+K98,1,0),IF(AND(COUNT(H98:K98)=2,H98&K98="",I98<>J98),IF(I98<J98,1,0),0))))),1,0) -> 1 | AE97: =(IF(OR(LEFT(G98,3)="G61",LEFT(L98,3)="G62"),0,IF(AND(COUNT(H98:K98)=4,I98=J98,H98<>K98),IF(H98+I98>J98+K98,1,0),IF(AND(COUNT(H98:K98)=2,H98&K98="",I98<>J98),IF(I98>J98,1,0),0)))) -> 1 | AG97: =ABS(AD97-AE97) -> 0 | AH97: =IF($AD97=1,IF($AB97=$G$98,$I$98,$J$98),0) -> 1 | AI97: =IF($AD97=1,IF($AB97=$G$98,$J$98,$I$98),0) -> 0 | AJ97: =IF($AD97=1,IF($AB97=$G$98,$H$98+$I$98-$J$98-$K$98,$J$98+$K$98-$H$98-$I$98),0) -> 1
B98: 64 | C98: 2014-07-13T16:00:00 | D98: =C98+IF(rTimeDifIsItPositive,rTimeDifference,-rTimeDifference) -> 2014-07-13T14:00:00 | E98: =C98+IF(rTimeDifIsItPositive,rTimeDifference,-rTimeDifference) -> 41833.58333 | F98: Rio de Janeiro | G98: =IF(OR(LEFT(G87,3)="G57",LEFT(L87,3)="G58"),"G61",IF(AND(COUNT(H87:K87)=4,I87=J87,H87<>K87),IF(H87+I87<J87+K87,L87,G87),IF(AND(COUNT(H87:K87)=2,H87&K87="",I87<>J87),IF(I87<J87,L87,G87),"G61"))) -> Alemania | I98: 1 | J98: 0 | L98: =IF(OR(LEFT(G88,3)="G59",LEFT(L88,3)="G60"),"G62",IF(AND(COUNT(H88:K88)=4,I88=J88,H88<>K88),IF(H88+I88<J88+K88,L88,G88),IF(AND(COUNT(H88:K88)=2,H88&K88="",I88<>J88),IF(I88<J88,L88,G88),"G62"))) -> Argentina | AA98: =IF(SUM(AE$97:AE$98)=1,IF(AE98=1,1,2),"") -> 2 | AB98: =IF(LEFT($L$98,3)="G62","-",$L$98) -> Argentina | AD98: =AD97 -> 1 | AE98: =IF(AD98=1,IF(AE97=1,0,1),0) -> 0 | AG98: =ABS(AD98-AE98) -> 1 | AH98: =IF($AD98=1,IF($AB98=$G$98,$I$98,$J$98),0) -> 0 | AI98: =IF($AD98=1,IF($AB98=$G$98,$J$98,$I$98),0) -> 1 | AJ98: =IF($AD98=1,IF($AB98=$G$98,$H$98+$I$98-$J$98-$K$98,$J$98+$K$98-$H$98-$I$98),0) -> -1

Sheet Tabla
A4: Posición | B4: Equipo | C4: Ronda | D4: PJ | E4: G | F4: E | G4: P | H4: GF | I4: GC | J4: Dif | K4: GF/PJ | L4: GC/PJ
A5: =IF($D5=0,"",IF(COUNTIF(Partidos!$AB$58:$AB$73,$B5),(INDEX(Partidos!$AA$58:$AA$73,MATCH($B5,Partidos!$AB$58:$AB$73,0))),(IF(C5<>"Primera Ronda","",(SUMPRODUCT((((LOOKUP(LEFT(C5,100),{"Final",8000;"Primera Ronda",100;"Cuartos de final",1000;"Octavos de final",500;"Semifinales",3000}))*10000+100*D5*E5+30*H5-20*I5+J5)<(10000*((LOOKUP(LEFT(C$5:C$36,100),{"Final",8000;"Primera Ronda",100;"Cuartos de final",1000;"Octavos de final",500;"Semifinales",3000})))+100*(D$5:D$36)*(E$5:E$36)+30*(H$5:H$36)-20*(I$5:I$36)+(J$5:J$36)))+0)+1))))) -> 1 | B5: Alemania | C5: =IF(COUNTIF(Partidos!$AB$97:$AB$98,$B5)=1,"Final",IF(COUNTIF(Partidos!$AB$86:$AB$89,$B5)=1,"Semifinales",IF(COUNTIF(Partidos!$AB$76:$AB$83,$B5)=1,"Cuartos de final",IF(COUNTIF(Partidos!$AB$58:$AB$73,$B5)=1,"Octavos de final","Primera Ronda")))) -> Final | D5: =SUMIF(Partidos!$AB$9:$AB$98,$B5,Partidos!AD$9:AD$98) -> 7 | E5: =SUMIF(Partidos!$AB$9:$AB$98,$B5,Partidos!AE$9:AE$98) -> 6 | F5: =SUMIF(Partidos!$AB$9:$AB$98,$B5,Partidos!AF$9:AF$98) -> 1 | G5: =SUMIF(Partidos!$AB$9:$AB$98,$B5,Partidos!AG$9:AG$98) -> 0 | H5: =SUMIF(Partidos!$AB$9:$AB$98,$B5,Partidos!AH$9:AH$98) -> 18 | I5: =SUMIF(Partidos!$AB$9:$AB$98,$B5,Partidos!AI$9:AI$98) -> 4 | J5: =SUMIF(Partidos!$AB$9:$AB$98,$B5,Partidos!AJ$9:AJ$98) -> 14 | K5: =IF($D5=0,0,H5/$D5) -> 2.571428571 | L5: =IF($D5=0,0,I5/$D5) -> 0.5714285714
A6: =IF($D6=0,"",IF(COUNTIF(Partidos!$AB$58:$AB$73,$B6),(INDEX(Partidos!$AA$58:$AA$73,MATCH($B6,Partidos!$AB$58:$AB$73,0))),(IF(C6<>"Primera Ronda","",(SUMPRODUCT((((LOOKUP(LEFT(C6,100),{"Final",8000;"Primera Ronda",100;"Cuartos de final",1000;"Octavos de final",500;"Semifinales",3000}))*10000+100*D6*E6+30*H6-20*I6+J6)<(10000*((LOOKUP(LEFT(C$5:C$36,100),{"Final",8000;"Primera Ronda",100;"Cuartos de final",1000;"Octavos de final",500;"Semifinales",3000})))+100*(D$5:D$36)*(E$5:E$36)+30*(H$5:H$36)-20*(I$5:I$36)+(J$5:J$36)))+0)+1))))) -> 2 | B6: Argentina | C6: =IF(COUNTIF(Partidos!$AB$97:$AB$98,$B6)=1,"Final",IF(COUNTIF(Partidos!$AB$86:$AB$89,$B6)=1,"Semifinales",IF(COUNTIF(Partidos!$AB$76:$AB$83,$B6)=1,"Cuartos de final",IF(COUNTIF(Partidos!$AB$58:$AB$73,$B6)=1,"Octavos de final","Primera Ronda")))) -> Final | D6: =SUMIF(Partidos!$AB$9:$AB$98,$B6,Partidos!AD$9:AD$98) -> 7 | E6: =SUMIF(Partidos!$AB$9:$AB$98,$B6,Partidos!AE$9:AE$98) -> 6 | F6: =SUMIF(Partidos!$AB$9:$AB$98,$B6,Partidos!AF$9:AF$98) -> 0 | G6: =SUMIF(Partidos!$AB$9:$AB$98,$B6,Partidos!AG$9:AG$98) -> 1 | H6: =SUMIF(Partidos!$AB$9:$AB$98,$B6,Partidos!AH$9:AH$98) -> 8 | I6: =SUMIF(Partidos!$AB$9:$AB$98,$B6,Partidos!AI$9:AI$98) -> 4 | J6: =SUMIF(Partidos!$AB$9:$AB$98,$B6,Partidos!AJ$9:AJ$98) -> 6 | K6: =IF($D6=0,0,H6/$D6) -> 1.142857143 | L6: =IF($D6=0,0,I6/$D6) -> 0.5714285714
A7: =IF($D7=0,"",IF(COUNTIF(Partidos!$AB$58:$AB$73,$B7),(INDEX(Partidos!$AA$58:$AA$73,MATCH($B7,Partidos!$AB$58:$AB$73,0))),(IF(C7<>"Primera Ronda","",(SUMPRODUCT((((LOOKUP(LEFT(C7,100),{"Final",8000;"Primera Ronda",100;"Cuartos de final",1000;"Octavos de final",500;"Semifinales",3000}))*10000+100*D7*E7+30*H7-20*I7+J7)<(10000*((LOOKUP(LEFT(C$5:C$36,100),{"Final",8000;"Primera Ronda",100;"Cuartos de final",1000;"Octavos de final",500;"Semifinales",3000})))+100*(D$5:D$36)*(E$5:E$36)+30*(H$5:H$36)-20*(I$5:I$36)+(J$5:J$36)))+0)+1))))) -> 3 | B7: Holanda | C7: =IF(COUNTIF(Partidos!$AB$97:$AB$98,$B7)=1,"Final",IF(COUNTIF(Partidos!$AB$86:$AB$89,$B7)=1,"Semifinales",IF(COUNTIF(Partidos!$AB$76:$AB$83,$B7)=1,"Cuartos de final",IF(COUNTIF(Partidos!$AB$58:$AB$73,$B7)=1,"Octavos de final","Primera Ronda")))) -> Semifinales | D7: =SUMIF(Partidos!$AB$9:$AB$98,$B7,Partidos!AD$9:AD$98) -> 7 | E7: =SUMIF(Partidos!$AB$9:$AB$98,$B7,Partidos!AE$9:AE$98) -> 6 | F7: =SUMIF(Partidos!$AB$9:$AB$98,$B7,Partidos!AF$9:AF$98) -> 0 | G7: =SUMIF(Partidos!$AB$9:$AB$98,$B7,Partidos!AG$9:AG$98) -> 1 | H7: =SUMIF(Partidos!$AB$9:$AB$98,$B7,Partidos!AH$9:AH$98) -> 15 | I7: =SUMIF(Partidos!$AB$9:$AB$98,$B7,Partidos!AI$9:AI$98) -> 4 | J7: =SUMIF(Partidos!$AB$9:$AB$98,$B7,Partidos!AJ$9:AJ$98) -> 10 | K7: =IF($D7=0,0,H7/$D7) -> 2.142857143 | L7: =IF($D7=0,0,I7/$D7) -> 0.5714285714
A8: =IF($D8=0,"",IF(COUNTIF(Partidos!$AB$58:$AB$73,$B8),(INDEX(Partidos!$AA$58:$AA$73,MATCH($B8,Partidos!$AB$58:$AB$73,0))),(IF(C8<>"Primera Ronda","",(SUMPRODUCT((((LOOKUP(LEFT(C8,100),{"Final",8000;"Primera Ronda",100;"Cuartos de final",1000;"Octavos de final",500;"Semifinales",3000}))*10000+100*D8*E8+30*H8-20*I8+J8)<(10000*((LOOKUP(LEFT(C$5:C$36,100),{"Final",8000;"Primera Ronda",100;"Cuartos de final",1000;"Octavos de final",500;"Semifinales",3000})))+100*(D$5:D$36)*(E$5:E$36)+30*(H$5:H$36)-20*(I$5:I$36)+(J$5:J$36)))+0)+1))))) -> 4 | B8: Brasil | C8: =IF(COUNTIF(Partidos!$AB$97:$AB$98,$B8)=1,"Final",IF(COUNTIF(Partidos!$AB$86:$AB$89,$B8)=1,"Semifinales",IF(COUNTIF(Partidos!$AB$76:$AB$83,$B8)=1,"Cuartos de final",IF(COUNTIF(Partidos!$AB$58:$AB$73,$B8)=1,"Octavos de final","Primera Ronda")))) -> Semifinales | D8: =SUMIF(Partidos!$AB$9:$AB$98,$B8,Partidos!AD$9:AD$98) -> 7 | E8: =SUMIF(Partidos!$AB$9:$AB$98,$B8,Partidos!AE$9:AE$98) -> 4 | F8: =SUMIF(Partidos!$AB$9:$AB$98,$B8,Partidos!AF$9:AF$98) -> 1 | G8: =SUMIF(Partidos!$AB$9:$AB$98,$B8,Partidos!AG$9:AG$98) -> 2 | H8: =SUMIF(Partidos!$AB$9:$AB$98,$B8,Partidos!AH$9:AH$98) -> 11 | I8: =SUMIF(Partidos!$AB$9:$AB$98,$B8,Partidos!AI$9:AI$98) -> 14 | J8: =SUMIF(Partidos!$AB$9:$AB$98,$B8,Partidos!AJ$9:AJ$98) -> -2 | K8: =IF($D8=0,0,H8/$D8) -> 1.571428571 | L8: =IF($D8=0,0,I8/$D8) -> 2
A9: =IF($D9=0,"",IF(COUNTIF(Partidos!$AB$58:$AB$73,$B9),(INDEX(Partidos!$AA$58:$AA$73,MATCH($B9,Partidos!$AB$58:$AB$73,0))),(IF(C9<>"Primera Ronda","",(SUMPRODUCT((((LOOKUP(LEFT(C9,100),{"Final",8000;"Primera Ronda",100;"Cuartos de final",1000;"Octavos de final",500;"Semifinales",3000}))*10000+100*D9*E9+30*H9-20*I9+J9)<(10000*((LOOKUP(LEFT(C$5:C$36,100),{"Final",8000;"Primera Ronda",100;"Cuartos de final",1000;"Octavos de final",500;"Semifinales",3000})))+100*(D$5:D$36)*(E$5:E$36)+30*(H$5:H$36)-20*(I$5:I$36)+(J$5:J$36)))+0)+1))))) -> 5 | B9: Costa Rica | C9: =IF(COUNTIF(Partidos!$AB$97:$AB$98,$B9)=1,"Final",IF(COUNTIF(Partidos!$AB$86:$AB$89,$B9)=1,"Semifinales",IF(COUNTIF(Partidos!$AB$76:$AB$83,$B9)=1,"Cuartos de final",IF(COUNTIF(Partidos!$AB$58:$AB$73,$B9)=1,"Octavos de final","Primera Ronda")))) -> Cuartos de final | D9: =SUMIF(Partidos!$AB$9:$AB$98,$B9,Partidos!AD$9:AD$98) -> 5 | E9: =SUMIF(Partidos!$AB$9:$AB$98,$B9,Partidos!AE$9:AE$98) -> 3 | F9: =SUMIF(Partidos!$AB$9:$AB$98,$B9,Partidos!AF$9:AF$98) -> 1 | G9: =SUMIF(Partidos!$AB$9:$AB$98,$B9,Partidos!AG$9:AG$98) -> 1 | H9: =SUMIF(Partidos!$AB$9:$AB$98,$B9,Partidos!AH$9:AH$98) -> 5 | I9: =SUMIF(Partidos!$AB$9:$AB$98,$B9,Partidos!AI$9:AI$98) -> 2 | J9: =SUMIF(Partidos!$AB$9:$AB$98,$B9,Partidos!AJ$9:AJ$98) -> 4 | K9: =IF($D9=0,0,H9/$D9) -> 1 | L9: =IF($D9=0,0,I9/$D9) -> 0.4
A10: =IF($D10=0,"",IF(COUNTIF(Partidos!$AB$58:$AB$73,$B10),(INDEX(Partidos!$AA$58:$AA$73,MATCH($B10,Partidos!$AB$58:$AB$73,0))),(IF(C10<>"Primera Ronda","",(SUMPRODUCT((((LOOKUP(LEFT(C10,100),{"Final",8000;"Primera Ronda",100;"Cuartos de final",1000;"Octavos de final",500;"Semifinales",3000}))*10000+100*D10*E10+30*H10-20*I10+J10)<(10000*((LOOKUP(LEFT(C$5:C$36,100),{"Final",8000;"Primera Ronda",100;"Cuartos de final",1000;"Octavos de final",500;"Semifinales",3000})))+100*(D$5:D$36)*(E$5:E$36)+30*(H$5:H$36)-20*(I$5:I$36)+(J$5:J$36)))+0)+1))))) -> 6 | B10: Colombia | C10: =IF(COUNTIF(Partidos!$AB$97:$AB$98,$B10)=1,"Final",IF(COUNTIF(Partidos!$AB$86:$AB$89,$B10)=1,"Semifinales",IF(COUNTIF(Partidos!$AB$76:$AB$83,$B10)=1,"Cuartos de final",IF(COUNTIF(Partidos!$AB$58:$AB$73,$B10)=1,"Octavos de final","Primera Ronda")))) -> Cuartos de final | D10: =SUMIF(Partidos!$AB$9:$AB$98,$B10,Partidos!AD$9:AD$98) -> 5 | E10: =SUMIF(Partidos!$AB$9:$AB$98,$B10,Partidos!AE$9:AE$98) -> 4 | F10: =SUMIF(Partidos!$AB$9:$AB$98,$B10,Partidos!AF$9:AF$98) -> 0 | G10: =SUMIF(Partidos!$AB$9:$AB$98,$B10,Partidos!AG$9:AG$98) -> 1 | H10: =SUMIF(Partidos!$AB$9:$AB$98,$B10,Partidos!AH$9:AH$98) -> 12 | I10: =SUMIF(Partidos!$AB$9:$AB$98,$B10,Partidos!AI$9:AI$98) -> 4 | J10: =SUMIF(Partidos!$AB$9:$AB$98,$B10,Partidos!AJ$9:AJ$98) -> 8 | K10: =IF($D10=0,0,H10/$D10) -> 2.4 | L10: =IF($D10=0,0,I10/$D10) -> 0.8
A11: =IF($D11=0,"",IF(COUNTIF(Partidos!$AB$58:$AB$73,$B11),(INDEX(Partidos!$AA$58:$AA$73,MATCH($B11,Partidos!$AB$58:$AB$73,0))),(IF(C11<>"Primera Ronda","",(SUMPRODUCT((((LOOKUP(LEFT(C11,100),{"Final",8000;"Primera Ronda",100;"Cuartos de final",1000;"Octavos de final",500;"Semifinales",3000}))*10000+100*D11*E11+30*H11-20*I11+J11)<(10000*((LOOKUP(LEFT(C$5:C$36,100),{"Final",8000;"Primera Ronda",100;"Cuartos de final",1000;"Octavos de final",500;"Semifinales",3000})))+100*(D$5:D$36)*(E$5:E$36)+30*(H$5:H$36)-20*(I$5:I$36)+(J$5:J$36)))+0)+1))))) -> 7 | B11: Francia | C11: =IF(COUNTIF(Partidos!$AB$97:$AB$98,$B11)=1,"Final",IF(COUNTIF(Partidos!$AB$86:$AB$89,$B11)=1,"Semifinales",IF(COUNTIF(Partidos!$AB$76:$AB$83,$B11)=1,"Cuartos de final",IF(COUNTIF(Partidos!$AB$58:$AB$73,$B11)=1,"Octavos de final","Primera Ronda")))) -> Cuartos de final | D11: =SUMIF(Partidos!$AB$9:$AB$98,$B11,Partidos!AD$9:AD$98) -> 5 | E11: =SUMIF(Partidos!$AB$9:$AB$98,$B11,Partidos!AE$9:AE$98) -> 3 | F11: =SUMIF(Partidos!$AB$9:$AB$98,$B11,Partidos!AF$9:AF$98) -> 1 | G11: =SUMIF(Partidos!$AB$9:$AB$98,$B11,Partidos!AG$9:AG$98) -> 1 | H11: =SUMIF(Partidos!$AB$9:$AB$98,$B11,Partidos!AH$9:AH$98) -> 10 | I11: =SUMIF(Partidos!$AB$9:$AB$98,$B11,Partidos!AI$9:AI$98) -> 3 | J11: =SUMIF(Partidos!$AB$9:$AB$98,$B11,Partidos!AJ$9:AJ$98) -> 7 | K11: =IF($D11=0,0,H11/$D11) -> 2 | L11: =IF($D11=0,0,I11/$D11) -> 0.6
A12: =IF($D12=0,"",IF(COUNTIF(Partidos!$AB$58:$AB$73,$B12),(INDEX(Partidos!$AA$58:$AA$73,MATCH($B12,Partidos!$AB$58:$AB$73,0))),(IF(C12<>"Primera Ronda","",(SUMPRODUCT((((LOOKUP(LEFT(C12,100),{"Final",8000;"Primera Ronda",100;"Cuartos de final",1000;"Octavos de final",500;"Semifinales",3000}))*10000+100*D12*E12+30*H12-20*I12+J12)<(10000*((LOOKUP(LEFT(C$5:C$36,100),{"Final",8000;"Primera Ronda",100;"Cuartos de final",1000;"Octavos de final",500;"Semifinales",3000})))+100*(D$5:D$36)*(E$5:E$36)+30*(H$5:H$36)-20*(I$5:I$36)+(J$5:J$36)))+0)+1))))) -> 7 | B12: Bélgica | C12: =IF(COUNTIF(Partidos!$AB$97:$AB$98,$B12)=1,"Final",IF(COUNTIF(Partidos!$AB$86:$AB$89,$B12)=1,"Semifinales",IF(COUNTIF(Partidos!$AB$76:$AB$83,$B12)=1,"Cuartos de final",IF(COUNTIF(Partidos!$AB$58:$AB$73,$B12)=1,"Octavos de final","Primera Ronda")))) -> Cuartos de final | D12: =SUMIF(Partidos!$AB$9:$AB$98,$B12,Partidos!AD$9:AD$98) -> 5 | E12: =SUMIF(Partidos!$AB$9:$AB$98,$B12,Partidos!AE$9:AE$98) -> 4 | F12: =SUMIF(Partidos!$AB$9:$AB$98,$B12,Partidos!AF$9:AF$98) -> 0 | G12: =SUMIF(Partidos!$AB$9:$AB$98,$B12,Partidos!AG$9:AG$98) -> 1 | H12: =SUMIF(Partidos!$AB$9:$AB$98,$B12,Partidos!AH$9:AH$98) -> 6 | I12: =SUMIF(Partidos!$AB$9:$AB$98,$B12,Partidos!AI$9:AI$98) -> 3 | J12: =SUMIF(Partidos!$AB$9:$AB$98,$B12,Partidos!AJ$9:AJ$98) -> 3 | K12: =IF($D12=0,0,H12/$D12) -> 1.2 | L12: =IF($D12=0,0,I12/$D12) -> 0.6
A13: =IF($D13=0,"",IF(COUNTIF(Partidos!$AB$58:$AB$73,$B13),(INDEX(Partidos!$AA$58:$AA$73,MATCH($B13,Partidos!$AB$58:$AB$73,0))),(IF(C13<>"Primera Ronda","",(SUMPRODUCT((((LOOKUP(LEFT(C13,100),{"Final",8000;"Primera Ronda",100;"Cuartos de final",1000;"Octavos de final",500;"Semifinales",3000}))*10000+100*D13*E13+30*H13-20*I13+J13)<(10000*((LOOKUP(LEFT(C$5:C$36,100),{"Final",8000;"Primera Ronda",100;"Cuartos de final",1000;"Octavos de final",500;"Semifinales",3000})))+100*(D$5:D$36)*(E$5:E$36)+30*(H$5:H$36)-20*(I$5:I$36)+(J$5:J$36)))+0)+1))))) -> 9 | B13: Chile | C13: =IF(COUNTIF(Partidos!$AB$97:$AB$98,$B13)=1,"Final",IF(COUNTIF(Partidos!$AB$86:$AB$89,$B13)=1,"Semifinales",IF(COUNTIF(Partidos!$AB$76:$AB$83,$B13)=1,"Cuartos de final",IF(COUNTIF(Partidos!$AB$58:$AB$73,$B13)=1,"Octavos de final","Primera Ronda")))) -> Octavos de final | D13: =SUMIF(Partidos!$AB$9:$AB$98,$B13,Partidos!AD$9:AD$98) -> 4 | E13: =SUMIF(Partidos!$AB$9:$AB$98,$B13,Partidos!AE$9:AE$98) -> 2 | F13: =SUMIF(Partidos!$AB$9:$AB$98,$B13,Partidos!AF$9:AF$98) -> 0 | G13: =SUMIF(Partidos!$AB$9:$AB$98,$B13,Partidos!AG$9:AG$98) -> 2 | H13: =SUMIF(Partidos!$AB$9:$AB$98,$B13,Partidos!AH$9:AH$98) -> 6 | I13: =SUMIF(Partidos!$AB$9:$AB$98,$B13,Partidos!AI$9:AI$98) -> 4 | J13: =SUMIF(Partidos!$AB$9:$AB$98,$B13,Partidos!AJ$9:AJ$98) -> 1 | K13: =IF($D13=0,0,H13/$D13) -> 1.5 | L13: =IF($D13=0,0,I13/$D13) -> 1
A14: =IF($D14=0,"",IF(COUNTIF(Partidos!$AB$58:$AB$73,$B14),(INDEX(Partidos!$AA$58:$AA$73,MATCH($B14,Partidos!$AB$58:$AB$73,0))),(IF(C14<>"Primera Ronda","",(SUMPRODUCT((((LOOKUP(LEFT(C14,100),{"Final",8000;"Primera Ronda",100;"Cuartos de final",1000;"Octavos de final",500;"Semifinales",3000}))*10000+100*D14*E14+30*H14-20*I14+J14)<(10000*((LOOKUP(LEFT(C$5:C$36,100),{"Final",8000;"Primera Ronda",100;"Cuartos de final",1000;"Octavos de final",500;"Semifinales",3000})))+100*(D$5:D$36)*(E$5:E$36)+30*(H$5:H$36)-20*(I$5:I$36)+(J$5:J$36)))+0)+1))))) -> 10 | B14: Grecia | C14: =IF(COUNTIF(Partidos!$AB$97:$AB$98,$B14)=1,"Final",IF(COUNTIF(Partidos!$AB$86:$AB$89,$B14)=1,"Semifinales",IF(COUNTIF(Partidos!$AB$76:$AB$83,$B14)=1,"Cuartos de final",IF(COUNTIF(Partidos!$AB$58:$AB$73,$B14)=1,"Octavos de final","Primera Ronda")))) -> Octavos de final | D14: =SUMIF(Partidos!$AB$9:$AB$98,$B14,Partidos!AD$9:AD$98) -> 4 | E14: =SUMIF(Partidos!$AB$9:$AB$98,$B14,Partidos!AE$9:AE$98) -> 1 | F14: =SUMIF(Partidos!$AB$9:$AB$98,$B14,Partidos!AF$9:AF$98) -> 1 | G14: =SUMIF(Partidos!$AB$9:$AB$98,$B14,Partidos!AG$9:AG$98) -> 2 | H14: =SUMIF(Partidos!$AB$9:$AB$98,$B14,Partidos!AH$9:AH$98) -> 3 | I14: =SUMIF(Partidos!$AB$9:$AB$98,$B14,Partidos!AI$9:AI$98) -> 5 | J14: =SUMIF(Partidos!$AB$9:$AB$98,$B14,Partidos!AJ$9:AJ$98) -> -4 | K14: =IF($D14=0,0,H14/$D14) -> 0.75 | L14: =IF($D14=0,0,I14/$D14) -> 1.25
A15: =IF($D15=0,"",IF(COUNTIF(Partidos!$AB$58:$AB$73,$B15),(INDEX(Partidos!$AA$58:$AA$73,MATCH($B15,Partidos!$AB$58:$AB$73,0))),(IF(C15<>"Primera Ronda","",(SUMPRODUCT((((LOOKUP(LEFT(C15,100),{"Final",8000;"Primera Ronda",100;"Cuartos de final",1000;"Octavos de final",500;"Semifinales",3000}))*10000+100*D15*E15+30*H15-20*I15+J15)<(10000*((LOOKUP(LEFT(C$5:C$36,100),{"Final",8000;"Primera Ronda",100;"Cuartos de final",1000;"Octavos de final",500;"Semifinales",3000})))+100*(D$5:D$36)*(E$5:E$36)+30*(H$5:H$36)-20*(I$5:I$36)+(J$5:J$36)))+0)+1))))) -> 11 | B15: México | C15: =IF(COUNTIF(Partidos!$AB$97:$AB$98,$B15)=1,"Final",IF(COUNTIF(Partidos!$AB$86:$AB$89,$B15)=1,"Semifinales",IF(COUNTIF(Partidos!$AB$76:$AB$83,$B15)=1,"Cuartos de final",IF(COUNTIF(Partidos!$AB$58:$AB$73,$B15)=1,"Octavos de final","Primera Ronda")))) -> Octavos de final | D15: =SUMIF(Partidos!$AB$9:$AB$98,$B15,Partidos!AD$9:AD$98) -> 4 | E15: =SUMIF(Partidos!$AB$9:$AB$98,$B15,Partidos!AE$9:AE$98) -> 2 | F15: =SUMIF(Partidos!$AB$9:$AB$98,$B15,Partidos!AF$9:AF$98) -> 1 | G15: =SUMIF(Partidos!$AB$9:$AB$98,$B15,Partidos!AG$9:AG$98) -> 1 | H15: =SUMIF(Partidos!$AB$9:$AB$98,$B15,Partidos!AH$9:AH$98) -> 5 | I15: =SUMIF(Partidos!$AB$9:$AB$98,$B15,Partidos!AI$9:AI$98) -> 3 | J15: =SUMIF(Partidos!$AB$9:$AB$98,$B15,Partidos!AJ$9:AJ$98) -> 2 | K15: =IF($D15=0,0,H15/$D15) -> 1.25 | L15: =IF($D15=0,0,I15/$D15) -> 0.75
A16: =IF($D16=0,"",IF(COUNTIF(Partidos!$AB$58:$AB$73,$B16),(INDEX(Partidos!$AA$58:$AA$73,MATCH($B16,Partidos!$AB$58:$AB$73,0))),(IF(C16<>"Primera Ronda","",(SUMPRODUCT((((LOOKUP(LEFT(C16,100),{"Final",8000;"Primera Ronda",100;"Cuartos de final",1000;"Octavos de final",500;"Semifinales",3000}))*10000+100*D16*E16+30*H16-20*I16+J16)<(10000*((LOOKUP(LEFT(C$5:C$36,100),{"Final",8000;"Primera Ronda",100;"Cuartos de final",1000;"Octavos de final",500;"Semifinales",3000})))+100*(D$5:D$36)*(E$5:E$36)+30*(H$5:H$36)-20*(I$5:I$36)+(J$5:J$36)))+0)+1))))) -> 11 | B16: EEUU | C16: =IF(COUNTIF(Partidos!$AB$97:$AB$98,$B16)=1,"Final",IF(COUNTIF(Partidos!$AB$86:$AB$89,$B16)=1,"Semifinales",IF(COUNTIF(Partidos!$AB$76:$AB$83,$B16)=1,"Cuartos de final",IF(COUNTIF(Partidos!$AB$58:$AB$73,$B16)=1,"Octavos de final","Primera Ronda")))) -> Octavos de final | D16: =SUMIF(Partidos!$AB$9:$AB$98,$B16,Partidos!AD$9:AD$98) -> 4 | E16: =SUMIF(Partidos!$AB$9:$AB$98,$B16,Partidos!AE$9:AE$98) -> 1 | F16: =SUMIF(Partidos!$AB$9:$AB$98,$B16,Partidos!AF$9:AF$98) -> 1 | G16: =SUMIF(Partidos!$AB$9:$AB$98,$B16,Partidos!AG$9:AG$98) -> 2 | H16: =SUMIF(Partidos!$AB$9:$AB$98,$B16,Partidos!AH$9:AH$98) -> 5 | I16: =SUMIF(Partidos!$AB$9:$AB$98,$B16,Partidos!AI$9:AI$98) -> 6 | J16: =SUMIF(Partidos!$AB$9:$AB$98,$B16,Partidos!AJ$9:AJ$98) -> -1 | K16: =IF($D16=0,0,H16/$D16) -> 1.25 | L16: =IF($D16=0,0,I16/$D16) -> 1.5
A17: =IF($D17=0,"",IF(COUNTIF(Partidos!$AB$58:$AB$73,$B17),(INDEX(Partidos!$AA$58:$AA$73,MATCH($B17,Partidos!$AB$58:$AB$73,0))),(IF(C17<>"Primera Ronda","",(SUMPRODUCT((((LOOKUP(LEFT(C17,100),{"Final",8000;"Primera Ronda",100;"Cuartos de final",1000;"Octavos de final",500;"Semifinales",3000}))*10000+100*D17*E17+30*H17-20*I17+J17)<(10000*((LOOKUP(LEFT(C$5:C$36,100),{"Final",8000;"Primera Ronda",100;"Cuartos de final",1000;"Octavos de final",500;"Semifinales",3000})))+100*(D$5:D$36)*(E$5:E$36)+30*(H$5:H$36)-20*(I$5:I$36)+(J$5:J$36)))+0)+1))))) -> 11 | B17: Argelia | C17: =IF(COUNTIF(Partidos!$AB$97:$AB$98,$B17)=1,"Final",IF(COUNTIF(Partidos!$AB$86:$AB$89,$B17)=1,"Semifinales",IF(COUNTIF(Partidos!$AB$76:$AB$83,$B17)=1,"Cuartos de final",IF(COUNTIF(Partidos!$AB$58:$AB$73,$B17)=1,"Octavos de final","Primera Ronda")))) -> Octavos de final | D17: =SUMIF(Partidos!$AB$9:$AB$98,$B17,Partidos!AD$9:AD$98) -> 4 | E17: =SUMIF(Partidos!$AB$9:$AB$98,$B17,Partidos!AE$9:AE$98) -> 1 | F17: =SUMIF(Partidos!$AB$9:$AB$98,$B17,Partidos!AF$9:AF$98) -> 1 | G17: =SUMIF(Partidos!$AB$9:$AB$98,$B17,Partidos!AG$9:AG$98) -> 2 | H17: =SUMIF(Partidos!$AB$9:$AB$98,$B17,Partidos!AH$9:AH$98) -> 7 | I17: =SUMIF(Partidos!$AB$9:$AB$98,$B17,Partidos!AI$9:AI$98) -> 7 | J17: =SUMIF(Partidos!$AB$9:$AB$98,$B17,Partidos!AJ$9:AJ$98) -> 0 | K17: =IF($D17=0,0,H17/$D17) -> 1.75 | L17: =IF($D17=0,0,I17/$D17) -> 1.75
A18: =IF($D18=0,"",IF(COUNTIF(Partidos!$AB$58:$AB$73,$B18),(INDEX(Partidos!$AA$58:$AA$73,MATCH($B18,Partidos!$AB$58:$AB$73,0))),(IF(C18<>"Primera Ronda","",(SUMPRODUCT((((LOOKUP(LEFT(C18,100),{"Final",8000;"Primera Ronda",100;"Cuartos de final",1000;"Octavos de final",500;"Semifinales",3000}))*10000+100*D18*E18+30*H18-20*I18+J18)<(10000*((LOOKUP(LEFT(C$5:C$36,100),{"Final",8000;"Primera Ronda",100;"Cuartos de final",1000;"Octavos de final",500;"Semifinales",3000})))+100*(D$5:D$36)*(E$5:E$36)+30*(H$5:H$36)-20*(I$5:I$36)+(J$5:J$36)))+0)+1))))) -> 14 | B18: Suiza | C18: =IF(COUNTIF(Partidos!$AB$97:$AB$98,$B18)=1,"Final",IF(COUNTIF(Partidos!$AB$86:$AB$89,$B18)=1,"Semifinales",IF(COUNTIF(Partidos!$AB$76:$AB$83,$B18)=1,"Cuartos de final",IF(COUNTIF(Partidos!$AB$58:$AB$73,$B18)=1,"Octavos de final","Primera Ronda")))) -> Octavos de final | D18: =SUMIF(Partidos!$AB$9:$AB$98,$B18,Partidos!AD$9:AD$98) -> 4 | E18: =SUMIF(Partidos!$AB$9:$AB$98,$B18,Partidos!AE$9:AE$98) -> 2 | F18: =SUMIF(Partidos!$AB$9:$AB$98,$B18,Partidos!AF$9:AF$98) -> 0 | G18: =SUMIF(Partidos!$AB$9:$AB$98,$B18,Partidos!AG$9:AG$98) -> 2 | H18: =SUMIF(Partidos!$AB$9:$AB$98,$B18,Partidos!AH$9:AH$98) -> 7 | I18: =SUMIF(Partidos!$AB$9:$AB$98,$B18,Partidos!AI$9:AI$98) -> 7 | J18: =SUMIF(Partidos!$AB$9:$AB$98,$B18,Partidos!AJ$9:AJ$98) -> 0 | K18: =IF($D18=0,0,H18/$D18) -> 1.75 | L18: =IF($D18=0,0,I18/$D18) -> 1.75
A19: =IF($D19=0,"",IF(COUNTIF(Partidos!$AB$58:$AB$73,$B19),(INDEX(Partidos!$AA$58:$AA$73,MATCH($B19,Partidos!$AB$58:$AB$73,0))),(IF(C19<>"Primera Ronda","",(SUMPRODUCT((((LOOKUP(LEFT(C19,100),{"Final",8000;"Primera Ronda",100;"Cuartos de final",1000;"Octavos de final",500;"Semifinales",3000}))*10000+100*D19*E19+30*H19-20*I19+J19)<(10000*((LOOKUP(LEFT(C$5:C$36,100),{"Final",8000;"Primera Ronda",100;"Cuartos de final",1000;"Octavos de final",500;"Semifinales",3000})))+100*(D$5:D$36)*(E$5:E$36)+30*(H$5:H$36)-20*(I$5:I$36)+(J$5:J$36)))+0)+1))))) -> 15 | B19: Nigeria | C19: =IF(COUNTIF(Partidos!$AB$97:$AB$98,$B19)=1,"Final",IF(COUNTIF(Partidos!$AB$86:$AB$89,$B19)=1,"Semifinales",IF(COUNTIF(Partidos!$AB$76:$AB$83,$B19)=1,"Cuartos de final",IF(COUNTIF(Partidos!$AB$58:$AB$73,$B19)=1,"Octavos de final","Primera Ronda")))) -> Octavos de final | D19: =SUMIF(Partidos!$AB$9:$AB$98,$B19,Partidos!AD$9:AD$98) -> 4 | E19: =SUMIF(Partidos!$AB$9:$AB$98,$B19,Partidos!AE$9:AE$98) -> 1 | F19: =SUMIF(Partidos!$AB$9:$AB$98,$B19,Partidos!AF$9:AF$98) -> 1 | G19: =SUMIF(Partidos!$AB$9:$AB$98,$B19,Partidos!AG$9:AG$98) -> 2 | H19: =SUMIF(Partidos!$AB$9:$AB$98,$B19,Partidos!AH$9:AH$98) -> 3 | I19: =SUMIF(Partidos!$AB$9:$AB$98,$B19,Partidos!AI$9:AI$98) -> 5 | J19: =SUMIF(Partidos!$AB$9:$AB$98,$B19,Partidos!AJ$9:AJ$98) -> -2 | K19: =IF($D19=0,0,H19/$D19) -> 0.75 | L19: =IF($D19=0,0,I19/$D19) -> 1.25
A20: =IF($D20=0,"",IF(COUNTIF(Partidos!$AB$58:$AB$73,$B20),(INDEX(Partidos!$AA$58:$AA$73,MATCH($B20,Partidos!$AB$58:$AB$73,0))),(IF(C20<>"Primera Ronda","",(SUMPRODUCT((((LOOKUP(LEFT(C20,100),{"Final",8000;"Primera Ronda",100;"Cuartos de final",1000;"Octavos de final",500;"Semifinales",3000}))*10000+100*D20*E20+30*H20-20*I20+J20)<(10000*((LOOKUP(LEFT(C$5:C$36,100),{"Final",8000;"Primera Ronda",100;"Cuartos de final",1000;"Octavos de final",500;"Semifinales",3000})))+100*(D$5:D$36)*(E$5:E$36)+30*(H$5:H$36)-20*(I$5:I$36)+(J$5:J$36)))+0)+1))))) -> 15 | B20: Uruguay | C20: =IF(COUNTIF(Partidos!$AB$97:$AB$98,$B20)=1,"Final",IF(COUNTIF(Partidos!$AB$86:$AB$89,$B20)=1,"Semifinales",IF(COUNTIF(Partidos!$AB$76:$AB$83,$B20)=1,"Cuartos de final",IF(COUNTIF(Partidos!$AB$58:$AB$73,$B20)=1,"Octavos de final","Primera Ronda")))) -> Octavos de final | D20: =SUMIF(Partidos!$AB$9:$AB$98,$B20,Partidos!AD$9:AD$98) -> 4 | E20: =SUMIF(Partidos!$AB$9:$AB$98,$B20,Partidos!AE$9:AE$98) -> 2 | F20: =SUMIF(Partidos!$AB$9:$AB$98,$B20,Partidos!AF$9:AF$98) -> 0 | G20: =SUMIF(Partidos!$AB$9:$AB$98,$B20,Partidos!AG$9:AG$98) -> 2 | H20: =SUMIF(Partidos!$AB$9:$AB$98,$B20,Partidos!AH$9:AH$98) -> 4 | I20: =SUMIF(Partidos!$AB$9:$AB$98,$B20,Partidos!AI$9:AI$98) -> 6 | J20: =SUMIF(Partidos!$AB$9:$AB$98,$B20,Partidos!AJ$9:AJ$98) -> -2 | K20: =IF($D20=0,0,H20/$D20) -> 1 | L20: =IF($D20=0,0,I20/$D20) -> 1.5
A21: =IF($D21=0,"",IF(COUNTIF(Partidos!$AB$58:$AB$73,$B21),(INDEX(Partidos!$AA$58:$AA$73,MATCH($B21,Partidos!$AB$58:$AB$73,0))),(IF(C21<>"Primera Ronda","",(SUMPRODUCT((((LOOKUP(LEFT(C21,100),{"Final",8000;"Primera Ronda",100;"Cuartos de final",1000;"Octavos de final",500;"Semifinales",3000}))*10000+100*D21*E21+30*H21-20*I21+J21)<(10000*((LOOKUP(LEFT(C$5:C$36,100),{"Final",8000;"Primera Ronda",100;"Cuartos de final",1000;"Octavos de final",500;"Semifinales",3000})))+100*(D$5:D$36)*(E$5:E$36)+30*(H$5:H$36)-20*(I$5:I$36)+(J$5:J$36)))+0)+1))))) -> 17 | B21: Croacia | C21: =IF(COUNTIF(Partidos!$AB$97:$AB$98,$B21)=1,"Final",IF(COUNTIF(Partidos!$AB$86:$AB$89,$B21)=1,"Semifinales",IF(COUNTIF(Partidos!$AB$76:$AB$83,$B21)=1,"Cuartos de final",IF(COUNTIF(Partidos!$AB$58:$AB$73,$B21)=1,"Octavos de final","Primera Ronda")))) -> Primera Ronda | D21: =SUMIF(Partidos!$AB$9:$AB$98,$B21,Partidos!AD$9:AD$98) -> 3 | E21: =SUMIF(Partidos!$AB$9:$AB$98,$B21,Partidos!AE$9:AE$98) -> 1 | F21: =SUMIF(Partidos!$AB$9:$AB$98,$B21,Partidos!AF$9:AF$98) -> 0 | G21: =SUMIF(Partidos!$AB$9:$AB$98,$B21,Partidos!AG$9:AG$98) -> 2 | H21: =SUMIF(Partidos!$AB$9:$AB$98,$B21,Partidos!AH$9:AH$98) -> 6 | I21: =SUMIF(Partidos!$AB$9:$AB$98,$B21,Partidos!AI$9:AI$98) -> 6 | J21: =SUMIF(Partidos!$AB$9:$AB$98,$B21,Partidos!AJ$9:AJ$98) -> 0 | K21: =IF($D21=0,0,H21/$D21) -> 2 | L21: =IF($D21=0,0,I21/$D21) -> 2
A22: =IF($D22=0,"",IF(COUNTIF(Partidos!$AB$58:$AB$73,$B22),(INDEX(Partidos!$AA$58:$AA$73,MATCH($B22,Partidos!$AB$58:$AB$73,0))),(IF(C22<>"Primera Ronda","",(SUMPRODUCT((((LOOKUP(LEFT(C22,100),{"Final",8000;"Primera Ronda",100;"Cuartos de final",1000;"Octavos de final",500;"Semifinales",3000}))*10000+100*D22*E22+30*H22-20*I22+J22)<(10000*((LOOKUP(LEFT(C$5:C$36,100),{"Final",8000;"Primera Ronda",100;"Cuartos de final",1000;"Octavos de final",500;"Semifinales",3000})))+100*(D$5:D$36)*(E$5:E$36)+30*(H$5:H$36)-20*(I$5:I$36)+(J$5:J$36)))+0)+1))))) -> 18 | B22: Bosnia y Herzegovina | C22: =IF(COUNTIF(Partidos!$AB$97:$AB$98,$B22)=1,"Final",IF(COUNTIF(Partidos!$AB$86:$AB$89,$B22)=1,"Semifinales",IF(COUNTIF(Partidos!$AB$76:$AB$83,$B22)=1,"Cuartos de final",IF(COUNTIF(Partidos!$AB$58:$AB$73,$B22)=1,"Octavos de final","Primera Ronda")))) -> Primera Ronda | D22: =SUMIF(Partidos!$AB$9:$AB$98,$B22,Partidos!AD$9:AD$98) -> 3 | E22: =SUMIF(Partidos!$AB$9:$AB$98,$B22,Partidos!AE$9:AE$98) -> 1 | F22: =SUMIF(Partidos!$AB$9:$AB$98,$B22,Partidos!AF$9:AF$98) -> 0 | G22: =SUMIF(Partidos!$AB$9:$AB$98,$B22,Partidos!AG$9:AG$98) -> 2 | H22: =SUMIF(Partidos!$AB$9:$AB$98,$B22,Partidos!AH$9:AH$98) -> 4 | I22: =SUMIF(Partidos!$AB$9:$AB$98,$B22,Partidos!AI$9:AI$98) -> 4 | J22: =SUMIF(Partidos!$AB$9:$AB$98,$B22,Partidos!AJ$9:AJ$98) -> 0 | K22: =IF($D22=0,0,H22/$D22) -> 1.333333333 | L22: =IF($D22=0,0,I22/$D22) -> 1.333333333
A23: =IF($D23=0,"",IF(COUNTIF(Partidos!$AB$58:$AB$73,$B23),(INDEX(Partidos!$AA$58:$AA$73,MATCH($B23,Partidos!$AB$58:$AB$73,0))),(IF(C23<>"Primera Ronda","",(SUMPRODUCT((((LOOKUP(LEFT(C23,100),{"Final",8000;"Primera Ronda",100;"Cuartos de final",1000;"Octavos de final",500;"Semifinales",3000}))*10000+100*D23*E23+30*H23-20*I23+J23)<(10000*((LOOKUP(LEFT(C$5:C$36,100),{"Final",8000;"Primera Ronda",100;"Cuartos de final",1000;"Octavos de final",500;"Semifinales",3000})))+100*(D$5:D$36)*(E$5:E$36)+30*(H$5:H$36)-20*(I$5:I$36)+(J$5:J$36)))+0)+1))))) -> 19 | B23: Ecuador | C23: =IF(COUNTIF(Partidos!$AB$97:$AB$98,$B23)=1,"Final",IF(COUNTIF(Partidos!$AB$86:$AB$89,$B23)=1,"Semifinales",IF(COUNTIF(Partidos!$AB$76:$AB$83,$B23)=1,"Cuartos de final",IF(COUNTIF(Partidos!$AB$58:$AB$73,$B23)=1,"Octavos de final","Primera Ronda")))) -> Primera Ronda | D23: =SUMIF(Partidos!$AB$9:$AB$98,$B23,Partidos!AD$9:AD$98) -> 3 | E23: =SUMIF(Partidos!$AB$9:$AB$98,$B23,Partidos!AE$9:AE$98) -> 1 | F23: =SUMIF(Partidos!$AB$9:$AB$98,$B23,Partidos!AF$9:AF$98) -> 1 | G23: =SUMIF(Partidos!$AB$9:$AB$98,$B23,Partidos!AG$9:AG$98) -> 1 | H23: =SUMIF(Partidos!$AB$9:$AB$98,$B23,Partidos!AH$9:AH$98) -> 3 | I23: =SUMIF(Partidos!$AB$9:$AB$98,$B23,Partidos!AI$9:AI$98) -> 3 | J23: =SUMIF(Partidos!$AB$9:$AB$98,$B23,Partidos!AJ$9:AJ$98) -> 0 | K23: =IF($D23=0,0,H23/$D23) -> 1 | L23: =IF($D23=0,0,I23/$D23) -> 1
A24: =IF($D24=0,"",IF(COUNTIF(Partidos!$AB$58:$AB$73,$B24),(INDEX(Partidos!$AA$58:$AA$73,MATCH($B24,Partidos!$AB$58:$AB$73,0))),(IF(C24<>"Primera Ronda","",(SUMPRODUCT((((LOOKUP(LEFT(C24,100),{"Final",8000;"Primera Ronda",100;"Cuartos de final",1000;"Octavos de final",500;"Semifinales",3000}))*10000+100*D24*E24+30*H24-20*I24+J24)<(10000*((LOOKUP(LEFT(C$5:C$36,100),{"Final",8000;"Primera Ronda",100;"Cuartos de final",1000;"Octavos de final",500;"Semifinales",3000})))+100*(D$5:D$36)*(E$5:E$36)+30*(H$5:H$36)-20*(I$5:I$36)+(J$5:J$36)))+0)+1))))) -> 20 | B24: Costa de Marfil | C24: =IF(COUNTIF(Partidos!$AB$97:$AB$98,$B24)=1,"Final",IF(COUNTIF(Partidos!$AB$86:$AB$89,$B24)=1,"Semifinales",IF(COUNTIF(Partidos!$AB$76:$AB$83,$B24)=1,"Cuartos de final",IF(COUNTIF(Partidos!$AB$58:$AB$73,$B24)=1,"Octavos de final","Primera Ronda")))) -> Primera Ronda | D24: =SUMIF(Partidos!$AB$9:$AB$98,$B24,Partidos!AD$9:AD$98) -> 3 | E24: =SUMIF(Partidos!$AB$9:$AB$98,$B24,Partidos!AE$9:AE$98) -> 1 | F24: =SUMIF(Partidos!$AB$9:$AB$98,$B24,Partidos!AF$9:AF$98) -> 0 | G24: =SUMIF(Partidos!$AB$9:$AB$98,$B24,Partidos!AG$9:AG$98) -> 2 | H24: =SUMIF(Partidos!$AB$9:$AB$98,$B24,Partidos!AH$9:AH$98) -> 4 | I24: =SUMIF(Partidos!$AB$9:$AB$98,$B24,Partidos!AI$9:AI$98) -> 5 | J24: =SUMIF(Partidos!$AB$9:$AB$98,$B24,Partidos!AJ$9:AJ$98) -> -1 | K24: =IF($D24=0,0,H24/$D24) -> 1.333333333 | L24: =IF($D24=0,0,I24/$D24) -> 1.666666667
A25: =IF($D25=0,"",IF(COUNTIF(Partidos!$AB$58:$AB$73,$B25),(INDEX(Partidos!$AA$58:$AA$73,MATCH($B25,Partidos!$AB$58:$AB$73,0))),(IF(C25<>"Primera Ronda","",(SUMPRODUCT((((LOOKUP(LEFT(C25,100),{"Final",8000;"Primera Ronda",100;"Cuartos de final",1000;"Octavos de final",500;"Semifinales",3000}))*10000+100*D25*E25+30*H25-20*I25+J25)<(10000*((LOOKUP(LEFT(C$5:C$36,100),{"Final",8000;"Primera Ronda",100;"Cuartos de final",1000;"Octavos de final",500;"Semifinales",3000})))+100*(D$5:D$36)*(E$5:E$36)+30*(H$5:H$36)-20*(I$5:I$36)+(J$5:J$36)))+0)+1))))) -> 21 | B25: Italia | C25: =IF(COUNTIF(Partidos!$AB$97:$AB$98,$B25)=1,"Final",IF(COUNTIF(Partidos!$AB$86:$AB$89,$B25)=1,"Semifinales",IF(COUNTIF(Partidos!$AB$76:$AB$83,$B25)=1,"Cuartos de final",IF(COUNTIF(Partidos!$AB$58:$AB$73,$B25)=1,"Octavos de final","Primera Ronda")))) -> Primera Ronda | D25: =SUMIF(Partidos!$AB$9:$AB$98,$B25,Partidos!AD$9:AD$98) -> 3 | E25: =SUMIF(Partidos!$AB$9:$AB$98,$B25,Partidos!AE$9:AE$98) -> 1 | F25: =SUMIF(Partidos!$AB$9:$AB$98,$B25,Partidos!AF$9:AF$98) -> 0 | G25: =SUMIF(Partidos!$AB$9:$AB$98,$B25,Partidos!AG$9:AG$98) -> 2 | H25: =SUMIF(Partidos!$AB$9:$AB$98,$B25,Partidos!AH$9:AH$98) -> 2 | I25: =SUMIF(Partidos!$AB$9:$AB$98,$B25,Partidos!AI$9:AI$98) -> 3 | J25: =SUMIF(Partidos!$AB$9:$AB$98,$B25,Partidos!AJ$9:AJ$98) -> -1 | K25: =IF($D25=0,0,H25/$D25) -> 0.6666666667 | L25: =IF($D25=0,0,I25/$D25) -> 1
A26: =IF($D26=0,"",IF(COUNTIF(Partidos!$AB$58:$AB$73,$B26),(INDEX(Partidos!$AA$58:$AA$73,MATCH($B26,Partidos!$AB$58:$AB$73,0))),(IF(C26<>"Primera Ronda","",(SUMPRODUCT((((LOOKUP(LEFT(C26,100),{"Final",8000;"Primera Ronda",100;"Cuartos de final",1000;"Octavos de final",500;"Semifinales",3000}))*10000+100*D26*E26+30*H26-20*I26+J26)<(10000*((LOOKUP(LEFT(C$5:C$36,100),{"Final",8000;"Primera Ronda",100;"Cuartos de final",1000;"Octavos de final",500;"Semifinales",3000})))+100*(D$5:D$36)*(E$5:E$36)+30*(H$5:H$36)-20*(I$5:I$36)+(J$5:J$36)))+0)+1))))) -> 22 | B26: España | C26: =IF(COUNTIF(Partidos!$AB$97:$AB$98,$B26)=1,"Final",IF(COUNTIF(Partidos!$AB$86:$AB$89,$B26)=1,"Semifinales",IF(COUNTIF(Partidos!$AB$76:$AB$83,$B26)=1,"Cuartos de final",IF(COUNTIF(Partidos!$AB$58:$AB$73,$B26)=1,"Octavos de final","Primera Ronda")))) -> Primera Ronda | D26: =SUMIF(Partidos!$AB$9:$AB$98,$B26,Partidos!AD$9:AD$98) -> 3 | E26: =SUMIF(Partidos!$AB$9:$AB$98,$B26,Partidos!AE$9:AE$98) -> 1 | F26: =SUMIF(Partidos!$AB$9:$AB$98,$B26,Partidos!AF$9:AF$98) -> 0 | G26: =SUMIF(Partidos!$AB$9:$AB$98,$B26,Partidos!AG$9:AG$98) -> 2 | H26: =SUMIF(Partidos!$AB$9:$AB$98,$B26,Partidos!AH$9:AH$98) -> 4 | I26: =SUMIF(Partidos!$AB$9:$AB$98,$B26,Partidos!AI$9:AI$98) -> 7 | J26: =SUMIF(Partidos!$AB$9:$AB$98,$B26,Partidos!AJ$9:AJ$98) -> -3 | K26: =IF($D26=0,0,H26/$D26) -> 1.333333333 | L26: =IF($D26=0,0,I26/$D26) -> 2.333333333
A27: =IF($D27=0,"",IF(COUNTIF(Partidos!$AB$58:$AB$73,$B27),(INDEX(Partidos!$AA$58:$AA$73,MATCH($B27,Partidos!$AB$58:$AB$73,0))),(IF(C27<>"Primera Ronda","",(SUMPRODUCT((((LOOKUP(LEFT(C27,100),{"Final",8000;"Primera Ronda",100;"Cuartos de final",1000;"Octavos de final",500;"Semifinales",3000}))*10000+100*D27*E27+30*H27-20*I27+J27)<(10000*((LOOKUP(LEFT(C$5:C$36,100),{"Final",8000;"Primera Ronda",100;"Cuartos de final",1000;"Octavos de final",500;"Semifinales",3000})))+100*(D$5:D$36)*(E$5:E$36)+30*(H$5:H$36)-20*(I$5:I$36)+(J$5:J$36)))+0)+1))))) -> 22 | B27: Portugal | C27: =IF(COUNTIF(Partidos!$AB$97:$AB$98,$B27)=1,"Final",IF(COUNTIF(Partidos!$AB$86:$AB$89,$B27)=1,"Semifinales",IF(COUNTIF(Partidos!$AB$76:$AB$83,$B27)=1,"Cuartos de final",IF(COUNTIF(Partidos!$AB$58:$AB$73,$B27)=1,"Octavos de final","Primera Ronda")))) -> Primera Ronda | D27: =SUMIF(Partidos!$AB$9:$AB$98,$B27,Partidos!AD$9:AD$98) -> 3 | E27: =SUMIF(Partidos!$AB$9:$AB$98,$B27,Partidos!AE$9:AE$98) -> 1 | F27: =SUMIF(Partidos!$AB$9:$AB$98,$B27,Partidos!AF$9:AF$98) -> 1 | G27: =SUMIF(Partidos!$AB$9:$AB$98,$B27,Partidos!AG$9:AG$98) -> 1 | H27: =SUMIF(Partidos!$AB$9:$AB$98,$B27,Partidos!AH$9:AH$98) -> 4 | I27: =SUMIF(Partidos!$AB$9:$AB$98,$B27,Partidos!AI$9:AI$98) -> 7 | J27: =SUMIF(Partidos!$AB$9:$AB$98,$B27,Partidos!AJ$9:AJ$98) -> -3 | K27: =IF($D27=0,0,H27/$D27) -> 1.333333333 | L27: =IF($D27=0,0,I27/$D27) -> 2.333333333
A28: =IF($D28=0,"",IF(COUNTIF(Partidos!$AB$58:$AB$73,$B28),(INDEX(Partidos!$AA$58:$AA$73,MATCH($B28,Partidos!$AB$58:$AB$73,0))),(IF(C28<>"Primera Ronda","",(SUMPRODUCT((((LOOKUP(LEFT(C28,100),{"Final",8000;"Primera Ronda",100;"Cuartos de final",1000;"Octavos de final",500;"Semifinales",3000}))*10000+100*D28*E28+30*H28-20*I28+J28)<(10000*((LOOKUP(LEFT(C$5:C$36,100),{"Final",8000;"Primera Ronda",100;"Cuartos de final",1000;"Octavos de final",500;"Semifinales",3000})))+100*(D$5:D$36)*(E$5:E$36)+30*(H$5:H$36)-20*(I$5:I$36)+(J$5:J$36)))+0)+1))))) -> 24 | B28: Rusia | C28: =IF(COUNTIF(Partidos!$AB$97:$AB$98,$B28)=1,"Final",IF(COUNTIF(Partidos!$AB$86:$AB$89,$B28)=1,"Semifinales",IF(COUNTIF(Partidos!$AB$76:$AB$83,$B28)=1,"Cuartos de final",IF(COUNTIF(Partidos!$AB$58:$AB$73,$B28)=1,"Octavos de final","Primera Ronda")))) -> Primera Ronda | D28: =SUMIF(Partidos!$AB$9:$AB$98,$B28,Partidos!AD$9:AD$98) -> 3 | E28: =SUMIF(Partidos!$AB$9:$AB$98,$B28,Partidos!AE$9:AE$98) -> 0 | F28: =SUMIF(Partidos!$AB$9:$AB$98,$B28,Partidos!AF$9:AF$98) -> 2 | G28: =SUMIF(Partidos!$AB$9:$AB$98,$B28,Partidos!AG$9:AG$98) -> 1 | H28: =SUMIF(Partidos!$AB$9:$AB$98,$B28,Partidos!AH$9:AH$98) -> 2 | I28: =SUMIF(Partidos!$AB$9:$AB$98,$B28,Partidos!AI$9:AI$98) -> 3 | J28: =SUMIF(Partidos!$AB$9:$AB$98,$B28,Partidos!AJ$9:AJ$98) -> -1 | K28: =IF($D28=0,0,H28/$D28) -> 0.6666666667 | L28: =IF($D28=0,0,I28/$D28) -> 1
A29: =IF($D29=0,"",IF(COUNTIF(Partidos!$AB$58:$AB$73,$B29),(INDEX(Partidos!$AA$58:$AA$73,MATCH($B29,Partidos!$AB$58:$AB$73,0))),(IF(C29<>"Primera Ronda","",(SUMPRODUCT((((LOOKUP(LEFT(C29,100),{"Final",8000;"Primera Ronda",100;"Cuartos de final",1000;"Octavos de final",500;"Semifinales",3000}))*10000+100*D29*E29+30*H29-20*I29+J29)<(10000*((LOOKUP(LEFT(C$5:C$36,100),{"Final",8000;"Primera Ronda",100;"Cuartos de final",1000;"Octavos de final",500;"Semifinales",3000})))+100*(D$5:D$36)*(E$5:E$36)+30*(H$5:H$36)-20*(I$5:I$36)+(J$5:J$36)))+0)+1))))) -> 25 | B29: Ghana | C29: =IF(COUNTIF(Partidos!$AB$97:$AB$98,$B29)=1,"Final",IF(COUNTIF(Partidos!$AB$86:$AB$89,$B29)=1,"Semifinales",IF(COUNTIF(Partidos!$AB$76:$AB$83,$B29)=1,"Cuartos de final",IF(COUNTIF(Partidos!$AB$58:$AB$73,$B29)=1,"Octavos de final","Primera Ronda")))) -> Primera Ronda | D29: =SUMIF(Partidos!$AB$9:$AB$98,$B29,Partidos!AD$9:AD$98) -> 3 | E29: =SUMIF(Partidos!$AB$9:$AB$98,$B29,Partidos!AE$9:AE$98) -> 0 | F29: =SUMIF(Partidos!$AB$9:$AB$98,$B29,Partidos!AF$9:AF$98) -> 1 | G29: =SUMIF(Partidos!$AB$9:$AB$98,$B29,Partidos!AG$9:AG$98) -> 2 | H29: =SUMIF(Partidos!$AB$9:$AB$98,$B29,Partidos!AH$9:AH$98) -> 4 | I29: =SUMIF(Partidos!$AB$9:$AB$98,$B29,Partidos!AI$9:AI$98) -> 6 | J29: =SUMIF(Partidos!$AB$9:$AB$98,$B29,Partidos!AJ$9:AJ$98) -> -2 | K29: =IF($D29=0,0,H29/$D29) -> 1.333333333 | L29: =IF($D29=0,0,I29/$D29) -> 2
A30: =IF($D30=0,"",IF(COUNTIF(Partidos!$AB$58:$AB$73,$B30),(INDEX(Partidos!$AA$58:$AA$73,MATCH($B30,Partidos!$AB$58:$AB$73,0))),(IF(C30<>"Primera Ronda","",(SUMPRODUCT((((LOOKUP(LEFT(C30,100),{"Final",8000;"Primera Ronda",100;"Cuartos de final",1000;"Octavos de final",500;"Semifinales",3000}))*10000+100*D30*E30+30*H30-20*I30+J30)<(10000*((LOOKUP(LEFT(C$5:C$36,100),{"Final",8000;"Primera Ronda",100;"Cuartos de final",1000;"Octavos de final",500;"Semifinales",3000})))+100*(D$5:D$36)*(E$5:E$36)+30*(H$5:H$36)-20*(I$5:I$36)+(J$5:J$36)))+0)+1))))) -> 26 | B30: Inglaterra | C30: =IF(COUNTIF(Partidos!$AB$97:$AB$98,$B30)=1,"Final",IF(COUNTIF(Partidos!$AB$86:$AB$89,$B30)=1,"Semifinales",IF(COUNTIF(Partidos!$AB$76:$AB$83,$B30)=1,"Cuartos de final",IF(COUNTIF(Partidos!$AB$58:$AB$73,$B30)=1,"Octavos de final","Primera Ronda")))) -> Primera Ronda | D30: =SUMIF(Partidos!$AB$9:$AB$98,$B30,Partidos!AD$9:AD$98) -> 3 | E30: =SUMIF(Partidos!$AB$9:$AB$98,$B30,Partidos!AE$9:AE$98) -> 0 | F30: =SUMIF(Partidos!$AB$9:$AB$98,$B30,Partidos!AF$9:AF$98) -> 1 | G30: =SUMIF(Partidos!$AB$9:$AB$98,$B30,Partidos!AG$9:AG$98) -> 2 | H30: =SUMIF(Partidos!$AB$9:$AB$98,$B30,Partidos!AH$9:AH$98) -> 2 | I30: =SUMIF(Partidos!$AB$9:$AB$98,$B30,Partidos!AI$9:AI$98) -> 4 | J30: =SUMIF(Partidos!$AB$9:$AB$98,$B30,Partidos!AJ$9:AJ$98) -> -2 | K30: =IF($D30=0,0,H30/$D30) -> 0.6666666667 | L30: =IF($D30=0,0,I30/$D30) -> 1.333333333
A31: =IF($D31=0,"",IF(COUNTIF(Partidos!$AB$58:$AB$73,$B31),(INDEX(Partidos!$AA$58:$AA$73,MATCH($B31,Partidos!$AB$58:$AB$73,0))),(IF(C31<>"Primera Ronda","",(SUMPRODUCT((((LOOKUP(LEFT(C31,100),{"Final",8000;"Primera Ronda",100;"Cuartos de final",1000;"Octavos de final",500;"Semifinales",3000}))*10000+100*D31*E31+30*H31-20*I31+J31)<(10000*((LOOKUP(LEFT(C$5:C$36,100),{"Final",8000;"Primera Ronda",100;"Cuartos de final",1000;"Octavos de final",500;"Semifinales",3000})))+100*(D$5:D$36)*(E$5:E$36)+30*(H$5:H$36)-20*(I$5:I$36)+(J$5:J$36)))+0)+1))))) -> 27 | B31: Corea Sur | C31: =IF(COUNTIF(Partidos!$AB$97:$AB$98,$B31)=1,"Final",IF(COUNTIF(Partidos!$AB$86:$AB$89,$B31)=1,"Semifinales",IF(COUNTIF(Partidos!$AB$76:$AB$83,$B31)=1,"Cuartos de final",IF(COUNTIF(Partidos!$AB$58:$AB$73,$B31)=1,"Octavos de final","Primera Ronda")))) -> Primera Ronda | D31: =SUMIF(Partidos!$AB$9:$AB$98,$B31,Partidos!AD$9:AD$98) -> 3 | E31: =SUMIF(Partidos!$AB$9:$AB$98,$B31,Partidos!AE$9:AE$98) -> 0 | F31: =SUMIF(Partidos!$AB$9:$AB$98,$B31,Partidos!AF$9:AF$98) -> 1 | G31: =SUMIF(Partidos!$AB$9:$AB$98,$B31,Partidos!AG$9:AG$98) -> 2 | H31: =SUMIF(Partidos!$AB$9:$AB$98,$B31,Partidos!AH$9:AH$98) -> 3 | I31: =SUMIF(Partidos!$AB$9:$AB$98,$B31,Partidos!AI$9:AI$98) -> 6 | J31: =SUMIF(Partidos!$AB$9:$AB$98,$B31,Partidos!AJ$9:AJ$98) -> -3 | K31: =IF($D31=0,0,H31/$D31) -> 1 | L31: =IF($D31=0,0,I31/$D31) -> 2
A32: =IF($D32=0,"",IF(COUNTIF(Partidos!$AB$58:$AB$73,$B32),(INDEX(Partidos!$AA$58:$AA$73,MATCH($B32,Partidos!$AB$58:$AB$73,0))),(IF(C32<>"Primera Ronda","",(SUMPRODUCT((((LOOKUP(LEFT(C32,100),{"Final",8000;"Primera Ronda",100;"Cuartos de final",1000;"Octavos de final",500;"Semifinales",3000}))*10000+100*D32*E32+30*H32-20*I32+J32)<(10000*((LOOKUP(LEFT(C$5:C$36,100),{"Final",8000;"Primera Ronda",100;"Cuartos de final",1000;"Octavos de final",500;"Semifinales",3000})))+100*(D$5:D$36)*(E$5:E$36)+30*(H$5:H$36)-20*(I$5:I$36)+(J$5:J$36)))+0)+1))))) -> 28 | B32: Irán | C32: =IF(COUNTIF(Partidos!$AB$97:$AB$98,$B32)=1,"Final",IF(COUNTIF(Partidos!$AB$86:$AB$89,$B32)=1,"Semifinales",IF(COUNTIF(Partidos!$AB$76:$AB$83,$B32)=1,"Cuartos de final",IF(COUNTIF(Partidos!$AB$58:$AB$73,$B32)=1,"Octavos de final","Primera Ronda")))) -> Primera Ronda | D32: =SUMIF(Partidos!$AB$9:$AB$98,$B32,Partidos!AD$9:AD$98) -> 3 | E32: =SUMIF(Partidos!$AB$9:$AB$98,$B32,Partidos!AE$9:AE$98) -> 0 | F32: =SUMIF(Partidos!$AB$9:$AB$98,$B32,Partidos!AF$9:AF$98) -> 1 | G32: =SUMIF(Partidos!$AB$9:$AB$98,$B32,Partidos!AG$9:AG$98) -> 2 | H32: =SUMIF(Partidos!$AB$9:$AB$98,$B32,Partidos!AH$9:AH$98) -> 1 | I32: =SUMIF(Partidos!$AB$9:$AB$98,$B32,Partidos!AI$9:AI$98) -> 4 | J32: =SUMIF(Partidos!$AB$9:$AB$98,$B32,Partidos!AJ$9:AJ$98) -> -3 | K32: =IF($D32=0,0,H32/$D32) -> 0.3333333333 | L32: =IF($D32=0,0,I32/$D32) -> 1.333333333
A33: =IF($D33=0,"",IF(COUNTIF(Partidos!$AB$58:$AB$73,$B33),(INDEX(Partidos!$AA$58:$AA$73,MATCH($B33,Partidos!$AB$58:$AB$73,0))),(IF(C33<>"Primera Ronda","",(SUMPRODUCT((((LOOKUP(LEFT(C33,100),{"Final",8000;"Primera Ronda",100;"Cuartos de final",1000;"Octavos de final",500;"Semifinales",3000}))*10000+100*D33*E33+30*H33-20*I33+J33)<(10000*((LOOKUP(LEFT(C$5:C$36,100),{"Final",8000;"Primera Ronda",100;"Cuartos de final",1000;"Octavos de final",500;"Semifinales",3000})))+100*(D$5:D$36)*(E$5:E$36)+30*(H$5:H$36)-20*(I$5:I$36)+(J$5:J$36)))+0)+1))))) -> 29 | B33: Japón | C33: =IF(COUNTIF(Partidos!$AB$97:$AB$98,$B33)=1,"Final",IF(COUNTIF(Partidos!$AB$86:$AB$89,$B33)=1,"Semifinales",IF(COUNTIF(Partidos!$AB$76:$AB$83,$B33)=1,"Cuartos de final",IF(COUNTIF(Partidos!$AB$58:$AB$73,$B33)=1,"Octavos de final","Primera Ronda")))) -> Primera Ronda | D33: =SUMIF(Partidos!$AB$9:$AB$98,$B33,Partidos!AD$9:AD$98) -> 3 | E33: =SUMIF(Partidos!$AB$9:$AB$98,$B33,Partidos!AE$9:AE$98) -> 0 | F33: =SUMIF(Partidos!$AB$9:$AB$98,$B33,Partidos!AF$9:AF$98) -> 1 | G33: =SUMIF(Partidos!$AB$9:$AB$98,$B33,Partidos!AG$9:AG$98) -> 2 | H33: =SUMIF(Partidos!$AB$9:$AB$98,$B33,Partidos!AH$9:AH$98) -> 2 | I33: =SUMIF(Partidos!$AB$9:$AB$98,$B33,Partidos!AI$9:AI$98) -> 6 | J33: =SUMIF(Partidos!$AB$9:$AB$98,$B33,Partidos!AJ$9:AJ$98) -> -4 | K33: =IF($D33=0,0,H33/$D33) -> 0.6666666667 | L33: =IF($D33=0,0,I33/$D33) -> 2
A34: =IF($D34=0,"",IF(COUNTIF(Partidos!$AB$58:$AB$73,$B34),(INDEX(Partidos!$AA$58:$AA$73,MATCH($B34,Partidos!$AB$58:$AB$73,0))),(IF(C34<>"Primera Ronda","",(SUMPRODUCT((((LOOKUP(LEFT(C34,100),{"Final",8000;"Primera Ronda",100;"Cuartos de final",1000;"Octavos de final",500;"Semifinales",3000}))*10000+100*D34*E34+30*H34-20*I34+J34)<(10000*((LOOKUP(LEFT(C$5:C$36,100),{"Final",8000;"Primera Ronda",100;"Cuartos de final",1000;"Octavos de final",500;"Semifinales",3000})))+100*(D$5:D$36)*(E$5:E$36)+30*(H$5:H$36)-20*(I$5:I$36)+(J$5:J$36)))+0)+1))))) -> 30 | B34: Australia | C34: =IF(COUNTIF(Partidos!$AB$97:$AB$98,$B34)=1,"Final",IF(COUNTIF(Partidos!$AB$86:$AB$89,$B34)=1,"Semifinales",IF(COUNTIF(Partidos!$AB$76:$AB$83,$B34)=1,"Cuartos de final",IF(COUNTIF(Partidos!$AB$58:$AB$73,$B34)=1,"Octavos de final","Primera Ronda")))) -> Primera Ronda | D34: =SUMIF(Partidos!$AB$9:$AB$98,$B34,Partidos!AD$9:AD$98) -> 3 | E34: =SUMIF(Partidos!$AB$9:$AB$98,$B34,Partidos!AE$9:AE$98) -> 0 | F34: =SUMIF(Partidos!$AB$9:$AB$98,$B34,Partidos!AF$9:AF$98) -> 0 | G34: =SUMIF(Partidos!$AB$9:$AB$98,$B34,Partidos!AG$9:AG$98) -> 3 | H34: =SUMIF(Partidos!$AB$9:$AB$98,$B34,Partidos!AH$9:AH$98) -> 3 | I34: =SUMIF(Partidos!$AB$9:$AB$98,$B34,Partidos!AI$9:AI$98) -> 9 | J34: =SUMIF(Partidos!$AB$9:$AB$98,$B34,Partidos!AJ$9:AJ$98) -> -6 | K34: =IF($D34=0,0,H34/$D34) -> 1 | L34: =IF($D34=0,0,I34/$D34) -> 3
A35: =IF($D35=0,"",IF(COUNTIF(Partidos!$AB$58:$AB$73,$B35),(INDEX(Partidos!$AA$58:$AA$73,MATCH($B35,Partidos!$AB$58:$AB$73,0))),(IF(C35<>"Primera Ronda","",(SUMPRODUCT((((LOOKUP(LEFT(C35,100),{"Final",8000;"Primera Ronda",100;"Cuartos de final",1000;"Octavos de final",500;"Semifinales",3000}))*10000+100*D35*E35+30*H35-20*I35+J35)<(10000*((LOOKUP(LEFT(C$5:C$36,100),{"Final",8000;"Primera Ronda",100;"Cuartos de final",1000;"Octavos de final",500;"Semifinales",3000})))+100*(D$5:D$36)*(E$5:E$36)+30*(H$5:H$36)-20*(I$5:I$36)+(J$5:J$36)))+0)+1))))) -> 31 | B35: Honduras | C35: =IF(COUNTIF(Partidos!$AB$97:$AB$98,$B35)=1,"Final",IF(COUNTIF(Partidos!$AB$86:$AB$89,$B35)=1,"Semifinales",IF(COUNTIF(Partidos!$AB$76:$AB$83,$B35)=1,"Cuartos de final",IF(COUNTIF(Partidos!$AB$58:$AB$73,$B35)=1,"Octavos de final","Primera Ronda")))) -> Primera Ronda | D35: =SUMIF(Partidos!$AB$9:$AB$98,$B35,Partidos!AD$9:AD$98) -> 3 | E35: =SUMIF(Partidos!$AB$9:$AB$98,$B35,Partidos!AE$9:AE$98) -> 0 | F35: =SUMIF(Partidos!$AB$9:$AB$98,$B35,Partidos!AF$9:AF$98) -> 0 | G35: =SUMIF(Partidos!$AB$9:$AB$98,$B35,Partidos!AG$9:AG$98) -> 3 | H35: =SUMIF(Partidos!$AB$9:$AB$98,$B35,Partidos!AH$9:AH$98) -> 1 | I35: =SUMIF(Partidos!$AB$9:$AB$98,$B35,Partidos!AI$9:AI$98) -> 8 | J35: =SUMIF(Partidos!$AB$9:$AB$98,$B35,Partidos!AJ$9:AJ$98) -> -7 | K35: =IF($D35=0,0,H35/$D35) -> 0.3333333333 | L35: =IF($D35=0,0,I35/$D35) -> 2.666666667
A36: =IF($D36=0,"",IF(COUNTIF(Partidos!$AB$58:$AB$73,$B36),(INDEX(Partidos!$AA$58:$AA$73,MATCH($B36,Partidos!$AB$58:$AB$73,0))),(IF(C36<>"Primera Ronda","",(SUMPRODUCT((((LOOKUP(LEFT(C36,100),{"Final",8000;"Primera Ronda",100;"Cuartos de final",1000;"Octavos de final",500;"Semifinales",3000}))*10000+100*D36*E36+30*H36-20*I36+J36)<(10000*((LOOKUP(LEFT(C$5:C$36,100),{"Final",8000;"Primera Ronda",100;"Cuartos de final",1000;"Octavos de final",500;"Semifinales",3000})))+100*(D$5:D$36)*(E$5:E$36)+30*(H$5:H$36)-20*(I$5:I$36)+(J$5:J$36)))+0)+1))))) -> 32 | B36: Camerún | C36: =IF(COUNTIF(Partidos!$AB$97:$AB$98,$B36)=1,"Final",IF(COUNTIF(Partidos!$AB$86:$AB$89,$B36)=1,"Semifinales",IF(COUNTIF(Partidos!$AB$76:$AB$83,$B36)=1,"Cuartos de final",IF(COUNTIF(Partidos!$AB$58:$AB$73,$B36)=1,"Octavos de final","Primera Ronda")))) -> Primera Ronda | D36: =SUMIF(Partidos!$AB$9:$AB$98,$B36,Partidos!AD$9:AD$98) -> 3 | E36: =SUMIF(Partidos!$AB$9:$AB$98,$B36,Partidos!AE$9:AE$98) -> 0 | F36: =SUMIF(Partidos!$AB$9:$AB$98,$B36,Partidos!AF$9:AF$98) -> 0 | G36: =SUMIF(Partidos!$AB$9:$AB$98,$B36,Partidos!AG$9:AG$98) -> 3 | H36: =SUMIF(Partidos!$AB$9:$AB$98,$B36,Partidos!AH$9:AH$98) -> 1 | I36: =SUMIF(Partidos!$AB$9:$AB$98,$B36,Partidos!AI$9:AI$98) -> 9 | J36: =SUMIF(Partidos!$AB$9:$AB$98,$B36,Partidos!AJ$9:AJ$98) -> -8 | K36: =IF($D36=0,0,H36/$D36) -> 0.3333333333 | L36: =IF($D36=0,0,I36/$D36) -> 3
